Vendor,Category,Amount,Payment Date
1131 Lockport LLC,Leases and Rentals,"$1,500.00 ",1/26/2018
1131 Lockport LLC,Leases and Rentals,"$3,250.00 ",2/27/2018
1131 Lockport LLC,Leases and Rentals,"$2,968.75 ",3/23/2018
1131 Lockport LLC,Leases and Rentals,"$2,375.00 ",4/24/2018
1131 Lockport LLC,Leases and Rentals,"$2,375.00 ",5/31/2018
1131 Lockport LLC,Leases and Rentals,"$2,968.75 ",6/26/2018
1131 Lockport LLC,Leases and Rentals,"$2,375.00 ",8/7/2018
1131 Lockport LLC,Services,"$2,930.00 ",10/30/2018
159th & Kedzie Currency Exchange Inc,Miscellaneous,$15.00 ,5/4/2018
1701 E Woodfield Road LLC,Leases and Rentals,"$1,625.00 ",8/17/2018
1701 E Woodfield Road LLC,Leases and Rentals,"$1,625.00 ",9/14/2018
1701 E Woodfield Road LLC,Leases and Rentals,"$1,625.00 ",10/12/2018
1701 E Woodfield Road LLC,Leases and Rentals,"$1,625.00 ",11/6/2018
1701 E Woodfield Road LLC,Leases and Rentals,"$1,625.00 ",12/7/2018
1st Choice Taxi,Purchased Transportation,"$16,041.98 ",1/4/2018
1st Choice Taxi,Purchased Transportation,$708.68 ,1/12/2018
1st Choice Taxi,Purchased Transportation,$530.70 ,2/2/2018
1st Choice Taxi,Purchased Transportation,"$14,251.83 ",2/6/2018
1st Choice Taxi,Purchased Transportation,$877.53 ,3/27/2018
1st Choice Taxi,Purchased Transportation,"$15,872.73 ",4/6/2018
1st Choice Taxi,Purchased Transportation,"$14,316.73 ",4/10/2018
1st Choice Taxi,Purchased Transportation,"$16,300.55 ",5/4/2018
1st Choice Taxi,Purchased Transportation,"$16,557.95 ",6/5/2018
1st Choice Taxi,Purchased Transportation,"$17,649.25 ",7/13/2018
1st Choice Taxi,Purchased Transportation,"$15,073.18 ",8/17/2018
1st Choice Taxi,Purchased Transportation,"$29,109.80 ",10/17/2018
1st Choice Taxi,Purchased Transportation,"$3,167.67 ",11/6/2018
1st Choice Taxi,Purchased Transportation,"$23,777.14 ",11/16/2018
1st Choice Taxi,Purchased Transportation,"$27,041.76 ",12/11/2018
1st Choice Taxi,Purchased Transportation,"$3,465.71 ",12/14/2018
24 Seven Taxi Association,Purchased Transportation,$68.00 ,1/26/2018
24 Seven Taxi Association,Purchased Transportation,$437.75 ,2/20/2018
24 Seven Taxi Association,Purchased Transportation,$170.00 ,3/27/2018
24 Seven Taxi Association,Purchased Transportation,$460.50 ,4/24/2018
24 Seven Taxi Association,Purchased Transportation,$19.75 ,5/8/2018
24 Seven Taxi Association,Purchased Transportation,$269.50 ,5/25/2018
24 Seven Taxi Association,Purchased Transportation,$375.25 ,6/26/2018
24 Seven Taxi Association,Purchased Transportation,$85.75 ,7/20/2018
24 Seven Taxi Association,Purchased Transportation,$308.75 ,7/27/2018
24 Seven Taxi Association,Purchased Transportation,$10.75 ,8/3/2018
24 Seven Taxi Association,Purchased Transportation,$92.45 ,8/10/2018
24 Seven Taxi Association,Purchased Transportation,$216.25 ,9/6/2018
24 Seven Taxi Association,Purchased Transportation,$250.50 ,9/18/2018
24 Seven Taxi Association,Purchased Transportation,$85.50 ,9/28/2018
24 Seven Taxi Association,Purchased Transportation,$59.25 ,10/5/2018
24 Seven Taxi Association,Purchased Transportation,$78.00 ,10/12/2018
24 Seven Taxi Association,Purchased Transportation,$166.25 ,10/19/2018
24 Seven Taxi Association,Purchased Transportation,$42.75 ,10/30/2018
24 Seven Taxi Association,Purchased Transportation,$38.50 ,11/6/2018
24 Seven Taxi Association,Purchased Transportation,$261.50 ,11/9/2018
24 Seven Taxi Association,Purchased Transportation,$47.00 ,11/16/2018
24 Seven Taxi Association,Purchased Transportation,$139.25 ,11/27/2018
24 Seven Taxi Association,Purchased Transportation,$392.00 ,12/28/2018
303 Taxi,Purchased Transportation,"$66,377.31 ",1/4/2018
303 Taxi,Purchased Transportation,"$80,374.04 ",1/9/2018
303 Taxi,Purchased Transportation,"$210,372.90 ",1/30/2018
303 Taxi,Purchased Transportation,"$132,707.05 ",2/6/2018
303 Taxi,Purchased Transportation,"$154,332.96 ",3/2/2018
303 Taxi,Purchased Transportation,"$70,957.79 ",3/9/2018
303 Taxi,Purchased Transportation,"$117,095.42 ",3/27/2018
303 Taxi,Purchased Transportation,"$270,515.31 ",4/6/2018
303 Taxi,Purchased Transportation,"$61,150.33 ",4/10/2018
303 Taxi,Purchased Transportation,"$42,486.64 ",4/13/2018
303 Taxi,Purchased Transportation,"$21,129.09 ",4/24/2018
303 Taxi,Purchased Transportation,"$90,878.58 ",5/4/2018
303 Taxi,Purchased Transportation,"$458,802.28 ",5/18/2018
303 Taxi,Purchased Transportation,"$61,585.56 ",6/5/2018
303 Taxi,Purchased Transportation,"$427,148.97 ",6/8/2018
303 Taxi,Purchased Transportation,"$545,563.79 ",7/13/2018
303 Taxi,Purchased Transportation,"$302,689.33 ",7/31/2018
303 Taxi,Purchased Transportation,"$62,560.07 ",8/17/2018
303 Taxi,Purchased Transportation,"$121,329.36 ",8/21/2018
303 Taxi,Purchased Transportation,"$323,626.46 ",9/11/2018
303 Taxi,Purchased Transportation,"$654,995.27 ",10/12/2018
303 Taxi,Purchased Transportation,"$60,098.49 ",10/19/2018
303 Taxi,Purchased Transportation,"$84,981.29 ",11/9/2018
303 Taxi,Purchased Transportation,"$293,684.15 ",11/16/2018
303 Taxi,Purchased Transportation,"$88,818.45 ",11/30/2018
303 Taxi,Purchased Transportation,"$77,866.88 ",12/4/2018
303 Taxi,Purchased Transportation,"$27,199.83 ",12/11/2018
303 Taxi,Purchased Transportation,"$639,543.11 ",12/21/2018
5167 Taxi Inc,Purchased Transportation,$348.75 ,12/14/2018
5167 Taxi Inc,Purchased Transportation,$589.50 ,12/21/2018
A&A Auto Parts Store Inc,Fuel/Parts Inventory,$862.08 ,1/30/2018
A&A Auto Parts Store Inc,Fuel/Parts Inventory,$538.80 ,3/6/2018
A&A Auto Parts Store Inc,Fuel/Parts Inventory,$161.64 ,4/6/2018
A&A Auto Parts Store Inc,Fuel/Parts Inventory,$215.52 ,4/20/2018
A&A Auto Parts Store Inc,Fuel/Parts Inventory,$107.76 ,6/5/2018
A&A Auto Parts Store Inc,Fuel/Parts Inventory,$323.28 ,6/8/2018
A&A Auto Parts Store Inc,Fuel/Parts Inventory,$267.36 ,7/27/2018
A&A Auto Parts Store Inc,Fuel/Parts Inventory,$215.52 ,8/17/2018
A&A Auto Parts Store Inc,Fuel/Parts Inventory,$323.28 ,9/21/2018
A&A Auto Parts Store Inc,Fuel/Parts Inventory,$564.72 ,11/2/2018
A&A Auto Parts Store Inc,Fuel/Parts Inventory,$538.80 ,12/18/2018
A-1 Air Compressor Corp,Materials and Supplies,"$1,749.50 ",3/23/2018
A-Adams School of Driving,Services,"$5,512.19 ",1/9/2018
A-Adams School of Driving,Services,"$3,451.24 ",3/16/2018
A-Adams School of Driving,Services,"$5,220.80 ",3/23/2018
A-Adams School of Driving,Services,"$5,795.04 ",4/17/2018
A-Adams School of Driving,Services,"$7,402.48 ",5/11/2018
A-Adams School of Driving,Services,"$4,846.81 ",6/26/2018
A-Adams School of Driving,Services,"$5,821.72 ",7/20/2018
A-Adams School of Driving,Services,"$3,165.75 ",8/24/2018
A-Adams School of Driving,Services,"$4,494.46 ",9/6/2018
A-Adams School of Driving,Services,"$3,038.88 ",10/12/2018
A-Adams School of Driving,Services,"$3,424.06 ",11/13/2018
A-Adams School of Driving,Services,"$5,669.58 ",12/4/2018
ABC Humane Wildlife Control & Prevention Inc,Services,$258.00 ,1/4/2018
ABC Humane Wildlife Control & Prevention Inc,Services,$337.00 ,1/9/2018
ABC Humane Wildlife Control & Prevention Inc,Services,"$1,120.00 ",1/12/2018
ABC Humane Wildlife Control & Prevention Inc,Services,"$1,477.00 ",1/19/2018
ABC Humane Wildlife Control & Prevention Inc,Materials and Supplies,"$2,102.00 ",2/13/2018
ABC Humane Wildlife Control & Prevention Inc,Services,"$1,033.00 ",2/13/2018
ABC Humane Wildlife Control & Prevention Inc,Services,$492.00 ,2/16/2018
ABC Humane Wildlife Control & Prevention Inc,Materials and Supplies,"$1,910.00 ",3/9/2018
ABC Humane Wildlife Control & Prevention Inc,Services,$851.00 ,3/13/2018
ABC Humane Wildlife Control & Prevention Inc,Services,$487.00 ,3/16/2018
ABC Humane Wildlife Control & Prevention Inc,Services,$70.00 ,3/20/2018
ABC Humane Wildlife Control & Prevention Inc,Materials and Supplies,"$1,958.00 ",4/13/2018
ABC Humane Wildlife Control & Prevention Inc,Services,$581.00 ,4/17/2018
ABC Humane Wildlife Control & Prevention Inc,Services,$716.00 ,4/20/2018
ABC Humane Wildlife Control & Prevention Inc,Services,$193.00 ,5/4/2018
ABC Humane Wildlife Control & Prevention Inc,Services,"$1,164.00 ",5/25/2018
ABC Humane Wildlife Control & Prevention Inc,Services,$201.00 ,5/31/2018
ABC Humane Wildlife Control & Prevention Inc,Services,$111.00 ,6/8/2018
ABC Humane Wildlife Control & Prevention Inc,Services,$350.00 ,9/28/2018
Abt Associates Inc,Operating,"$20,071.00 ",2/16/2018
Abt Associates Inc,Operating,"$64,940.00 ",6/22/2018
Abt Associates Inc,Services,"$12,826.70 ",6/22/2018
Abt Associates Inc,Services,"$12,333.90 ",9/14/2018
Accurate Office Supply,Materials and Supplies,"$1,661.63 ",1/26/2018
Accurate Office Supply,Materials and Supplies,$574.49 ,2/8/2018
Accurate Office Supply,Materials and Supplies,$550.00 ,4/3/2018
Accurate Office Supply,Materials and Supplies,$550.00 ,12/4/2018
Accurate Tank Construction,Building/Bldg Improvement,"$7,280.00 ",1/19/2018
Accurate Tank Technologies,Services,$302.00 ,1/12/2018
Accurate Tank Technologies,Services,$946.00 ,1/23/2018
Ace Cab Inc,Purchased Transportation,$485.25 ,2/2/2018
Ace Cab Inc,Purchased Transportation,$809.75 ,11/27/2018
Ace Coffee Bar Inc,Materials and Supplies,$489.80 ,1/23/2018
Ace Coffee Bar Inc,Materials and Supplies,$474.70 ,2/13/2018
Ace Coffee Bar Inc,Materials and Supplies,$421.60 ,4/27/2018
Ace Coffee Bar Inc,Materials and Supplies,$271.60 ,7/17/2018
Ace Coffee Bar Inc,Services,$623.80 ,7/20/2018
Ace Coffee Bar Inc,Materials and Supplies,$821.30 ,10/30/2018
Ace Coffee Bar Inc,Materials and Supplies,$260.38 ,11/30/2018
Acme Truck Brake & Supply Co,Fuel/Parts Inventory,$817.30 ,2/8/2018
Acme Truck Brake & Supply Co,Fuel/Parts Inventory,"$1,218.22 ",2/27/2018
Acme Truck Brake & Supply Co,Fuel/Parts Inventory,$490.38 ,3/9/2018
Acme Truck Brake & Supply Co,Fuel/Parts Inventory,$209.00 ,5/4/2018
Acme Truck Brake & Supply Co,Fuel/Parts Inventory,$250.80 ,5/31/2018
Acme Truck Brake & Supply Co,Fuel/Parts Inventory,$338.36 ,8/31/2018
Acme Truck Brake & Supply Co,Fuel/Parts Inventory,$845.90 ,9/6/2018
Acme Truck Brake & Supply Co,Fuel/Parts Inventory,"$1,353.44 ",9/11/2018
Acme Truck Brake & Supply Co,Fuel/Parts Inventory,$169.23 ,10/19/2018
Action Fire Equipment Inc,Services,"$1,263.00 ",4/10/2018
Action Fire Equipment Inc,Services,$63.00 ,7/24/2018
Adrian Cab Co,Purchased Transportation,$32.75 ,6/26/2018
Adrian Cab Co,Purchased Transportation,$25.00 ,8/17/2018
Adrian Cab Co,Purchased Transportation,$19.00 ,11/16/2018
Advance Auto Parts,Materials and Supplies,$64.99 ,1/12/2018
Advance Auto Parts,Materials and Supplies,$519.55 ,1/23/2018
Advance Auto Parts,Materials and Supplies,$13.04 ,1/26/2018
Advance Auto Parts,Materials and Supplies,$179.97 ,1/30/2018
Advance Auto Parts,Materials and Supplies,"$1,050.61 ",2/27/2018
Advance Auto Parts,Materials and Supplies,$412.95 ,3/23/2018
Advance Auto Parts,Materials and Supplies,$227.32 ,4/6/2018
Advance Auto Parts,Materials and Supplies,$246.93 ,4/10/2018
Advance Auto Parts,Materials and Supplies,$111.00 ,4/20/2018
Advance Auto Parts,Materials and Supplies,$113.18 ,5/4/2018
Advance Auto Parts,Materials and Supplies,$79.97 ,5/18/2018
Advance Auto Parts,Materials and Supplies,$116.29 ,5/31/2018
Advance Auto Parts,Materials and Supplies,$297.73 ,6/29/2018
Advance Auto Parts,Materials and Supplies,$181.83 ,7/17/2018
Advance Auto Parts,Materials and Supplies,$217.04 ,10/9/2018
Advanced Disposal Services Solid Waste Midwest LLC,Services,$115.76 ,1/4/2018
Advanced Disposal Services Solid Waste Midwest LLC,Services,$64.00 ,1/12/2018
Advanced Disposal Services Solid Waste Midwest LLC,Services,$399.00 ,1/19/2018
Advanced Disposal Services Solid Waste Midwest LLC,Services,$121.55 ,1/30/2018
Advanced Disposal Services Solid Waste Midwest LLC,Services,$733.00 ,2/2/2018
Advanced Disposal Services Solid Waste Midwest LLC,Services,$479.00 ,2/6/2018
Advanced Disposal Services Solid Waste Midwest LLC,Services,$415.00 ,3/9/2018
Advanced Disposal Services Solid Waste Midwest LLC,Services,$64.00 ,3/13/2018
Advanced Disposal Services Solid Waste Midwest LLC,Services,$64.00 ,3/30/2018
Advanced Disposal Services Solid Waste Midwest LLC,Services,$415.00 ,4/13/2018
Advanced Disposal Services Solid Waste Midwest LLC,Services,$450.00 ,4/20/2018
Advanced Disposal Services Solid Waste Midwest LLC,Services,$64.00 ,4/24/2018
Advanced Disposal Services Solid Waste Midwest LLC,Services,$364.65 ,5/1/2018
Advanced Disposal Services Solid Waste Midwest LLC,Services,$214.64 ,5/11/2018
Advanced Disposal Services Solid Waste Midwest LLC,Services,$415.00 ,5/18/2018
Advanced Disposal Services Solid Waste Midwest LLC,Services,$64.00 ,5/22/2018
Advanced Disposal Services Solid Waste Midwest LLC,Services,$415.00 ,7/6/2018
Advanced Disposal Services Solid Waste Midwest LLC,Services,$643.92 ,7/24/2018
Advanced Disposal Services Solid Waste Midwest LLC,Services,$243.10 ,7/27/2018
Advanced Disposal Services Solid Waste Midwest LLC,Services,$121.55 ,8/14/2018
Advanced Disposal Services Solid Waste Midwest LLC,Services,$951.55 ,8/17/2018
Advanced Disposal Services Solid Waste Midwest LLC,Services,$214.64 ,8/21/2018
Advanced Disposal Services Solid Waste Midwest LLC,Services,$131.84 ,9/6/2018
Advanced Disposal Services Solid Waste Midwest LLC,Services,$193.55 ,9/21/2018
Advanced Disposal Services Solid Waste Midwest LLC,Services,$121.55 ,9/25/2018
Advanced Disposal Services Solid Waste Midwest LLC,Services,$450.36 ,9/28/2018
Advanced Disposal Services Solid Waste Midwest LLC,Services,$197.76 ,10/19/2018
Advanced Disposal Services Solid Waste Midwest LLC,Services,$100.00 ,10/23/2018
Advanced Disposal Services Solid Waste Midwest LLC,Services,$429.28 ,10/30/2018
Advanced Disposal Services Solid Waste Midwest LLC,Services,$536.55 ,11/2/2018
Advanced Disposal Services Solid Waste Midwest LLC,Services,$65.92 ,11/27/2018
Advanced Disposal Services Solid Waste Midwest LLC,Services,$97.16 ,12/4/2018
Advanced Disposal Services Solid Waste Midwest LLC,Services,$314.64 ,12/7/2018
Advanced Disposal Services Solid Waste Midwest LLC,Services,$415.00 ,12/14/2018
Advantage Marketing Group Ltd,Materials and Supplies,$144.05 ,1/19/2018
Advantage Marketing Group Ltd,Services,$524.43 ,1/19/2018
Advantage Marketing Group Ltd,Materials and Supplies,$143.24 ,2/16/2018
Advantage Marketing Group Ltd,Services,$519.27 ,2/16/2018
Advantage Marketing Group Ltd,Services,$666.34 ,3/13/2018
Advantage Marketing Group Ltd,Services,$652.74 ,4/6/2018
Advantage Marketing Group Ltd,Services,$651.11 ,5/15/2018
Advantage Marketing Group Ltd,Materials and Supplies,$141.42 ,6/22/2018
Advantage Marketing Group Ltd,Services,$508.61 ,6/22/2018
Advantage Marketing Group Ltd,Services,$638.61 ,7/24/2018
Advantage Marketing Group Ltd,Services,$585.89 ,9/14/2018
Advantage Marketing Group Ltd,Materials and Supplies,$138.64 ,10/26/2018
Advantage Marketing Group Ltd,Services,$490.73 ,10/26/2018
Advantage Marketing Group Ltd,Materials and Supplies,$131.25 ,11/13/2018
Advantage Marketing Group Ltd,Services,$510.08 ,11/13/2018
Advantage Marketing Group Ltd,Materials and Supplies,$137.40 ,12/14/2018
Advantage Marketing Group Ltd,Services,"$1,113.73 ",12/14/2018
Advantage Technologies Inc,Services,"$13,925.00 ",11/2/2018
Advantage Trailers & Hitches,Services,"$2,375.58 ",11/13/2018
Adventus,Miscellaneous,$522.00 ,3/30/2018
Advocate,Services,"$1,997.00 ",1/4/2018
Advocate,Services,$676.00 ,1/9/2018
Advocate,Services,"$2,573.00 ",1/30/2018
Advocate,Services,"$6,430.00 ",2/2/2018
Advocate,Services,$48.00 ,2/16/2018
Advocate,Services,"$1,114.00 ",2/23/2018
Advocate,Services,"$2,056.00 ",2/27/2018
Advocate,Services,"$2,467.00 ",3/2/2018
Advocate,Services,$590.00 ,3/6/2018
Advocate,Services,$171.00 ,3/20/2018
Advocate,Services,"$4,340.00 ",3/30/2018
Advocate,Services,"$1,156.00 ",5/4/2018
Advocate,Services,"$3,327.00 ",5/8/2018
Advocate,Services,"$2,790.00 ",6/5/2018
Advocate,Services,"$3,871.00 ",6/22/2018
Advocate,Services,"$1,104.00 ",6/26/2018
Advocate,Services,"$1,285.00 ",6/29/2018
Advocate,Services,"$2,014.00 ",7/27/2018
Advocate,Services,"$2,478.00 ",8/3/2018
Advocate,Services,"$1,397.00 ",8/10/2018
Advocate,Services,$823.00 ,9/6/2018
Advocate,Services,"$3,040.00 ",9/28/2018
Advocate,Services,"$1,444.00 ",10/19/2018
Advocate,Services,"$2,528.00 ",10/23/2018
Advocate,Services,"$11,234.00 ",10/30/2018
Advocate,Services,$38.00 ,11/2/2018
Advocate,Services,"$6,727.00 ",12/14/2018
Advocate,Services,"$3,405.00 ",12/28/2018
Advocate Health Care,Purchased Transportation,$150.00 ,1/19/2018
Aetna Truck Parts Inc,Miscellaneous,"$7,875.22 ",10/23/2018
Ahead Of Our Time Publishing,Miscellaneous,$500.00 ,7/27/2018
AICPA - American Institute of CPAs,Miscellaneous,$465.00 ,6/22/2018
AICPA - American Institute of CPAs,Miscellaneous,$465.00 ,7/6/2018
AICPA - American Institute of CPAs,Miscellaneous,"$1,100.00 ",7/17/2018
AICPA - American Institute of CPAs,Miscellaneous,$465.00 ,7/20/2018
Airport Electric Company,Equipment,"$231,630.70 ",4/10/2018
Airport Electric Company,Building/Bldg Improvement,"$39,337.27 ",5/4/2018
Airport Electric Company,Building/Bldg Improvement,"$3,273.41 ",7/6/2018
Airstream Pressure Washing Inc,Services,"$5,440.00 ",2/6/2018
Airstream Pressure Washing Inc,Services,"$11,280.00 ",3/6/2018
Airstream Pressure Washing Inc,Services,"$5,720.00 ",4/20/2018
Airstream Pressure Washing Inc,Services,"$5,720.00 ",5/11/2018
Airstream Pressure Washing Inc,Services,"$5,720.00 ",7/10/2018
Airstream Pressure Washing Inc,Services,"$5,720.00 ",7/24/2018
Airstream Pressure Washing Inc,Services,"$5,740.00 ",8/10/2018
Airstream Pressure Washing Inc,Services,"$6,160.00 ",9/11/2018
Airstream Pressure Washing Inc,Services,"$5,240.00 ",10/19/2018
Airstream Pressure Washing Inc,Services,"$6,160.00 ",12/4/2018
Airstream Pressure Washing Inc,Services,"$5,740.00 ",12/18/2018
AKA Comp Solutions Inc,Miscellaneous,"$15,708.00 ",3/30/2018
AKA Comp Solutions Inc,Services,"$10,855.00 ",3/30/2018
AKA Comp Solutions Inc,Services,"$39,446.00 ",5/8/2018
AKA Comp Solutions Inc,Equipment,"$66,060.00 ",7/6/2018
AKA Comp Solutions Inc,Equipment,"$73,750.00 ",8/31/2018
AKA Comp Solutions Inc,Equipment,"$19,000.00 ",9/28/2018
AKA Comp Solutions Inc,Equipment,"$79,075.00 ",10/5/2018
AKA Comp Solutions Inc,Equipment,"$3,659.69 ",10/19/2018
AKA Comp Solutions Inc,Equipment,"$19,000.00 ",11/30/2018
AKA Comp Solutions Inc,Equipment,"$18,534.57 ",12/14/2018
Alarm Detection Systems Of Illinois,Services,$60.00 ,1/26/2018
Alarm Detection Systems Of Illinois,Services,$812.40 ,1/30/2018
Alarm Detection Systems Of Illinois,Services,$900.00 ,2/2/2018
Alarm Detection Systems Of Illinois,Services,$212.52 ,4/6/2018
Alarm Detection Systems Of Illinois,Services,$960.00 ,5/15/2018
Alarm Detection Systems Of Illinois,Services,$603.00 ,6/8/2018
Alarm Detection Systems Of Illinois,Services,$272.52 ,7/6/2018
Alarm Detection Systems Of Illinois,Services,$900.00 ,7/13/2018
Alarm Detection Systems Of Illinois,Services,$603.00 ,7/17/2018
Alarm Detection Systems Of Illinois,Services,$663.00 ,9/25/2018
Alarm Detection Systems Of Illinois,Services,"$1,112.52 ",9/28/2018
ALGO LLC,Leases and Rentals,"$19,377.33 ",2/2/2018
ALGO LLC,Leases and Rentals,"$19,377.33 ",3/2/2018
ALGO LLC,Leases and Rentals,"$19,377.33 ",3/23/2018
ALGO LLC,Leases and Rentals,"$19,377.33 ",5/1/2018
ALGO LLC,Leases and Rentals,"$19,377.33 ",5/31/2018
ALGO LLC,Leases and Rentals,"$19,377.33 ",7/6/2018
ALGO LLC,Leases and Rentals,"$19,377.33 ",7/20/2018
ALGO LLC,Leases and Rentals,"$19,377.33 ",8/28/2018
ALGO LLC,Leases and Rentals,"$19,377.33 ",9/25/2018
ALGO LLC,Leases and Rentals,"$19,377.33 ",11/6/2018
ALGO LLC,Leases and Rentals,"$21,592.21 ",11/27/2018
ALGO LLC,Leases and Rentals,"$19,931.05 ",12/21/2018
Algonquin & Wilke Currency Exchange,Miscellaneous,$50.00 ,3/9/2018
All American Auto Body,Services,"$18,523.31 ",1/9/2018
Alliance Taxi,Purchased Transportation,"$83,787.83 ",1/4/2018
Alliance Taxi,Purchased Transportation,"$76,222.77 ",2/6/2018
Alliance Taxi,Purchased Transportation,"$86,268.70 ",3/20/2018
Alliance Taxi,Purchased Transportation,"$81,352.28 ",4/10/2018
Alliance Taxi,Purchased Transportation,"$88,221.46 ",5/4/2018
Alliance Taxi,Purchased Transportation,"$86,729.44 ",6/8/2018
Alliance Taxi,Purchased Transportation,"$85,389.54 ",7/13/2018
Alliance Taxi,Purchased Transportation,"$81,669.25 ",8/17/2018
Alliance Taxi,Purchased Transportation,"$154,749.96 ",10/5/2018
Alliance Taxi,Purchased Transportation,"$94,192.82 ",11/9/2018
Alliance Taxi,Purchased Transportation,"$106,455.05 ",11/30/2018
Alliance Taxi,Purchased Transportation,"$92,262.91 ",12/28/2018
Allied Wire & Cable Inc,Materials and Supplies,"$1,092.31 ",1/19/2018
Allied Wire & Cable Inc,Materials and Supplies,"$2,513.28 ",4/24/2018
Allied Wire & Cable Inc,Materials and Supplies,$865.25 ,5/22/2018
Alpha Building Maintenance Services Inc,Services,"$1,732.00 ",1/9/2018
Alpha Building Maintenance Services Inc,Services,$866.00 ,2/2/2018
Alpha Building Maintenance Services Inc,Services,$866.00 ,3/9/2018
Alpha Building Maintenance Services Inc,Services,$866.00 ,5/4/2018
Alpha Building Maintenance Services Inc,Services,$866.00 ,5/22/2018
Alpha Building Maintenance Services Inc,Services,"$1,732.00 ",7/6/2018
Alpha Building Maintenance Services Inc,Services,$866.00 ,8/31/2018
Alpha Building Maintenance Services Inc,Services,"$1,801.98 ",10/16/2018
Alpha Building Maintenance Services Inc,Services,$900.99 ,11/13/2018
Alvarez Inc,Services,$321.03 ,5/11/2018
Alvarez Inc,Services,$321.03 ,6/22/2018
Alvarez Inc,Services,$321.03 ,7/20/2018
Alvarez Inc,Services,$321.03 ,8/3/2018
Alvarez Inc,Services,$321.03 ,9/14/2018
Alvarez Inc,Services,$843.92 ,9/28/2018
Alvarez Inc,Services,$630.99 ,10/5/2018
Alvarez Inc,Services,$630.99 ,11/6/2018
Alvarez Inc,Services,$630.99 ,12/28/2018
AM Best Company,Miscellaneous,$303.00 ,4/10/2018
Amalgamated Services Inc,Services,"$1,275.87 ",3/6/2018
Amalgamated Services Inc,Services,"$7,602.81 ",3/9/2018
Amalgamated Services Inc,Services,$880.64 ,8/24/2018
Amalgamated Services Inc,Services,$432.50 ,9/14/2018
Amalgamated Services Inc,Services,$619.27 ,12/28/2018
Amalgamated Transit Union Local 241,Services,"$125,000.00 ",12/14/2018
Amalgamated Transit Union Local 241,Services,"$125,000.00 ",12/21/2018
AMC Theatres National Sales,Miscellaneous,$9.95 ,6/5/2018
American Association Of Geographers,Miscellaneous,$180.00 ,6/8/2018
American Association of Notaries Inc,Miscellaneous,$32.90 ,7/20/2018
American Brake & Clutch Inc,Fuel/Parts Inventory,"$5,220.00 ",2/16/2018
American Brake & Clutch Inc,Fuel/Parts Inventory,$990.00 ,4/3/2018
American Brake & Clutch Inc,Fuel/Parts Inventory,"$2,700.00 ",5/4/2018
American Brake & Clutch Inc,Fuel/Parts Inventory,$990.00 ,7/6/2018
American Brake & Clutch Inc,Fuel/Parts Inventory,"$2,430.00 ",10/19/2018
American Brake & Clutch Inc,Fuel/Parts Inventory,$990.00 ,11/16/2018
American Brake & Clutch Inc,Fuel/Parts Inventory,"$2,430.00 ",12/21/2018
American Management Assoc,Services,"$2,295.00 ",1/4/2018
American Management Assoc,Services,"$1,795.00 ",1/19/2018
American Management Assoc,Services,"$1,695.00 ",3/2/2018
American Management Assoc,Services,"$1,495.00 ",3/13/2018
American Management Assoc,Services,"$1,895.00 ",3/16/2018
American Management Assoc,Services,"$3,790.00 ",3/27/2018
American Management Assoc,Services,"$1,495.00 ",4/13/2018
American Management Assoc,Services,"$3,885.00 ",5/4/2018
American Management Assoc,Services,"$1,745.00 ",5/31/2018
American Management Assoc,Services,"$8,470.00 ",6/12/2018
American Management Assoc,Services,"$1,495.00 ",6/22/2018
American Management Assoc,Services,"$2,195.00 ",7/27/2018
American Management Assoc,Services,"$2,095.00 ",8/31/2018
American Management Assoc,Services,"$1,995.00 ",9/6/2018
American Management Assoc,Services,"$3,090.00 ",9/18/2018
American Planning Association,Miscellaneous,$331.00 ,1/4/2018
American Planning Association,Miscellaneous,$411.00 ,2/2/2018
American Planning Association,Miscellaneous,$338.00 ,2/16/2018
American Planning Association,Services,$469.00 ,4/27/2018
American Planning Association,Miscellaneous,$431.00 ,5/31/2018
American Planning Association,Miscellaneous,$95.00 ,8/10/2018
American Planning Association,Miscellaneous,$514.00 ,10/5/2018
American Planning Association,Miscellaneous,$473.00 ,11/2/2018
American Public Transportation Assoc - APTA,Miscellaneous,$375.00 ,3/23/2018
American Public Transportation Assoc - APTA,Services,"$1,850.00 ",9/6/2018
American Public Works Association,Miscellaneous,$196.00 ,5/18/2018
American Snow Removal Service,Services,"$1,450.00 ",1/9/2018
American Snow Removal Service,Services,$725.00 ,1/19/2018
American Snow Removal Service,Services,"$1,450.00 ",1/26/2018
American Snow Removal Service,Services,$725.00 ,2/2/2018
American Snow Removal Service,Services,$725.00 ,2/8/2018
American Snow Removal Service,Services,"$1,640.00 ",2/13/2018
American Snow Removal Service,Services,"$2,555.00 ",2/23/2018
American Snow Removal Service,Services,"$3,555.00 ",3/9/2018
American Snow Removal Service,Services,$190.00 ,3/16/2018
American Snow Removal Service,Services,$190.00 ,3/27/2018
American Snow Removal Service,Services,$190.00 ,5/1/2018
American Snow Removal Service,Services,$190.00 ,5/15/2018
American Society of Civil Engineers,Miscellaneous,$275.00 ,11/30/2018
American Welding & Gas,Materials and Supplies,$30.00 ,1/12/2018
American Welding & Gas,Materials and Supplies,$221.40 ,1/19/2018
American Welding & Gas,Materials and Supplies,$30.00 ,2/13/2018
American Welding & Gas,Materials and Supplies,$221.40 ,2/27/2018
American Welding & Gas,Materials and Supplies,$89.40 ,3/9/2018
American Welding & Gas,Materials and Supplies,$162.00 ,3/20/2018
American Welding & Gas,Materials and Supplies,$31.00 ,4/10/2018
American Welding & Gas,Materials and Supplies,$59.40 ,5/8/2018
American Welding & Gas,Materials and Supplies,$91.40 ,5/18/2018
American Welding & Gas,Materials and Supplies,$161.00 ,5/22/2018
American Welding & Gas,Materials and Supplies,$162.00 ,6/8/2018
American Welding & Gas,Materials and Supplies,$252.40 ,7/6/2018
American Welding & Gas,Materials and Supplies,$252.40 ,7/20/2018
American Welding & Gas,Materials and Supplies,$90.40 ,8/7/2018
American Welding & Gas,Materials and Supplies,$162.00 ,8/10/2018
American Welding & Gas,Materials and Supplies,$59.40 ,9/11/2018
American Welding & Gas,Materials and Supplies,$31.00 ,9/14/2018
American Welding & Gas,Materials and Supplies,$162.00 ,9/25/2018
American Welding & Gas,Materials and Supplies,$90.40 ,10/12/2018
American Welding & Gas,Materials and Supplies,$162.00 ,10/23/2018
American Welding & Gas,Materials and Supplies,$89.40 ,11/16/2018
American Welding & Gas,Services,$215.50 ,11/16/2018
American Welding & Gas,Services,$133.70 ,11/20/2018
American Welding & Gas,Services,$133.66 ,11/27/2018
American Welding & Gas,Materials and Supplies,$162.00 ,11/30/2018
American Welding & Gas,Services,$64.96 ,12/18/2018
American Welding & Gas,Materials and Supplies,$138.45 ,12/21/2018
ANA Laboratories Inc,Materials and Supplies,"$2,124.00 ",1/9/2018
ANA Laboratories Inc,Materials and Supplies,$472.00 ,1/12/2018
ANA Laboratories Inc,Materials and Supplies,$944.00 ,1/30/2018
ANA Laboratories Inc,Materials and Supplies,$944.00 ,2/2/2018
ANA Laboratories Inc,Materials and Supplies,"$3,068.00 ",2/23/2018
ANA Laboratories Inc,Materials and Supplies,$472.00 ,2/27/2018
ANA Laboratories Inc,Materials and Supplies,$472.00 ,3/9/2018
ANA Laboratories Inc,Materials and Supplies,$708.00 ,3/13/2018
ANA Laboratories Inc,Materials and Supplies,$708.00 ,3/23/2018
ANA Laboratories Inc,Materials and Supplies,$708.00 ,3/27/2018
ANA Laboratories Inc,Materials and Supplies,"$1,180.00 ",3/30/2018
ANA Laboratories Inc,Materials and Supplies,$708.00 ,4/10/2018
ANA Laboratories Inc,Materials and Supplies,$944.00 ,4/13/2018
ANA Laboratories Inc,Materials and Supplies,"$1,416.00 ",5/1/2018
ANA Laboratories Inc,Materials and Supplies,$294.00 ,5/4/2018
ANA Laboratories Inc,Materials and Supplies,$58.00 ,5/11/2018
ANA Laboratories Inc,Materials and Supplies,$236.00 ,5/15/2018
ANA Laboratories Inc,Materials and Supplies,$236.00 ,5/22/2018
ANA Laboratories Inc,Materials and Supplies,$472.00 ,5/25/2018
ANA Laboratories Inc,Materials and Supplies,$29.00 ,5/31/2018
ANA Laboratories Inc,Materials and Supplies,$58.00 ,6/22/2018
ANA Laboratories Inc,Materials and Supplies,$236.00 ,7/6/2018
ANA Laboratories Inc,Materials and Supplies,$472.00 ,7/13/2018
ANA Laboratories Inc,Materials and Supplies,$29.00 ,7/17/2018
ANA Laboratories Inc,Materials and Supplies,$236.00 ,7/27/2018
ANA Laboratories Inc,Services,$255.00 ,7/27/2018
ANA Laboratories Inc,Materials and Supplies,$472.00 ,8/3/2018
ANA Laboratories Inc,Materials and Supplies,$236.00 ,8/31/2018
ANA Laboratories Inc,Materials and Supplies,$236.00 ,9/21/2018
ANA Laboratories Inc,Materials and Supplies,$29.00 ,9/25/2018
ANA Laboratories Inc,Materials and Supplies,$236.00 ,10/5/2018
ANA Laboratories Inc,Materials and Supplies,"$1,914.00 ",12/21/2018
Analytical Intel LLC,Services,"$24,990.00 ",1/12/2018
Analytical Intel LLC,Services,"$5,640.00 ",3/2/2018
Ancel Glink Diamond Bush DiCianni &,Services,"$22,366.25 ",1/12/2018
Ancel Glink Diamond Bush DiCianni &,Services,"$4,112.37 ",2/23/2018
Ancel Glink Diamond Bush DiCianni &,Services,"$2,578.75 ",3/2/2018
Ancel Glink Diamond Bush DiCianni &,Services,"$9,250.00 ",4/6/2018
Ancel Glink Diamond Bush DiCianni &,Services,"$16,528.75 ",4/20/2018
Ancel Glink Diamond Bush DiCianni &,Services,"$21,251.25 ",5/18/2018
Ancel Glink Diamond Bush DiCianni &,Services,"$26,851.10 ",6/22/2018
Ancel Glink Diamond Bush DiCianni &,Services,"$29,625.31 ",7/27/2018
Ancel Glink Diamond Bush DiCianni &,Services,"$27,651.98 ",8/21/2018
Ancel Glink Diamond Bush DiCianni &,Services,"$20,430.00 ",9/18/2018
Ancel Glink Diamond Bush DiCianni &,Services,"$13,327.50 ",10/12/2018
Ancel Glink Diamond Bush DiCianni &,Services,"$23,913.75 ",11/20/2018
Ancel Glink Diamond Bush DiCianni &,Services,"$40,707.50 ",12/28/2018
Anderson Elevator Company,Services,$150.00 ,7/24/2018
Anderson Elevator Company,Services,$150.00 ,11/2/2018
Anderson Lock,Services,"$1,150.95 ",2/6/2018
Anderson Lock,Services,"$1,224.93 ",3/16/2018
Anderson Lock,Services,"$3,544.25 ",5/11/2018
Anderson Lock,Services,$630.25 ,5/31/2018
Anderson Lock,Services,$300.00 ,6/12/2018
Anderson Lock,Services,$375.00 ,6/29/2018
Anderson Lock,Services,$757.50 ,9/25/2018
Anderson Lock,Services,$994.00 ,10/23/2018
Anderson Lock,Services,$225.00 ,12/7/2018
Anderson Lock,Services,"$2,103.02 ",12/21/2018
Angelicas Bakery,Services,$188.12 ,5/18/2018
Angelicas Bakery,Services,$190.16 ,11/7/2018
Angelicas Bakery,Services,$75.65 ,12/11/2018
Ann S Kenis,Services,"$2,625.00 ",2/6/2018
Ann S Kenis,Services,"$2,450.00 ",3/2/2018
Anthony Roofing,Services,"$2,030.00 ",5/11/2018
Anthony Roofing,Services,"$2,495.00 ",7/27/2018
Anthony Roofing,Services,"$2,233.13 ",11/13/2018
APEX Material Handling Company,Materials and Supplies,$145.04 ,4/20/2018
APEX Material Handling Company,Materials and Supplies,$175.00 ,8/21/2018
APEX Material Handling Company,Materials and Supplies,$165.79 ,8/28/2018
APEX Material Handling Company,Services,"$4,377.53 ",8/31/2018
APEX Material Handling Company,Services,$244.55 ,9/21/2018
APEX Material Handling Company,Materials and Supplies,$401.72 ,11/13/2018
Apollo Video Technology,Materials and Supplies,$313.51 ,2/23/2018
Apollo Video Technology,Materials and Supplies,"$2,659.39 ",3/23/2018
Apollo Video Technology,Materials and Supplies,$801.46 ,4/3/2018
Apollo Video Technology,Services,"$15,627.50 ",4/13/2018
Apollo Video Technology,Services,"$15,627.50 ",4/17/2018
Apollo Video Technology,Materials and Supplies,$395.91 ,4/27/2018
Apollo Video Technology,Services,"$15,627.50 ",5/4/2018
Apollo Video Technology,Materials and Supplies,"$3,675.84 ",5/15/2018
Apollo Video Technology,Services,"$15,627.50 ",6/29/2018
Apollo Video Technology,Fuel/Parts Inventory,"$2,314.00 ",7/6/2018
Apollo Video Technology,Services,"$15,627.50 ",7/13/2018
Apollo Video Technology,Fuel/Parts Inventory,"$4,650.00 ",7/17/2018
Apollo Video Technology,Fuel/Parts Inventory,"$2,200.00 ",9/21/2018
Apollo Video Technology,Services,"$31,255.00 ",9/21/2018
Apollo Video Technology,Services,"$15,627.50 ",10/30/2018
Apollo Video Technology,Materials and Supplies,"$1,736.00 ",11/6/2018
Apollo Video Technology,Services,"$15,627.50 ",11/16/2018
Apollo Video Technology,Materials and Supplies,"$2,000.44 ",12/28/2018
Argon Electric Company Inc,Services,"$5,484.85 ",2/2/2018
Argon Electric Company Inc,Services,"$1,562.16 ",2/20/2018
Argon Electric Company Inc,Services,"$1,177.82 ",8/10/2018
Argon Electric Company Inc,Services,"$2,177.00 ",10/5/2018
Argon Electric Company Inc,Services,"$1,218.00 ",10/9/2018
Arlington Car Wash & Detail Inc,Services,$187.95 ,1/12/2018
Arlington Car Wash & Detail Inc,Services,"$1,048.50 ",2/13/2018
Arlington Car Wash & Detail Inc,Services,$316.20 ,2/23/2018
Arlington Car Wash & Detail Inc,Services,$488.45 ,3/9/2018
Arlington Car Wash & Detail Inc,Services,$190.90 ,3/16/2018
Arlington Car Wash & Detail Inc,Services,$376.35 ,4/13/2018
Arlington Car Wash & Detail Inc,Services,$238.65 ,4/27/2018
Arlington Car Wash & Detail Inc,Services,$214.80 ,5/11/2018
Arlington Car Wash & Detail Inc,Services,$268.50 ,5/15/2018
Arlington Car Wash & Detail Inc,Services,$481.20 ,6/22/2018
Arlington Car Wash & Detail Inc,Services,$161.10 ,7/6/2018
Arlington Car Wash & Detail Inc,Services,$365.00 ,7/10/2018
Arlington Car Wash & Detail Inc,Services,$596.15 ,8/10/2018
Arlington Car Wash & Detail Inc,Services,$368.00 ,9/21/2018
Arlington Car Wash & Detail Inc,Services,$359.00 ,9/25/2018
Arlington Car Wash & Detail Inc,Services,$588.00 ,10/12/2018
Arlington Car Wash & Detail Inc,Services,$260.00 ,10/26/2018
Arlington Car Wash & Detail Inc,Services,$262.00 ,11/16/2018
Arlington Car Wash & Detail Inc,Services,$262.00 ,11/27/2018
Arlington Car Wash & Detail Inc,Services,$220.00 ,12/21/2018
Arlington Hts Chamber Of Commerce,Miscellaneous,$335.00 ,2/16/2018
Arlington Power Equipment Inc,Materials and Supplies,"$3,472.00 ",8/10/2018
Arrow Messenger Service,Miscellaneous,$77.10 ,1/4/2018
Arrow Messenger Service,Miscellaneous,$77.10 ,1/9/2018
Arrow Messenger Service,Miscellaneous,$77.10 ,1/12/2018
Arrow Messenger Service,Miscellaneous,$51.40 ,1/19/2018
Arrow Messenger Service,Miscellaneous,$51.40 ,1/26/2018
Arrow Messenger Service,Miscellaneous,$77.10 ,2/6/2018
Arrow Messenger Service,Miscellaneous,$77.10 ,2/16/2018
Arrow Messenger Service,Miscellaneous,$77.10 ,2/27/2018
Arrow Messenger Service,Miscellaneous,$77.10 ,3/2/2018
Arrow Messenger Service,Miscellaneous,$77.10 ,3/9/2018
Arrow Messenger Service,Miscellaneous,$128.50 ,3/16/2018
Arrow Messenger Service,Miscellaneous,$77.10 ,3/27/2018
Arrow Messenger Service,Miscellaneous,$154.20 ,4/10/2018
Arrow Messenger Service,Miscellaneous,$77.10 ,4/17/2018
Arrow Messenger Service,Miscellaneous,$154.20 ,4/27/2018
Arrow Messenger Service,Miscellaneous,$77.10 ,5/4/2018
Arrow Messenger Service,Miscellaneous,$77.10 ,5/11/2018
Arrow Messenger Service,Miscellaneous,$154.20 ,5/22/2018
Arrow Messenger Service,Miscellaneous,$154.20 ,6/8/2018
Arrow Messenger Service,Miscellaneous,$77.10 ,6/22/2018
Arrow Messenger Service,Miscellaneous,$51.40 ,6/26/2018
Arrow Messenger Service,Miscellaneous,$308.40 ,7/13/2018
Arrow Messenger Service,Miscellaneous,$128.50 ,8/3/2018
Arrow Messenger Service,Miscellaneous,$154.20 ,8/10/2018
Arrow Messenger Service,Miscellaneous,$77.10 ,8/24/2018
Arrow Messenger Service,Miscellaneous,$77.10 ,8/28/2018
Arrow Messenger Service,Miscellaneous,$77.10 ,9/11/2018
Arrow Messenger Service,Miscellaneous,$77.10 ,9/21/2018
Arrow Messenger Service,Miscellaneous,$128.50 ,10/2/2018
Arrow Messenger Service,Miscellaneous,$77.10 ,10/9/2018
Arrow Messenger Service,Miscellaneous,$154.20 ,10/23/2018
Arrow Messenger Service,Miscellaneous,$128.50 ,10/30/2018
Arrow Messenger Service,Miscellaneous,$77.10 ,11/2/2018
Arrow Messenger Service,Miscellaneous,$77.10 ,11/16/2018
Arrow Messenger Service,Miscellaneous,$154.20 ,11/30/2018
Arrow Messenger Service,Miscellaneous,$115.28 ,12/14/2018
Arrow Uniform Rental,Services,$53.76 ,3/20/2018
Artlow Systems Inc,Services,"$10,819.20 ",1/26/2018
Ashlee Mosser,Purchased Transportation,$17.75 ,5/25/2018
Ashrae,Services,$259.00 ,7/13/2018
ASPEN Refrigerants Inc,Fuel/Parts Inventory,"$1,584.70 ",7/17/2018
ASPEN Refrigerants Inc,Materials and Supplies,$400.00 ,7/17/2018
ASPEN Refrigerants Inc,Fuel/Parts Inventory,"$1,584.70 ",7/24/2018
ASPEN Refrigerants Inc,Materials and Supplies,$200.00 ,7/24/2018
ASPEN Refrigerants Inc,Fuel/Parts Inventory,"$2,377.05 ",9/11/2018
ASPEN Refrigerants Inc,Materials and Supplies,$400.00 ,9/11/2018
Associated Technical Services LTD,Services,$784.00 ,1/12/2018
Association For Commuter Transportation,Miscellaneous,$575.00 ,1/12/2018
Association of Certified Fraud,Miscellaneous,$225.00 ,11/20/2018
Association of Licensed Architects,Miscellaneous,$235.00 ,12/4/2018
Association of Local Government Auditors,Services,"$5,284.46 ",4/20/2018
Association of Local Government Auditors,Miscellaneous,$550.00 ,5/25/2018
AT&T,Services,"$53,441.49 ",1/4/2018
AT&T,Utilities,"$2,043.50 ",1/4/2018
AT&T,Utilities,$255.13 ,1/9/2018
AT&T,Services,"$126,650.93 ",1/12/2018
AT&T,Utilities,"$11,285.52 ",1/12/2018
AT&T,Utilities,$186.03 ,1/16/2018
AT&T,Services,"$27,517.97 ",1/19/2018
AT&T,Utilities,"$10,477.69 ",1/19/2018
AT&T,Services,"$12,139.10 ",1/23/2018
AT&T,Utilities,$90.48 ,1/23/2018
AT&T,Services,"$33,756.60 ",1/26/2018
AT&T,Utilities,$836.78 ,1/26/2018
AT&T,Services,"$14,250.50 ",1/30/2018
AT&T,Utilities,"$1,139.29 ",1/30/2018
AT&T,Services,"$81,858.08 ",2/2/2018
AT&T,Utilities,"$1,259.19 ",2/2/2018
AT&T,Services,"$2,120.91 ",2/6/2018
AT&T,Utilities,$102.63 ,2/6/2018
AT&T,Services,$647.66 ,2/8/2018
AT&T,Utilities,$216.90 ,2/8/2018
AT&T,Utilities,$201.42 ,2/13/2018
AT&T,Services,"$20,352.53 ",2/16/2018
AT&T,Utilities,"$10,560.88 ",2/16/2018
AT&T,Services,$98.04 ,2/20/2018
AT&T,Services,"$12,359.80 ",2/23/2018
AT&T,Utilities,$98.04 ,2/23/2018
AT&T,Services,"$34,900.61 ",2/27/2018
AT&T,Utilities,$102.13 ,2/27/2018
AT&T,Services,"$7,147.66 ",3/2/2018
AT&T,Utilities,"$1,245.90 ",3/2/2018
AT&T,Utilities,"$1,261.13 ",3/6/2018
AT&T,Services,"$37,465.56 ",3/9/2018
AT&T,Utilities,$161.95 ,3/9/2018
AT&T,Services,"$4,082.49 ",3/13/2018
AT&T,Utilities,$738.92 ,3/13/2018
AT&T,Services,"$1,500.00 ",3/16/2018
AT&T,Utilities,$84.74 ,3/20/2018
AT&T,Services,$102.22 ,3/23/2018
AT&T,Utilities,$990.96 ,3/23/2018
AT&T,Services,"$46,149.99 ",3/27/2018
AT&T,Services,"$27,604.91 ",3/30/2018
AT&T,Utilities,"$12,643.94 ",3/30/2018
AT&T,Services,"$17,912.78 ",4/3/2018
AT&T,Utilities,$97.42 ,4/3/2018
AT&T,Services,"$6,531.52 ",4/6/2018
AT&T,Utilities,$738.52 ,4/6/2018
AT&T,Services,"$31,793.24 ",4/10/2018
AT&T,Utilities,$50.73 ,4/10/2018
AT&T,Utilities,$198.46 ,4/13/2018
AT&T,Services,"$19,201.15 ",4/17/2018
AT&T,Utilities,"$10,795.30 ",4/17/2018
AT&T,Services,"$47,443.64 ",4/20/2018
AT&T,Utilities,$697.62 ,4/20/2018
AT&T,Services,$4.18 ,4/24/2018
AT&T,Utilities,$97.89 ,4/24/2018
AT&T,Services,"$39,245.68 ",4/27/2018
AT&T,Utilities,"$2,475.67 ",4/27/2018
AT&T,Utilities,$541.13 ,5/1/2018
AT&T,Services,"$2,415.02 ",5/4/2018
AT&T,Utilities,$97.27 ,5/4/2018
AT&T,Services,"$2,961.94 ",5/8/2018
AT&T,Services,"$16,874.27 ",5/11/2018
AT&T,Utilities,"$11,093.93 ",5/11/2018
AT&T,Utilities,$97.94 ,5/15/2018
AT&T,Services,"$1,597.94 ",5/18/2018
AT&T,Services,"$35,534.49 ",5/22/2018
AT&T,Utilities,$199.68 ,5/22/2018
AT&T,Services,"$12,249.02 ",5/25/2018
AT&T,Utilities,$492.15 ,5/25/2018
AT&T,Services,"$10,672.70 ",5/31/2018
AT&T,Utilities,"$1,612.95 ",5/31/2018
AT&T,Services,"$1,530.04 ",6/5/2018
AT&T,Utilities,$708.28 ,6/5/2018
AT&T,Services,"$2,393.34 ",6/8/2018
AT&T,Utilities,$827.92 ,6/8/2018
AT&T,Utilities,$97.94 ,6/12/2018
AT&T,Services,"$18,696.02 ",6/22/2018
AT&T,Utilities,"$10,802.78 ",6/22/2018
AT&T,Services,$255.73 ,6/26/2018
AT&T,Utilities,$195.60 ,6/26/2018
AT&T,Services,"$21,631.86 ",6/29/2018
AT&T,Utilities,"$2,754.07 ",6/29/2018
AT&T,Services,"$36,037.58 ",7/6/2018
AT&T,Utilities,$96.31 ,7/6/2018
AT&T,Services,"$2,265.18 ",7/10/2018
AT&T,Utilities,$186.11 ,7/10/2018
AT&T,Services,"$55,305.06 ",7/13/2018
AT&T,Utilities,$602.81 ,7/13/2018
AT&T,Services,"$55,148.75 ",7/20/2018
AT&T,Utilities,"$11,838.32 ",7/20/2018
AT&T,Services,"$12,139.10 ",7/24/2018
AT&T,Services,"$8,168.45 ",7/27/2018
AT&T,Utilities,"$2,227.52 ",7/27/2018
AT&T,Utilities,$637.82 ,7/31/2018
AT&T,Services,"$29,887.77 ",8/3/2018
AT&T,Utilities,$49.83 ,8/3/2018
AT&T,Services,"$21,070.06 ",8/10/2018
AT&T,Utilities,"$11,140.12 ",8/10/2018
AT&T,Utilities,$125.15 ,8/14/2018
AT&T,Services,$113.21 ,8/17/2018
AT&T,Utilities,$876.38 ,8/17/2018
AT&T,Services,"$35,068.32 ",8/21/2018
AT&T,Services,"$12,249.02 ",8/24/2018
AT&T,Utilities,$675.22 ,8/24/2018
AT&T,Services,$110.78 ,8/28/2018
AT&T,Services,"$38,355.40 ",8/31/2018
AT&T,Utilities,"$3,057.17 ",8/31/2018
AT&T,Services,"$19,416.65 ",9/11/2018
AT&T,Utilities,"$11,108.18 ",9/11/2018
AT&T,Utilities,$113.63 ,9/14/2018
AT&T,Utilities,$661.12 ,9/18/2018
AT&T,Services,"$13,756.32 ",9/21/2018
AT&T,Utilities,$227.05 ,9/21/2018
AT&T,Services,"$19,309.83 ",9/25/2018
AT&T,Services,"$8,178.33 ",9/28/2018
AT&T,Utilities,"$1,458.36 ",9/28/2018
AT&T,Utilities,"$1,644.40 ",10/2/2018
AT&T,Services,"$2,487.57 ",10/5/2018
AT&T,Utilities,$718.09 ,10/5/2018
AT&T,Services,"$30,282.42 ",10/12/2018
AT&T,Utilities,$475.93 ,10/12/2018
AT&T,Services,$598.22 ,10/16/2018
AT&T,Services,"$34,539.09 ",10/19/2018
AT&T,Utilities,$339.34 ,10/19/2018
AT&T,Utilities,$223.75 ,10/23/2018
AT&T,Services,"$299,562.75 ",10/26/2018
AT&T,Utilities,"$12,298.23 ",10/26/2018
AT&T,Services,"$12,412.14 ",10/30/2018
AT&T,Utilities,"$2,768.44 ",10/30/2018
AT&T,Services,"$2,320.57 ",11/2/2018
AT&T,Services,"$2,732.71 ",11/9/2018
AT&T,Utilities,$712.96 ,11/9/2018
AT&T,Services,"$1,319.21 ",11/13/2018
AT&T,Utilities,$114.12 ,11/13/2018
AT&T,Utilities,$212.13 ,11/16/2018
AT&T,Services,"$18,742.35 ",11/20/2018
AT&T,Utilities,"$11,330.78 ",11/20/2018
AT&T,Services,"$64,321.35 ",11/27/2018
AT&T,Services,"$48,516.73 ",12/4/2018
AT&T,Utilities,$562.84 ,12/4/2018
AT&T,Services,"$10,132.82 ",12/7/2018
AT&T,Utilities,$116.06 ,12/7/2018
AT&T,Utilities,"$3,493.33 ",12/11/2018
AT&T,Services,$779.63 ,12/14/2018
AT&T,Utilities,$211.94 ,12/14/2018
AT&T,Services,"$2,885.95 ",12/18/2018
AT&T,Services,$600.29 ,12/21/2018
AT&T,Utilities,$458.64 ,12/21/2018
AT&T,Services,"$69,516.31 ",12/28/2018
AT&T,Utilities,"$11,922.99 ",12/28/2018
AT&T Mobility National Accounts LLC,Utilities,"$13,587.97 ",1/4/2018
AT&T Mobility National Accounts LLC,Utilities,"$15,607.61 ",1/26/2018
AT&T Mobility National Accounts LLC,Utilities,"$3,619.43 ",2/27/2018
AT&T Mobility National Accounts LLC,Utilities,"$13,039.19 ",3/2/2018
AT&T Mobility National Accounts LLC,Utilities,"$15,799.53 ",3/30/2018
AT&T Mobility National Accounts LLC,Utilities,"$3,654.06 ",4/27/2018
AT&T Mobility National Accounts LLC,Utilities,"$13,128.62 ",5/4/2018
AT&T Mobility National Accounts LLC,Utilities,"$3,575.73 ",5/22/2018
AT&T Mobility National Accounts LLC,Utilities,"$16,477.87 ",5/31/2018
AT&T Mobility National Accounts LLC,Utilities,"$16,039.50 ",6/29/2018
AT&T Mobility National Accounts LLC,Utilities,"$3,757.74 ",7/27/2018
AT&T Mobility National Accounts LLC,Utilities,"$14,322.14 ",7/31/2018
AT&T Mobility National Accounts LLC,Utilities,"$3,738.49 ",9/6/2018
AT&T Mobility National Accounts LLC,Utilities,"$14,363.03 ",9/11/2018
AT&T Mobility National Accounts LLC,Utilities,"$18,098.50 ",10/2/2018
AT&T Mobility National Accounts LLC,Utilities,"$3,729.13 ",11/2/2018
AT&T Mobility National Accounts LLC,Utilities,"$14,540.15 ",11/9/2018
AT&T Mobility National Accounts LLC,Utilities,"$3,772.31 ",11/30/2018
AT&T Mobility National Accounts LLC,Utilities,"$13,891.57 ",12/7/2018
Atkinson-Baker Inc,Miscellaneous,"$1,866.00 ",1/30/2018
Atkinson-Baker Inc,Miscellaneous,$366.50 ,12/18/2018
Atlas Bobcat Inc,Services,$350.95 ,1/30/2018
Atlas Copco Compressors LLC,Services,$803.50 ,1/4/2018
Atlas Copco Compressors LLC,Materials and Supplies,"$2,186.00 ",1/9/2018
Atlas Copco Compressors LLC,Materials and Supplies,$267.00 ,1/19/2018
Atlas Copco Compressors LLC,Services,$675.50 ,1/19/2018
Atlas Copco Compressors LLC,Services,$546.53 ,2/2/2018
Atlas Copco Compressors LLC,Services,$134.00 ,2/8/2018
Atlas Copco Compressors LLC,Services,$300.00 ,4/6/2018
Atlas Copco Compressors LLC,Services,$567.00 ,5/8/2018
Atlas Copco Compressors LLC,Services,$914.75 ,5/31/2018
Atlas Copco Compressors LLC,Services,"$1,322.55 ",9/14/2018
Atlas Copco Compressors LLC,Services,"$1,776.51 ",10/9/2018
Atlas Copco Compressors LLC,Services,$567.00 ,10/30/2018
Atlas World Class Body Shop Inc,Casualty and Liability,"$1,494.00 ",2/16/2018
Atlas World Class Body Shop Inc,Services,"$10,606.00 ",2/16/2018
Atlas World Class Body Shop Inc,Casualty and Liability,"$5,386.00 ",2/27/2018
Atlas World Class Body Shop Inc,Casualty and Liability,"$1,474.00 ",3/2/2018
Atlas World Class Body Shop Inc,Services,"$10,574.00 ",3/2/2018
Atlas World Class Body Shop Inc,Services,"$23,346.00 ",4/6/2018
Atlas World Class Body Shop Inc,Casualty and Liability,"$9,713.00 ",5/8/2018
Atlas World Class Body Shop Inc,Services,"$2,760.00 ",6/8/2018
Atlas World Class Body Shop Inc,Casualty and Liability,"$10,138.00 ",6/12/2018
Atlas World Class Body Shop Inc,Casualty and Liability,"$2,928.00 ",7/13/2018
Atlas World Class Body Shop Inc,Casualty and Liability,"$10,207.00 ",8/7/2018
Atlas World Class Body Shop Inc,Services,$352.00 ,8/17/2018
Atlas World Class Body Shop Inc,Casualty and Liability,"$2,584.00 ",9/18/2018
Atlas World Class Body Shop Inc,Casualty and Liability,"$7,679.00 ",11/30/2018
Atlas World Class Body Shop Inc,Casualty and Liability,"$24,809.00 ",12/4/2018
Atlas World Class Body Shop Inc,Casualty and Liability,"$8,227.00 ",12/18/2018
Atlas World Class Body Shop Inc,Services,$658.00 ,12/28/2018
ATS Specialized LLC,Services,"$12,000.00 ",10/5/2018
Attorney Registration & Disciplinary,Miscellaneous,$385.00 ,1/23/2018
Attorney Registration & Disciplinary,Miscellaneous,$385.00 ,2/20/2018
Attorney Registration & Disciplinary,Miscellaneous,"$1,925.00 ",10/30/2018
Attorney Registration & Disciplinary,Miscellaneous,$770.00 ,11/13/2018
Attorney Registration & Disciplinary,Miscellaneous,$385.00 ,11/27/2018
Aurora Area Inerfaith Food Pantry,Miscellaneous,$522.00 ,3/30/2018
Aurora Regional Chamber,Miscellaneous,$500.00 ,7/6/2018
Aurora Township,Purchased Transportation,"$32,996.93 ",1/9/2018
Aurora Township,Purchased Transportation,"$29,199.81 ",1/30/2018
Aurora Township,Purchased Transportation,"$32,122.55 ",3/27/2018
Aurora Township,Purchased Transportation,"$28,702.90 ",4/6/2018
Aurora Township,Purchased Transportation,"$32,532.63 ",5/1/2018
Aurora Township,Purchased Transportation,"$35,407.86 ",6/5/2018
Aurora Township,Purchased Transportation,"$37,216.03 ",7/13/2018
Aurora Township,Purchased Transportation,"$29,195.48 ",7/31/2018
Aurora Township,Purchased Transportation,"$28,928.20 ",8/28/2018
Aurora Township,Purchased Transportation,"$30,398.26 ",10/12/2018
Aurora Township,Purchased Transportation,"$31,151.23 ",11/6/2018
Aurora Township,Purchased Transportation,"$39,662.07 ",12/4/2018
Aurora University,Services,"$4,080.00 ",5/31/2018
Aurora University,Services,$920.00 ,12/4/2018
Austin Electric,Services,"$1,863.00 ",1/4/2018
Austin Electric,Services,$710.00 ,1/12/2018
Austin Electric,Services,"$7,658.77 ",1/19/2018
Austin Electric,Services,"$2,246.40 ",1/23/2018
Austin Electric,Services,"$4,351.28 ",2/2/2018
Austin Electric,Services,$372.00 ,3/6/2018
Austin Electric,Services,"$9,672.57 ",3/20/2018
Austin Electric,Services,"$1,623.00 ",3/30/2018
Austin Electric,Services,"$4,607.08 ",5/25/2018
Austin Electric,Services,"$1,048.00 ",5/31/2018
Austin Electric,Services,"$1,057.00 ",6/22/2018
Austin Electric,Services,$335.00 ,7/31/2018
Austin Electric,Services,"$1,555.00 ",9/21/2018
Austin Electric,Services,$248.00 ,10/5/2018
Austin Electric,Services,"$1,107.00 ",10/19/2018
Austin Electric,Services,$372.00 ,10/26/2018
Austin Electric,Services,$928.50 ,12/4/2018
Austin Electric,Services,$809.00 ,12/14/2018
Avanti Global Resources,Services,$573.00 ,1/23/2018
Avanti Global Resources,Services,"$8,785.00 ",2/23/2018
Avanti Global Resources,Services,"$1,579.00 ",3/27/2018
Avanti Global Resources,Services,"$1,428.00 ",5/8/2018
Avanti Global Resources,Services,$664.00 ,6/26/2018
Avanti Global Resources,Services,$948.00 ,7/10/2018
Axiom Services Inc,Services,$125.55 ,4/20/2018
B & T Pump & Lube Service Inc,Materials and Supplies,$618.08 ,3/6/2018
B & T Pump & Lube Service Inc,Services,$295.85 ,8/14/2018
B & T Pump & Lube Service Inc,Materials and Supplies,$396.55 ,10/23/2018
B & T Pump & Lube Service Inc,Materials and Supplies,$895.80 ,11/2/2018
B&C Truck Electric Service Inc,Fuel/Parts Inventory,"$1,618.00 ",8/31/2018
B&C Truck Electric Service Inc,Fuel/Parts Inventory,"$3,954.00 ",9/25/2018
B&C Truck Electric Service Inc,Fuel/Parts Inventory,"$6,488.00 ",10/26/2018
B&C Truck Electric Service Inc,Fuel/Parts Inventory,$898.00 ,11/2/2018
B&C Truck Electric Service Inc,Fuel/Parts Inventory,"$9,500.00 ",11/6/2018
B&C Truck Electric Service Inc,Fuel/Parts Inventory,$537.00 ,11/16/2018
B&C Truck Electric Service Inc,Fuel/Parts Inventory,"$1,752.00 ",11/30/2018
B&C Truck Electric Service Inc,Fuel/Parts Inventory,"$10,200.00 ",12/14/2018
Back To Health Chiropractic Medical Ctr,Services,$830.00 ,2/23/2018
Back To Health Chiropractic Medical Ctr,Services,$317.00 ,3/13/2018
Back To Health Chiropractic Medical Ctr,Services,$407.00 ,4/13/2018
Back To Health Chiropractic Medical Ctr,Services,$845.00 ,5/18/2018
Back To Health Chiropractic Medical Ctr,Services,$513.00 ,6/22/2018
Back To Health Chiropractic Medical Ctr,Services,$966.00 ,7/17/2018
Back To Health Chiropractic Medical Ctr,Services,$603.00 ,8/14/2018
Back To Health Chiropractic Medical Ctr,Services,$672.00 ,9/11/2018
Back To Health Chiropractic Medical Ctr,Services,$695.00 ,10/16/2018
Back To Health Chiropractic Medical Ctr,Services,$772.00 ,11/27/2018
Back To Health Chiropractic Medical Ctr,Services,$967.00 ,12/18/2018
Baker Tilly Virchow Krause LLP,Services,"$9,000.00 ",2/20/2018
Baker Tilly Virchow Krause LLP,Services,"$11,000.00 ",3/20/2018
Baker Tilly Virchow Krause LLP,Services,"$40,000.00 ",4/17/2018
Baker Tilly Virchow Krause LLP,Services,"$16,000.00 ",6/22/2018
Baker Tilly Virchow Krause LLP,Services,"$5,147.00 ",7/10/2018
Bargain Trading Inc,Materials and Supplies,"$1,335.00 ",1/4/2018
Bargain Trading Inc,Materials and Supplies,"$2,437.98 ",1/12/2018
Bargain Trading Inc,Materials and Supplies,"$8,645.97 ",1/30/2018
Bargain Trading Inc,Materials and Supplies,"$3,937.97 ",2/6/2018
Bargain Trading Inc,Materials and Supplies,"$2,683.98 ",2/20/2018
Bargain Trading Inc,Materials and Supplies,"$1,727.00 ",3/30/2018
Bargain Trading Inc,Materials and Supplies,"$3,083.99 ",4/13/2018
Bargain Trading Inc,Materials and Supplies,"$1,360.00 ",4/27/2018
Bargain Trading Inc,Materials and Supplies,"$1,987.00 ",5/11/2018
Bargain Trading Inc,Materials and Supplies,"$5,804.32 ",5/25/2018
Bargain Trading Inc,Materials and Supplies,"$9,380.44 ",6/22/2018
Bargain Trading Inc,Materials and Supplies,"$2,750.97 ",6/29/2018
Bargain Trading Inc,Materials and Supplies,$900.00 ,7/6/2018
Bargain Trading Inc,Materials and Supplies,$278.99 ,7/17/2018
Bargain Trading Inc,Materials and Supplies,"$7,784.99 ",8/7/2018
Bargain Trading Inc,Materials and Supplies,"$1,460.00 ",8/17/2018
Bargain Trading Inc,Materials and Supplies,"$2,936.96 ",8/21/2018
Bargain Trading Inc,Materials and Supplies,$840.00 ,8/31/2018
Bargain Trading Inc,Materials and Supplies,"$1,177.00 ",9/6/2018
Bargain Trading Inc,Materials and Supplies,"$1,885.00 ",9/28/2018
Bargain Trading Inc,Materials and Supplies,"$5,920.96 ",10/9/2018
Bargain Trading Inc,Materials and Supplies,"$2,692.00 ",11/2/2018
Bargain Trading Inc,Materials and Supplies,"$4,375.99 ",11/30/2018
Bargain Trading Inc,Materials and Supplies,"$2,310.00 ",12/11/2018
Bargain Trading Inc,Materials and Supplies,$298.00 ,12/14/2018
Bargain Trading Inc,Materials and Supplies,"$1,890.00 ",12/21/2018
Bargain Trading Inc,Materials and Supplies,"$3,562.00 ",12/28/2018
Battery Service Corporation,Fuel/Parts Inventory,"$5,400.00 ",3/9/2018
Battery Service Corporation,Fuel/Parts Inventory,"$4,500.00 ",3/20/2018
Battery Service Corporation,Fuel/Parts Inventory,"$6,300.00 ",4/6/2018
Battery Service Corporation,Fuel/Parts Inventory,"$9,900.00 ",4/10/2018
BBJ Group LLC,Building/Bldg Improvement,"$2,801.00 ",12/21/2018
Beary Landscape Management Inc,Services,$540.00 ,1/4/2018
Beary Landscape Management Inc,Services,$490.00 ,1/9/2018
Beary Landscape Management Inc,Services,"$1,575.00 ",1/12/2018
Beary Landscape Management Inc,Services,"$1,231.00 ",1/16/2018
Beary Landscape Management Inc,Services,"$2,871.00 ",1/19/2018
Beary Landscape Management Inc,Services,$885.00 ,1/26/2018
Beary Landscape Management Inc,Services,$150.00 ,1/30/2018
Beary Landscape Management Inc,Services,"$4,574.00 ",2/2/2018
Beary Landscape Management Inc,Services,$360.00 ,2/13/2018
Beary Landscape Management Inc,Services,"$3,933.00 ",2/23/2018
Beary Landscape Management Inc,Services,$245.00 ,2/27/2018
Beary Landscape Management Inc,Services,"$8,254.00 ",3/2/2018
Beary Landscape Management Inc,Services,"$16,580.00 ",3/6/2018
Beary Landscape Management Inc,Services,$720.00 ,3/9/2018
Beary Landscape Management Inc,Services,$590.00 ,3/13/2018
Beary Landscape Management Inc,Services,$590.00 ,3/16/2018
Beary Landscape Management Inc,Services,$360.00 ,3/20/2018
Beary Landscape Management Inc,Services,"$4,180.00 ",3/27/2018
Beary Landscape Management Inc,Services,$850.00 ,3/30/2018
Beary Landscape Management Inc,Services,"$1,425.00 ",4/27/2018
Beary Landscape Management Inc,Services,$213.75 ,5/11/2018
Beary Landscape Management Inc,Services,$590.00 ,5/25/2018
Beary Landscape Management Inc,Services,"$1,002.50 ",7/6/2018
Beary Landscape Management Inc,Services,$213.75 ,7/20/2018
Beary Landscape Management Inc,Services,$427.50 ,10/19/2018
Beary Landscape Management Inc,Services,$213.75 ,11/6/2018
Beary Landscape Management Inc,Services,$595.00 ,12/4/2018
Beary Landscape Management Inc,Services,"$1,278.75 ",12/28/2018
Becker Professional Education,Services,"$1,131.00 ",3/27/2018
Becker Professional Education,Services,"$1,131.00 ",8/28/2018
Bedford Park-Clearing Industrial Association,Miscellaneous,$375.00 ,1/12/2018
Bedford Park-Clearing Industrial Association,Services,$50.00 ,4/20/2018
Benefit Express,Health Insurance,"$17,028.70 ",1/4/2018
Benefit Express,Health Insurance,"$13,669.12 ",1/19/2018
Benefit Express,Health Insurance,"$30,379.03 ",3/6/2018
Benefit Express,Health Insurance,"$11,780.50 ",4/17/2018
Benefit Express,Health Insurance,"$12,285.88 ",6/5/2018
Benefit Express,Health Insurance,"$12,365.48 ",7/6/2018
Benefit Express,Health Insurance,"$12,140.48 ",7/24/2018
Benefit Express,Health Insurance,"$30,411.55 ",9/6/2018
Benefit Express,Health Insurance,"$12,443.18 ",10/2/2018
Benefit Express,Health Insurance,"$12,338.02 ",10/26/2018
Benefit Express,Health Insurance,"$12,811.47 ",11/30/2018
Benefit Express,Health Insurance,"$17,252.19 ",12/21/2018
Benefit Express,Health Insurance,"$17,500.00 ",12/28/2018
Best Quality Cleaning Inc,Services,"$2,990.00 ",1/9/2018
Best Quality Cleaning Inc,Services,"$2,701.93 ",1/12/2018
Best Quality Cleaning Inc,Services,$487.50 ,1/19/2018
Best Quality Cleaning Inc,Services,"$2,990.00 ",2/2/2018
Best Quality Cleaning Inc,Services,$985.00 ,2/6/2018
Best Quality Cleaning Inc,Services,$685.00 ,2/8/2018
Best Quality Cleaning Inc,Services,$487.50 ,2/13/2018
Best Quality Cleaning Inc,Services,$900.00 ,2/23/2018
Best Quality Cleaning Inc,Services,"$3,675.00 ",3/6/2018
Best Quality Cleaning Inc,Services,"$1,025.00 ",3/9/2018
Best Quality Cleaning Inc,Services,$487.50 ,3/13/2018
Best Quality Cleaning Inc,Services,"$4,162.50 ",4/10/2018
Best Quality Cleaning Inc,Services,"$1,065.00 ",4/27/2018
Best Quality Cleaning Inc,Services,"$4,015.00 ",5/8/2018
Best Quality Cleaning Inc,Services,"$1,172.50 ",5/11/2018
Best Quality Cleaning Inc,Services,"$3,262.50 ",6/8/2018
Best Quality Cleaning Inc,Services,"$1,025.00 ",6/12/2018
Best Quality Cleaning Inc,Services,$900.00 ,6/22/2018
Best Quality Cleaning Inc,Services,"$2,090.00 ",6/29/2018
Best Quality Cleaning Inc,Services,"$1,585.00 ",7/6/2018
Best Quality Cleaning Inc,Services,"$2,000.00 ",7/20/2018
Best Quality Cleaning Inc,Services,"$4,015.00 ",8/7/2018
Best Quality Cleaning Inc,Services,$685.00 ,8/10/2018
Best Quality Cleaning Inc,Services,$487.50 ,8/17/2018
Best Quality Cleaning Inc,Services,$900.00 ,9/18/2018
Best Quality Cleaning Inc,Services,"$2,090.00 ",9/21/2018
Best Quality Cleaning Inc,Services,"$1,710.00 ",9/28/2018
Best Quality Cleaning Inc,Services,$487.50 ,10/5/2018
Best Quality Cleaning Inc,Services,"$2,990.00 ",10/23/2018
Best Quality Cleaning Inc,Services,"$1,710.00 ",10/30/2018
Best Quality Cleaning Inc,Services,"$1,450.00 ",11/2/2018
Best Quality Cleaning Inc,Services,"$4,015.00 ",11/6/2018
Best Quality Cleaning Inc,Services,$685.00 ,11/13/2018
Best Quality Cleaning Inc,Services,$487.50 ,12/4/2018
Best Quality Cleaning Inc,Services,"$4,785.00 ",12/28/2018
Beverly Kaman,Purchased Transportation,$19.50 ,11/30/2018
Bill's Grove Florist Ltd,Materials and Supplies,$420.00 ,1/30/2018
Bill's Grove Florist Ltd,Materials and Supplies,$266.00 ,4/17/2018
Bill's Grove Florist Ltd,Materials and Supplies,$891.00 ,4/20/2018
Bill's Grove Florist Ltd,Materials and Supplies,$65.00 ,7/6/2018
Bill's Grove Florist Ltd,Materials and Supplies,$375.00 ,7/17/2018
Bill's Grove Florist Ltd,Materials and Supplies,$631.00 ,7/20/2018
Bill's Grove Florist Ltd,Materials and Supplies,$260.00 ,10/26/2018
Bill's Grove Florist Ltd,Materials and Supplies,"$1,834.00 ",11/2/2018
Bill's Grove Florist Ltd,Materials and Supplies,$195.00 ,12/14/2018
Bitimec International Inc,Materials and Supplies,"$34,000.00 ",10/19/2018
Bloom Companies LLC,Building/Bldg Improvement,"$78,478.20 ",9/21/2018
Bloom Companies LLC,Building/Bldg Improvement,"$30,426.84 ",10/12/2018
Bloom Companies LLC,Building/Bldg Improvement,"$92,401.05 ",12/21/2018
Bloom Township Center,Purchased Transportation,"$3,843.00 ",1/12/2018
Bloom Township Center,Purchased Transportation,"$4,023.00 ",2/6/2018
Bloom Township Center,Purchased Transportation,"$4,023.00 ",2/13/2018
Bloom Township Center,Purchased Transportation,"$4,021.50 ",4/6/2018
Bloom Township Center,Purchased Transportation,"$4,022.50 ",4/27/2018
Bloom Township Center,Purchased Transportation,"$4,022.50 ",5/31/2018
Bloom Township Center,Miscellaneous,$35.00 ,6/8/2018
Bloom Township Center,Purchased Transportation,"$4,022.50 ",7/6/2018
Bloom Township Center,Purchased Transportation,"$4,022.50 ",8/7/2018
Bloom Township Center,Purchased Transportation,"$4,022.50 ",8/31/2018
Bloom Township Center,Purchased Transportation,"$4,022.50 ",10/5/2018
Bloom Township Center,Purchased Transportation,"$4,022.50 ",11/13/2018
Bloom Township Center,Purchased Transportation,"$4,022.50 ",12/14/2018
Bloomberg BNA,Miscellaneous,$577.40 ,1/23/2018
Bloomberg BNA,Miscellaneous,"$8,205.00 ",10/5/2018
Blue Apple Health LLC,Health Insurance,"$103,708.39 ",11/30/2018
Blue Cross Blue Shield of Illinois,Health Insurance,"$2,117,732.08 ",1/16/2018
Blue Cross Blue Shield of Illinois,Health Insurance,"$2,230,304.84 ",2/21/2018
Blue Cross Blue Shield of Illinois,Health Insurance,"$1,947,307.66 ",3/15/2018
Blue Cross Blue Shield of Illinois,Health Insurance,"$2,196,349.61 ",4/13/2018
Blue Cross Blue Shield of Illinois,Health Insurance,"$2,115,365.41 ",5/15/2018
Blue Cross Blue Shield of Illinois,Health Insurance,"$2,167,654.18 ",6/14/2018
Blue Cross Blue Shield of Illinois,Health Insurance,"$2,013,776.93 ",7/17/2018
Blue Cross Blue Shield of Illinois,Health Insurance,"$2,010,783.62 ",8/17/2018
Blue Cross Blue Shield of Illinois,Health Insurance,"$2,094,421.07 ",9/19/2018
Blue Cross Blue Shield of Illinois,Health Insurance,"$2,082,963.11 ",10/17/2018
Blue Cross Blue Shield of Illinois,Health Insurance,"$2,357,160.26 ",11/19/2018
Blue Cross Blue Shield of Illinois,Health Insurance,"$2,063,546.36 ",12/17/2018
Blue Ribbon Taxi Association,Purchased Transportation,"$24,009.51 ",1/12/2018
Blue Ribbon Taxi Association,Purchased Transportation,"$2,080.25 ",1/26/2018
Blue Ribbon Taxi Association,Purchased Transportation,$751.50 ,2/2/2018
Blue Ribbon Taxi Association,Purchased Transportation,"$10,244.11 ",2/8/2018
Blue Ribbon Taxi Association,Purchased Transportation,"$1,461.25 ",2/20/2018
Blue Ribbon Taxi Association,Purchased Transportation,"$20,930.98 ",3/13/2018
Blue Ribbon Taxi Association,Purchased Transportation,"$4,106.90 ",3/27/2018
Blue Ribbon Taxi Association,Purchased Transportation,"$2,296.50 ",4/10/2018
Blue Ribbon Taxi Association,Purchased Transportation,"$9,559.08 ",4/17/2018
Blue Ribbon Taxi Association,Purchased Transportation,"$2,485.75 ",4/24/2018
Blue Ribbon Taxi Association,Purchased Transportation,"$18,943.45 ",5/1/2018
Blue Ribbon Taxi Association,Purchased Transportation,"$9,570.96 ",5/15/2018
Blue Ribbon Taxi Association,Purchased Transportation,"$4,901.50 ",5/25/2018
Blue Ribbon Taxi Association,Purchased Transportation,"$10,624.74 ",5/31/2018
Blue Ribbon Taxi Association,Purchased Transportation,"$9,857.34 ",6/8/2018
Blue Ribbon Taxi Association,Purchased Transportation,"$1,320.00 ",6/26/2018
Blue Ribbon Taxi Association,Purchased Transportation,"$18,432.04 ",7/6/2018
Blue Ribbon Taxi Association,Purchased Transportation,"$2,196.50 ",7/13/2018
Blue Ribbon Taxi Association,Purchased Transportation,"$14,907.18 ",7/20/2018
Blue Ribbon Taxi Association,Purchased Transportation,"$14,371.26 ",8/10/2018
Blue Ribbon Taxi Association,Purchased Transportation,"$1,134.75 ",8/17/2018
Blue Ribbon Taxi Association,Purchased Transportation,"$22,785.95 ",8/31/2018
Blue Ribbon Taxi Association,Purchased Transportation,"$2,306.00 ",9/6/2018
Blue Ribbon Taxi Association,Purchased Transportation,"$5,049.21 ",9/14/2018
Blue Ribbon Taxi Association,Purchased Transportation,"$2,642.00 ",9/18/2018
Blue Ribbon Taxi Association,Purchased Transportation,"$1,143.00 ",9/28/2018
Blue Ribbon Taxi Association,Purchased Transportation,"$18,694.80 ",10/5/2018
Blue Ribbon Taxi Association,Purchased Transportation,"$3,351.25 ",10/19/2018
Blue Ribbon Taxi Association,Purchased Transportation,"$10,361.08 ",11/6/2018
Blue Ribbon Taxi Association,Purchased Transportation,"$4,362.48 ",11/9/2018
Blue Ribbon Taxi Association,Purchased Transportation,"$13,780.75 ",11/20/2018
Blue Ribbon Taxi Association,Purchased Transportation,"$2,633.25 ",11/27/2018
Blue Ribbon Taxi Association,Purchased Transportation,"$4,585.92 ",11/30/2018
Blue Ribbon Taxi Association,Purchased Transportation,"$7,612.40 ",12/11/2018
Blue Ribbon Taxi Association,Purchased Transportation,"$4,982.75 ",12/18/2018
Blue Ribbon Taxi Association,Purchased Transportation,"$10,868.26 ",12/28/2018
Bolingbrook Area Chamber of Commerce,Services,$70.00 ,1/12/2018
Bolingbrook Area Chamber of Commerce,Miscellaneous,$350.00 ,3/16/2018
Bolingbrook Area Chamber of Commerce,Services,$70.00 ,3/16/2018
Bolingbrook Area Chamber of Commerce,Services,$25.00 ,7/13/2018
BP Consultants,Services,"$3,000.00 ",1/9/2018
BP Consultants,Services,"$3,000.00 ",2/6/2018
BP Consultants,Services,"$3,000.00 ",3/6/2018
BP Consultants,Services,"$3,000.00 ",4/3/2018
BP Consultants,Services,"$3,000.00 ",5/4/2018
BP Consultants,Services,"$3,000.00 ",6/8/2018
BP Consultants,Services,"$3,000.00 ",6/29/2018
BP Consultants,Services,"$3,000.00 ",8/7/2018
BP Consultants,Services,"$3,000.00 ",9/6/2018
BP Consultants,Services,"$3,000.00 ",9/28/2018
BP Consultants,Services,"$3,000.00 ",10/30/2018
BP Consultants,Services,"$3,000.00 ",12/14/2018
BP Consultants,Services,"$3,000.00 ",12/28/2018
Brabazon Pumpe Company LTD,Materials and Supplies,"$1,067.62 ",1/23/2018
Bradburne Briller & Johnson LLC,Building/Bldg Improvement,$237.00 ,2/8/2018
Bradburne Briller & Johnson LLC,Building/Bldg Improvement,"$1,417.00 ",4/20/2018
Bradburne Briller & Johnson LLC,Building/Bldg Improvement,$987.75 ,5/4/2018
Bradburne Briller & Johnson LLC,Building/Bldg Improvement,"$2,972.03 ",6/22/2018
Bradburne Briller & Johnson LLC,Building/Bldg Improvement,"$8,578.19 ",7/24/2018
Bradburne Briller & Johnson LLC,Building/Bldg Improvement,"$1,370.25 ",8/10/2018
Bradburne Briller & Johnson LLC,Building/Bldg Improvement,"$3,700.00 ",9/21/2018
Bradburne Briller & Johnson LLC,Building/Bldg Improvement,"$22,823.96 ",10/12/2018
Bradburne Briller & Johnson LLC,Building/Bldg Improvement,"$3,692.95 ",11/6/2018
Brandy's Safe and Lock of Illinois,Materials and Supplies,$773.47 ,10/23/2018
Brasco International,Equipment,"$39,875.00 ",1/19/2018
Brasco International,Equipment,"$80,775.00 ",2/6/2018
Brasco International,Equipment,"$30,975.00 ",3/16/2018
Brasco International,Equipment,"$42,525.00 ",4/27/2018
Brasco International,Equipment,"$54,150.00 ",6/15/2018
Brasco International,Equipment,"$109,900.00 ",9/14/2018
Brasco International,Equipment,"$60,125.00 ",12/18/2018
Braxton Grant Technologies Inc,Services,"$30,682.62 ",7/17/2018
Brent Hassert Consulting LLC,Services,"$4,500.00 ",2/16/2018
Brent Hassert Consulting LLC,Services,"$4,500.00 ",3/27/2018
Brent Hassert Consulting LLC,Services,"$4,500.00 ",6/12/2018
Brent Hassert Consulting LLC,Services,"$4,500.00 ",8/10/2018
Brent Hassert Consulting LLC,Services,"$6,750.00 ",11/27/2018
Brian Gans,Purchased Transportation,$18.00 ,8/28/2018
Bridgestone Americas Tire Operations LLC,Materials and Supplies,"$113,206.42 ",1/4/2018
Bridgestone Americas Tire Operations LLC,Materials and Supplies,"$117,444.70 ",2/8/2018
Bridgestone Americas Tire Operations LLC,Materials and Supplies,"$116,975.71 ",3/9/2018
Bridgestone Americas Tire Operations LLC,Materials and Supplies,"$113,829.32 ",3/30/2018
Bridgestone Americas Tire Operations LLC,Materials and Supplies,"$111,373.11 ",5/4/2018
Bridgestone Americas Tire Operations LLC,Materials and Supplies,"$15,343.96 ",5/8/2018
Bridgestone Americas Tire Operations LLC,Materials and Supplies,"$122,542.64 ",6/8/2018
Bridgestone Americas Tire Operations LLC,Materials and Supplies,"$15,343.96 ",7/6/2018
Bridgestone Americas Tire Operations LLC,Materials and Supplies,"$147,820.24 ",8/17/2018
Bridgestone Americas Tire Operations LLC,Materials and Supplies,"$128,751.22 ",8/21/2018
Bridgestone Americas Tire Operations LLC,Materials and Supplies,"$111,278.49 ",9/11/2018
Bridgestone Americas Tire Operations LLC,Materials and Supplies,"$15,343.96 ",9/14/2018
Bridgestone Americas Tire Operations LLC,Materials and Supplies,"$142,174.55 ",10/5/2018
Bridgestone Americas Tire Operations LLC,Materials and Supplies,"$126,443.44 ",10/30/2018
Bridgestone Americas Tire Operations LLC,Materials and Supplies,"$99,807.24 ",12/18/2018
Bridgeview Chamber of Commerce,Miscellaneous,$100.00 ,1/12/2018
Builders Chicago Corporation,Services,"$3,756.63 ",1/4/2018
Builders Chicago Corporation,Services,"$4,125.00 ",1/19/2018
Builders Chicago Corporation,Services,$856.00 ,1/23/2018
Builders Chicago Corporation,Services,"$6,294.11 ",1/30/2018
Builders Chicago Corporation,Services,$655.00 ,2/2/2018
Builders Chicago Corporation,Services,$290.00 ,2/13/2018
Builders Chicago Corporation,Services,"$2,092.55 ",2/16/2018
Builders Chicago Corporation,Services,"$3,660.79 ",3/2/2018
Builders Chicago Corporation,Services,$821.36 ,3/9/2018
Builders Chicago Corporation,Services,"$6,799.51 ",3/16/2018
Builders Chicago Corporation,Services,"$1,527.67 ",3/27/2018
Builders Chicago Corporation,Services,$682.50 ,4/6/2018
Builders Chicago Corporation,Services,"$4,242.45 ",4/20/2018
Builders Chicago Corporation,Services,"$8,690.28 ",4/27/2018
Builders Chicago Corporation,Services,"$9,675.41 ",5/11/2018
Builders Chicago Corporation,Services,$601.00 ,5/15/2018
Builders Chicago Corporation,Services,"$17,923.37 ",5/18/2018
Builders Chicago Corporation,Services,"$10,922.06 ",5/25/2018
Builders Chicago Corporation,Services,"$1,409.33 ",5/31/2018
Builders Chicago Corporation,Services,"$1,363.14 ",6/5/2018
Builders Chicago Corporation,Services,"$3,752.00 ",6/8/2018
Builders Chicago Corporation,Services,"$7,657.87 ",6/22/2018
Builders Chicago Corporation,Services,$217.00 ,6/29/2018
Builders Chicago Corporation,Services,"$1,145.79 ",7/6/2018
Builders Chicago Corporation,Services,"$2,260.26 ",7/17/2018
Builders Chicago Corporation,Services,$537.23 ,7/20/2018
Builders Chicago Corporation,Services,"$3,745.00 ",7/27/2018
Builders Chicago Corporation,Services,"$1,003.00 ",7/31/2018
Builders Chicago Corporation,Services,"$4,046.58 ",8/10/2018
Builders Chicago Corporation,Services,$158.70 ,8/14/2018
Builders Chicago Corporation,Services,$800.10 ,8/17/2018
Builders Chicago Corporation,Services,"$1,837.45 ",9/14/2018
Builders Chicago Corporation,Services,"$4,050.32 ",9/28/2018
Builders Chicago Corporation,Services,$333.00 ,10/23/2018
Builders Chicago Corporation,Services,"$4,801.52 ",10/26/2018
Builders Chicago Corporation,Services,"$1,655.30 ",11/2/2018
Builders Chicago Corporation,Services,"$7,504.00 ",11/27/2018
Builders Chicago Corporation,Services,$376.30 ,11/30/2018
Builders Chicago Corporation,Services,"$5,241.93 ",12/4/2018
Builders Chicago Corporation,Services,$136.40 ,12/7/2018
Builders Chicago Corporation,Services,"$9,249.20 ",12/14/2018
Bus & Truck of Chicago Inc,Casualty and Liability,"$45,199.03 ",7/24/2018
Business Publishers Inc,Miscellaneous,$299.00 ,12/21/2018
Buzy Bee Board-Up,Services,$255.00 ,3/16/2018
Cabconnect Inc,Miscellaneous,"$22,818.33 ",1/19/2018
Cabconnect Inc,Miscellaneous,"$21,989.83 ",2/27/2018
Cabconnect Inc,Miscellaneous,"$22,483.83 ",3/13/2018
Cabconnect Inc,Miscellaneous,"$23,757.83 ",4/20/2018
Cabconnect Inc,Miscellaneous,"$23,090.83 ",5/18/2018
Cabconnect Inc,Miscellaneous,"$23,511.33 ",6/29/2018
Cabconnect Inc,Miscellaneous,"$22,873.33 ",7/17/2018
Cabconnect Inc,Miscellaneous,"$22,780.83 ",8/24/2018
Cabconnect Inc,Miscellaneous,"$23,474.83 ",9/18/2018
Cabconnect Inc,Miscellaneous,"$21,654.94 ",10/12/2018
Cabconnect Inc,Miscellaneous,"$23,961.83 ",11/16/2018
Cabconnect Inc,Miscellaneous,"$22,856.33 ",12/21/2018
CALSTART,Miscellaneous,"$3,950.00 ",9/11/2018
Calumet City Plumbing Co Inc,Services,$885.00 ,1/4/2018
Calumet City Plumbing Co Inc,Services,$615.00 ,1/12/2018
Calumet City Plumbing Co Inc,Services,"$3,300.19 ",1/19/2018
Calumet City Plumbing Co Inc,Services,"$1,114.00 ",1/30/2018
Calumet City Plumbing Co Inc,Services,"$2,097.46 ",2/2/2018
Calumet City Plumbing Co Inc,Services,$644.31 ,2/6/2018
Calumet City Plumbing Co Inc,Services,"$1,833.00 ",2/13/2018
Calumet City Plumbing Co Inc,Services,$480.00 ,2/16/2018
Calumet City Plumbing Co Inc,Services,$562.07 ,2/23/2018
Calumet City Plumbing Co Inc,Services,$569.10 ,3/9/2018
Calumet City Plumbing Co Inc,Services,"$1,164.00 ",3/13/2018
Calumet City Plumbing Co Inc,Services,"$3,600.97 ",3/16/2018
Calumet City Plumbing Co Inc,Services,"$4,015.28 ",3/20/2018
Calumet City Plumbing Co Inc,Services,$375.00 ,3/27/2018
Calumet City Plumbing Co Inc,Services,"$4,582.05 ",4/20/2018
Calumet City Plumbing Co Inc,Services,"$1,598.21 ",4/27/2018
Calumet City Plumbing Co Inc,Services,$420.00 ,5/11/2018
Calumet City Plumbing Co Inc,Services,$695.00 ,5/18/2018
Calumet City Plumbing Co Inc,Services,"$1,920.00 ",7/31/2018
Calumet City Plumbing Co Inc,Services,$773.99 ,8/14/2018
Calumet City Plumbing Co Inc,Services,"$2,235.00 ",8/28/2018
Calumet City Plumbing Co Inc,Services,"$1,259.63 ",9/21/2018
Calumet City Plumbing Co Inc,Services,"$3,619.80 ",10/16/2018
Calumet City Plumbing Co Inc,Services,$445.00 ,10/26/2018
Calumet City Plumbing Co Inc,Services,$512.00 ,11/2/2018
Calumet City Plumbing Co Inc,Services,"$1,247.13 ",11/9/2018
Calumet City Plumbing Co Inc,Services,"$2,135.84 ",11/13/2018
Calumet City Plumbing Co Inc,Services,$443.24 ,11/16/2018
Calumet City Plumbing Co Inc,Services,$188.69 ,11/27/2018
Calumet City Plumbing Co Inc,Building/Bldg Improvement,"$7,221.55 ",12/14/2018
Calyptus Consulting Group Inc,Services,"$13,983.52 ",10/26/2018
Canteen Refreshment Services,Miscellaneous,$351.00 ,1/9/2018
Canteen Refreshment Services,Miscellaneous,$34.00 ,1/23/2018
Canteen Refreshment Services,Materials and Supplies,$606.60 ,2/13/2018
Canteen Refreshment Services,Miscellaneous,$50.00 ,3/9/2018
Canteen Refreshment Services,Miscellaneous,$89.90 ,4/13/2018
Canteen Refreshment Services,Miscellaneous,$32.50 ,4/27/2018
Canteen Refreshment Services,Miscellaneous,$217.30 ,5/22/2018
Canteen Refreshment Services,Miscellaneous,$48.00 ,6/26/2018
Canteen Refreshment Services,Materials and Supplies,$474.60 ,7/6/2018
Canteen Refreshment Services,Miscellaneous,$183.80 ,7/10/2018
Canteen Refreshment Services,Miscellaneous,$4.95 ,7/17/2018
Canteen Refreshment Services,Materials and Supplies,$75.00 ,8/3/2018
Canteen Refreshment Services,Miscellaneous,$205.55 ,8/3/2018
Canteen Refreshment Services,Miscellaneous,$59.95 ,8/7/2018
Canteen Refreshment Services,Miscellaneous,$208.28 ,9/25/2018
Canteen Refreshment Services,Miscellaneous,$104.98 ,10/2/2018
Canteen Refreshment Services,Miscellaneous,$231.81 ,11/13/2018
Canteen Refreshment Services,Materials and Supplies,$556.00 ,11/30/2018
Cardinal Fence and Supply Inc,Services,"$2,383.00 ",10/12/2018
CareerBuilder Government Solutions LLC,Miscellaneous,$340.00 ,10/9/2018
Careys Heating & Air Conditioning Inc,Services,"$3,500.00 ",1/9/2018
Careys Heating & Air Conditioning Inc,Services,"$1,282.00 ",3/23/2018
Careys Heating & Air Conditioning Inc,Services,"$5,849.08 ",4/20/2018
Careys Heating & Air Conditioning Inc,Materials and Supplies,$980.00 ,4/27/2018
Careys Heating & Air Conditioning Inc,Materials and Supplies,$873.45 ,5/8/2018
Careys Heating & Air Conditioning Inc,Services,"$2,907.10 ",5/11/2018
Careys Heating & Air Conditioning Inc,Services,$506.51 ,5/15/2018
Careys Heating & Air Conditioning Inc,Services,$441.00 ,6/5/2018
Careys Heating & Air Conditioning Inc,Services,"$1,636.00 ",6/8/2018
Careys Heating & Air Conditioning Inc,Services,"$1,409.30 ",7/6/2018
Careys Heating & Air Conditioning Inc,Services,$196.00 ,7/20/2018
Careys Heating & Air Conditioning Inc,Services,$774.00 ,8/14/2018
Careys Heating & Air Conditioning Inc,Services,"$3,794.00 ",8/24/2018
Careys Heating & Air Conditioning Inc,Services,"$1,180.87 ",9/14/2018
Careys Heating & Air Conditioning Inc,Services,"$1,730.24 ",9/18/2018
Carrier Corporation,Services,$284.00 ,2/2/2018
Carrier Corporation,Services,"$4,185.00 ",5/11/2018
Carrier Corporation,Services,"$4,932.47 ",5/18/2018
Carrier Corporation,Services,"$2,061.00 ",7/6/2018
Carrier Corporation,Services,"$4,924.30 ",9/14/2018
Carrier Corporation,Services,$315.00 ,9/18/2018
Carrier Corporation,Services,"$2,745.00 ",12/14/2018
Cavalry Fire Protection Services LLC,Services,$424.50 ,4/20/2018
Cavalry Fire Protection Services LLC,Services,"$1,739.10 ",7/13/2018
Cavalry Fire Protection Services LLC,Services,"$1,125.20 ",7/17/2018
CCH a Wolters Kluwer Business,Services,"$9,000.00 ",4/20/2018
CCH a Wolters Kluwer Business,Services,"$1,429.65 ",5/25/2018
CCH a Wolters Kluwer Business,Services,"$6,250.00 ",10/30/2018
CCH Incorporated,Miscellaneous,$387.52 ,1/23/2018
CCH Incorporated,Miscellaneous,$417.41 ,8/24/2018
CCH Incorporated,Miscellaneous,$417.41 ,9/11/2018
CDM Smith Inc,Equipment,"$7,185.83 ",1/19/2018
CDM Smith Inc,Equipment,"$142,884.47 ",6/29/2018
CDS Office Technologies,Materials and Supplies,$345.00 ,1/19/2018
CDS Office Technologies,Services,$115.00 ,1/19/2018
CDS Office Technologies,Leases and Rentals,"$2,400.00 ",1/26/2018
CDS Office Technologies,Leases and Rentals,"$1,200.00 ",2/6/2018
CDS Office Technologies,Materials and Supplies,$345.00 ,3/2/2018
CDS Office Technologies,Services,$115.00 ,3/2/2018
CDS Office Technologies,Services,$900.00 ,3/13/2018
CDS Office Technologies,Materials and Supplies,$345.00 ,3/23/2018
CDS Office Technologies,Services,$115.00 ,3/23/2018
CDS Office Technologies,Leases and Rentals,"$1,200.00 ",3/27/2018
CDS Office Technologies,Leases and Rentals,"$1,660.00 ",4/13/2018
CDS Office Technologies,Leases and Rentals,"$1,660.00 ",5/25/2018
CDS Office Technologies,Leases and Rentals,$460.00 ,6/26/2018
CDS Office Technologies,Leases and Rentals,$990.00 ,6/29/2018
CDS Office Technologies,Leases and Rentals,"$1,200.00 ",7/6/2018
CDS Office Technologies,Leases and Rentals,"$1,200.00 ",7/20/2018
CDS Office Technologies,Leases and Rentals,"$1,200.00 ",8/24/2018
CDS Office Technologies,Leases and Rentals,$920.00 ,8/28/2018
CDS Office Technologies,Leases and Rentals,"$2,190.00 ",9/14/2018
CDS Office Technologies,Leases and Rentals,$460.00 ,9/28/2018
CDS Office Technologies,Leases and Rentals,"$1,660.00 ",10/9/2018
CDS Office Technologies,Leases and Rentals,"$1,200.00 ",11/9/2018
CDS Office Technologies,Leases and Rentals,$460.00 ,12/4/2018
CDS Office Technologies,Leases and Rentals,"$1,200.00 ",12/21/2018
CDS Office Technologies,Leases and Rentals,"$1,450.00 ",12/28/2018
CDW Government LLC,Services,"$3,945.28 ",1/12/2018
CDW Government LLC,Services,"$14,989.80 ",3/9/2018
CDW Government LLC,Materials and Supplies,$91.27 ,5/31/2018
CDW Government LLC,Services,"$68,910.30 ",12/28/2018
CenterPoint Energy Services Inc,Utilities,"$36,475.76 ",1/9/2018
CenterPoint Energy Services Inc,Fuel/Parts Inventory,"$47,849.60 ",1/26/2018
CenterPoint Energy Services Inc,Utilities,"$59,079.69 ",2/2/2018
Certif-A-Gift,Services,$375.00 ,1/9/2018
Certif-A-Gift,Services,$225.00 ,1/16/2018
Certif-A-Gift,Services,"$1,250.00 ",2/13/2018
Certif-A-Gift,Services,"$1,750.00 ",3/6/2018
Certif-A-Gift,Services,$375.00 ,3/16/2018
Certif-A-Gift,Services,$225.00 ,4/6/2018
Certif-A-Gift,Services,$500.00 ,4/27/2018
Certif-A-Gift,Services,"$1,500.00 ",5/18/2018
Certif-A-Gift,Services,$500.00 ,6/26/2018
Certif-A-Gift,Services,"$1,100.00 ",8/10/2018
Certif-A-Gift,Services,$500.00 ,8/31/2018
Certif-A-Gift,Services,$375.00 ,9/18/2018
Certif-A-Gift,Services,"$1,250.00 ",10/5/2018
Certif-A-Gift,Services,$375.00 ,10/19/2018
Certif-A-Gift,Services,$375.00 ,10/26/2018
Certif-A-Gift,Services,$375.00 ,11/2/2018
Certif-A-Gift,Services,$875.00 ,11/6/2018
Certif-A-Gift,Services,$375.00 ,11/27/2018
Certif-A-Gift,Services,$375.00 ,12/18/2018
Chandler Services Inc,Equipment,"$69,335.00 ",1/4/2018
Chandler Services Inc,Equipment,"$69,335.00 ",1/19/2018
Chandler Services Inc,Casualty and Liability,"$12,404.17 ",1/23/2018
Chandler Services Inc,Services,$318.00 ,1/23/2018
Chandler Services Inc,Equipment,"$69,335.00 ",2/8/2018
Chandler Services Inc,Casualty and Liability,"$3,434.05 ",2/27/2018
Chandler Services Inc,Services,"$10,230.11 ",2/27/2018
Chandler Services Inc,Equipment,"$69,335.00 ",3/2/2018
Chandler Services Inc,Equipment,"$69,335.00 ",3/16/2018
Chandler Services Inc,Services,"$11,390.35 ",3/23/2018
Chandler Services Inc,Equipment,"$69,335.00 ",3/30/2018
Chandler Services Inc,Services,"$15,520.07 ",4/13/2018
Chandler Services Inc,Casualty and Liability,"$9,405.93 ",4/20/2018
Chandler Services Inc,Equipment,"$69,335.00 ",4/20/2018
Chandler Services Inc,Services,"$1,785.00 ",4/20/2018
Chandler Services Inc,Equipment,"$69,335.00 ",4/27/2018
Chandler Services Inc,Equipment,"$138,670.00 ",5/11/2018
Chandler Services Inc,Services,"$3,299.05 ",5/18/2018
Chandler Services Inc,Casualty and Liability,"$5,667.30 ",5/25/2018
Chandler Services Inc,Equipment,"$69,335.00 ",5/31/2018
Chandler Services Inc,Equipment,"$69,335.00 ",6/22/2018
Chandler Services Inc,Equipment,"$69,335.00 ",7/17/2018
Chandler Services Inc,Equipment,"$69,335.00 ",7/24/2018
Chandler Services Inc,Casualty and Liability,"$128,650.47 ",8/7/2018
Chandler Services Inc,Equipment,"$69,335.00 ",8/7/2018
Chandler Services Inc,Services,"$2,456.60 ",8/24/2018
Chandler Services Inc,Services,$538.50 ,8/28/2018
Chandler Services Inc,Services,$124.70 ,8/31/2018
Chandler Services Inc,Equipment,"$69,335.00 ",9/6/2018
Chandler Services Inc,Equipment,"$69,335.00 ",9/18/2018
Chandler Services Inc,Equipment,"$69,335.00 ",9/21/2018
Chandler Services Inc,Fuel/Parts Inventory,"$7,343.50 ",10/2/2018
Chandler Services Inc,Fuel/Parts Inventory,"$1,341.56 ",10/9/2018
Chandler Services Inc,Equipment,"$69,335.00 ",10/12/2018
Chandler Services Inc,Equipment,"$69,335.00 ",10/19/2018
Chandler Services Inc,Equipment,"$69,335.00 ",11/6/2018
Chandler Services Inc,Casualty and Liability,"$20,805.02 ",11/13/2018
Chandler Services Inc,Services,"$3,169.18 ",11/13/2018
Chandler Services Inc,Equipment,"$138,670.00 ",11/27/2018
Chandler Services Inc,Casualty and Liability,"$10,647.28 ",11/30/2018
Chandler Services Inc,Services,"$5,581.09 ",12/7/2018
Chandler Services Inc,Equipment,"$69,335.00 ",12/14/2018
Chemex of Northern Il Inc,Fuel/Parts Inventory,"$1,053.00 ",1/19/2018
Chemex of Northern Il Inc,Fuel/Parts Inventory,"$1,390.50 ",2/8/2018
Chemex of Northern Il Inc,Fuel/Parts Inventory,$675.00 ,3/2/2018
Chemex of Northern Il Inc,Fuel/Parts Inventory,$168.75 ,3/13/2018
Chemex of Northern Il Inc,Fuel/Parts Inventory,"$1,336.50 ",3/16/2018
Chemex of Northern Il Inc,Fuel/Parts Inventory,$310.50 ,3/20/2018
Chemex of Northern Il Inc,Fuel/Parts Inventory,"$1,086.75 ",3/27/2018
Chemex of Northern Il Inc,Fuel/Parts Inventory,"$1,390.50 ",4/13/2018
Chicago Bar Association,Miscellaneous,$468.00 ,4/13/2018
Chicago Carriage Cab,Purchased Transportation,"$11,388.60 ",1/12/2018
Chicago Carriage Cab,Purchased Transportation,"$11,648.75 ",1/26/2018
Chicago Carriage Cab,Purchased Transportation,"$3,015.61 ",2/2/2018
Chicago Carriage Cab,Purchased Transportation,"$7,483.23 ",2/8/2018
Chicago Carriage Cab,Purchased Transportation,"$2,798.06 ",2/16/2018
Chicago Carriage Cab,Purchased Transportation,"$5,613.04 ",2/20/2018
Chicago Carriage Cab,Purchased Transportation,"$8,750.54 ",3/13/2018
Chicago Carriage Cab,Purchased Transportation,"$2,358.50 ",3/20/2018
Chicago Carriage Cab,Purchased Transportation,"$3,665.75 ",3/27/2018
Chicago Carriage Cab,Purchased Transportation,"$2,668.84 ",3/30/2018
Chicago Carriage Cab,Purchased Transportation,"$3,050.17 ",4/10/2018
Chicago Carriage Cab,Purchased Transportation,"$3,566.46 ",4/17/2018
Chicago Carriage Cab,Purchased Transportation,"$2,367.82 ",5/1/2018
Chicago Carriage Cab,Purchased Transportation,"$17,947.91 ",5/11/2018
Chicago Carriage Cab,Purchased Transportation,"$1,110.48 ",5/18/2018
Chicago Carriage Cab,Purchased Transportation,"$3,037.36 ",5/25/2018
Chicago Carriage Cab,Purchased Transportation,"$4,654.63 ",5/31/2018
Chicago Carriage Cab,Purchased Transportation,"$2,371.76 ",6/8/2018
Chicago Carriage Cab,Purchased Transportation,"$3,331.75 ",6/15/2018
Chicago Carriage Cab,Purchased Transportation,"$1,148.48 ",6/19/2018
Chicago Carriage Cab,Purchased Transportation,"$6,299.95 ",6/26/2018
Chicago Carriage Cab,Purchased Transportation,"$3,948.35 ",7/6/2018
Chicago Carriage Cab,Purchased Transportation,"$6,442.20 ",7/13/2018
Chicago Carriage Cab,Purchased Transportation,"$4,009.49 ",7/20/2018
Chicago Carriage Cab,Purchased Transportation,"$3,774.17 ",7/31/2018
Chicago Carriage Cab,Purchased Transportation,"$17,672.25 ",8/14/2018
Chicago Carriage Cab,Purchased Transportation,"$6,342.53 ",8/28/2018
Chicago Carriage Cab,Purchased Transportation,"$3,584.42 ",8/31/2018
Chicago Carriage Cab,Purchased Transportation,"$2,869.65 ",9/6/2018
Chicago Carriage Cab,Purchased Transportation,"$1,787.78 ",9/14/2018
Chicago Carriage Cab,Purchased Transportation,"$5,840.00 ",9/21/2018
Chicago Carriage Cab,Purchased Transportation,"$2,998.69 ",9/28/2018
Chicago Carriage Cab,Purchased Transportation,"$17,500.36 ",10/19/2018
Chicago Carriage Cab,Purchased Transportation,"$7,183.80 ",11/6/2018
Chicago Carriage Cab,Purchased Transportation,$958.48 ,11/9/2018
Chicago Carriage Cab,Purchased Transportation,"$3,424.00 ",11/20/2018
Chicago Carriage Cab,Purchased Transportation,"$16,876.34 ",11/30/2018
Chicago Carriage Cab,Purchased Transportation,"$3,036.57 ",12/11/2018
Chicago Carriage Cab,Purchased Transportation,"$2,629.15 ",12/14/2018
Chicago Carriage Cab,Purchased Transportation,"$3,394.26 ",12/28/2018
Chicago Communication Systems,Services,$210.00 ,1/9/2018
Chicago Communication Systems,Services,$210.00 ,7/6/2018
Chicago Communications LLC,Materials and Supplies,$337.00 ,9/25/2018
Chicago Communications LLC,Materials and Supplies,$434.93 ,11/27/2018
Chicago Minority Supplier Development Council,Miscellaneous,"$1,150.00 ",2/20/2018
Chicago Power Clean,Services,"$1,325.00 ",7/27/2018
Chicago Power Clean,Services,"$1,325.00 ",8/21/2018
Chicago Power Clean,Services,"$1,325.00 ",12/7/2018
Chicago Scaffolding Inc,Equipment,"$16,850.00 ",5/4/2018
Chicago Southland Chamber of Commerce,Miscellaneous,$30.00 ,5/8/2018
Chicago Southland Chamber of Commerce,Miscellaneous,$700.00 ,10/30/2018
Chicago Tower Leasing Corporation,Services,$475.30 ,10/30/2018
Chicago Tower Leasing Corporation,Services,$475.30 ,11/6/2018
Chicago Tower Leasing Corporation,Services,$475.30 ,12/4/2018
Chicago Transit Authority,Services,$230.00 ,1/12/2018
Chicago Transit Authority,Services,$230.00 ,10/12/2018
Chicago United Industries Ltd,Fuel/Parts Inventory,"$16,542.60 ",1/19/2018
Chicago United Industries Ltd,Fuel/Parts Inventory,"$13,794.00 ",1/23/2018
Chicago United Industries Ltd,Materials and Supplies,$440.08 ,1/23/2018
Chicago United Industries Ltd,Services,"$1,779.77 ",1/23/2018
Chicago United Industries Ltd,Fuel/Parts Inventory,"$2,793.00 ",1/30/2018
Chicago United Industries Ltd,Fuel/Parts Inventory,"$1,936.00 ",2/8/2018
Chicago United Industries Ltd,Fuel/Parts Inventory,"$6,546.00 ",2/13/2018
Chicago United Industries Ltd,Services,"$2,731.74 ",2/13/2018
Chicago United Industries Ltd,Fuel/Parts Inventory,"$16,390.00 ",3/2/2018
Chicago United Industries Ltd,Materials and Supplies,"$2,021.44 ",3/2/2018
Chicago United Industries Ltd,Fuel/Parts Inventory,"$3,247.00 ",3/13/2018
Chicago United Industries Ltd,Fuel/Parts Inventory,"$3,990.00 ",3/16/2018
Chicago United Industries Ltd,Fuel/Parts Inventory,"$9,833.00 ",3/27/2018
Chicago United Industries Ltd,Services,"$1,655.60 ",3/27/2018
Chicago United Industries Ltd,Fuel/Parts Inventory,$298.20 ,4/20/2018
Chicago United Industries Ltd,Fuel/Parts Inventory,"$12,290.00 ",4/27/2018
Chicago United Industries Ltd,Services,"$1,407.26 ",5/4/2018
Chicago United Industries Ltd,Fuel/Parts Inventory,"$3,680.00 ",5/18/2018
Chicago United Industries Ltd,Services,"$3,352.59 ",5/18/2018
Chicago United Industries Ltd,Fuel/Parts Inventory,"$10,396.00 ",7/6/2018
Chicago United Industries Ltd,Materials and Supplies,"$2,375.88 ",7/6/2018
Chicago United Industries Ltd,Fuel/Parts Inventory,"$6,200.00 ",7/20/2018
Chicago United Industries Ltd,Fuel/Parts Inventory,"$3,360.00 ",7/24/2018
Chicago United Industries Ltd,Fuel/Parts Inventory,"$14,448.00 ",7/27/2018
Chicago United Industries Ltd,Services,"$2,193.67 ",7/27/2018
Chicago United Industries Ltd,Fuel/Parts Inventory,"$7,040.00 ",8/3/2018
Chicago United Industries Ltd,Fuel/Parts Inventory,"$6,553.00 ",8/24/2018
Chicago United Industries Ltd,Fuel/Parts Inventory,"$7,350.00 ",8/31/2018
Chicago United Industries Ltd,Fuel/Parts Inventory,"$5,860.00 ",9/25/2018
Chicago United Industries Ltd,Fuel/Parts Inventory,"$14,764.20 ",10/9/2018
Chicago United Industries Ltd,Fuel/Parts Inventory,"$4,180.00 ",10/26/2018
Chicago United Industries Ltd,Fuel/Parts Inventory,"$4,200.00 ",11/2/2018
Chicago United Industries Ltd,Services,"$7,988.27 ",11/2/2018
Chicago United Industries Ltd,Fuel/Parts Inventory,"$7,880.00 ",11/20/2018
Chicago United Industries Ltd,Fuel/Parts Inventory,"$2,373.00 ",11/30/2018
Chicago United Industries Ltd,Fuel/Parts Inventory,"$4,390.00 ",12/18/2018
Chicagoland Chamber Of Commerce,Miscellaneous,"$1,000.00 ",7/31/2018
CHK America,Utilities,"$16,970.00 ",9/11/2018
Choice Taxi Association,Purchased Transportation,$16.25 ,2/20/2018
Choice Taxi Association,Purchased Transportation,"$2,198.50 ",3/27/2018
Choice Taxi Association,Purchased Transportation,"$1,861.25 ",5/8/2018
Choice Taxi Association,Purchased Transportation,$913.75 ,5/25/2018
Choice Taxi Association,Purchased Transportation,"$1,686.50 ",6/26/2018
Choice Taxi Association,Purchased Transportation,$176.50 ,7/20/2018
Choice Taxi Association,Purchased Transportation,"$3,021.25 ",8/10/2018
Choice Taxi Association,Purchased Transportation,"$1,917.75 ",9/6/2018
Choice Taxi Association,Purchased Transportation,$558.50 ,9/18/2018
Choice Taxi Association,Purchased Transportation,$206.50 ,9/28/2018
Choice Taxi Association,Purchased Transportation,$388.25 ,10/12/2018
Choice Taxi Association,Purchased Transportation,$894.00 ,10/19/2018
Choice Taxi Association,Purchased Transportation,$482.25 ,11/6/2018
Choice Taxi Association,Purchased Transportation,$219.25 ,11/9/2018
Choice Taxi Association,Purchased Transportation,$520.00 ,11/16/2018
Choice Taxi Association,Purchased Transportation,$441.25 ,11/27/2018
Choice Taxi Association,Purchased Transportation,"$1,964.50 ",12/28/2018
Choose DuPage,Miscellaneous,"$6,250.00 ",6/12/2018
Cintas Fire Protection,Miscellaneous,$402.78 ,3/23/2018
Cintas Fire Protection,Miscellaneous,$350.29 ,9/14/2018
Ciorba Group Inc,Building/Bldg Improvement,"$23,968.02 ",1/19/2018
Ciorba Group Inc,Building/Bldg Improvement,"$20,752.70 ",3/9/2018
Ciorba Group Inc,Building/Bldg Improvement,"$15,897.60 ",3/16/2018
Ciorba Group Inc,Building/Bldg Improvement,"$16,369.80 ",4/10/2018
Ciorba Group Inc,Building/Bldg Improvement,"$12,572.15 ",6/22/2018
Ciorba Group Inc,Building/Bldg Improvement,"$4,794.07 ",8/7/2018
Ciorba Group Inc,Building/Bldg Improvement,"$12,417.79 ",8/28/2018
Ciorba Group Inc,Building/Bldg Improvement,"$10,240.39 ",11/6/2018
Ciorba Group Inc,Building/Bldg Improvement,"$3,847.23 ",12/18/2018
City of Aurora,Miscellaneous,"$3,655.00 ",3/30/2018
City of Berwyn,Miscellaneous,"$2,089.00 ",3/30/2018
City of Blue Island,Miscellaneous,"$7,833.00 ",3/30/2018
City of Calumet City,Miscellaneous,"$9,400.00 ",3/30/2018
City of Chicago Heights,Services,$78.96 ,1/4/2018
City of Chicago Heights,Services,$110.49 ,1/30/2018
City of Chicago Heights,Services,$68.45 ,3/2/2018
City of Chicago Heights,Miscellaneous,"$11,488.00 ",3/30/2018
City of Chicago Heights,Services,$99.98 ,3/30/2018
City of Chicago Heights,Services,$99.98 ,4/27/2018
City of Chicago Heights,Services,$89.47 ,6/5/2018
City of Chicago Heights,Services,$110.49 ,7/6/2018
City of Chicago Heights,Services,$89.47 ,8/3/2018
City of Chicago Heights,Services,$89.73 ,9/11/2018
City of Chicago Heights,Services,$79.18 ,10/5/2018
City of Chicago Heights,Services,$79.18 ,10/30/2018
City of Chicago Heights,Services,$89.73 ,11/30/2018
City of Chicago Heights,Services,$89.73 ,12/28/2018
City of Country Club Hills,Miscellaneous,"$1,567.00 ",3/30/2018
City of Crest Hill,Miscellaneous,"$1,567.00 ",3/30/2018
City of Des Plaines,Utilities,"$3,929.83 ",1/23/2018
City of Des Plaines,Utilities,"$3,186.66 ",2/23/2018
City of Des Plaines,Utilities,"$3,534.79 ",3/23/2018
City of Des Plaines,Utilities,"$3,410.51 ",4/24/2018
City of Des Plaines,Services,$75.00 ,5/4/2018
City of Des Plaines,Utilities,"$4,825.26 ",5/25/2018
City of Des Plaines,Utilities,"$4,569.30 ",6/22/2018
City of Des Plaines,Utilities,"$6,047.53 ",7/24/2018
City of Des Plaines,Utilities,"$4,658.78 ",8/31/2018
City of Des Plaines,Utilities,"$5,864.13 ",9/25/2018
City of Des Plaines,Utilities,"$4,373.82 ",10/26/2018
City of Des Plaines,Services,$300.00 ,11/16/2018
City of Des Plaines,Utilities,"$4,240.51 ",11/27/2018
City of Des Plaines,Utilities,"$5,102.79 ",12/28/2018
City of Elgin,Services,$62.03 ,1/9/2018
City of Elgin,Utilities,$93.29 ,1/16/2018
City of Elgin,Utilities,"$1,846.17 ",1/23/2018
City of Elgin,Services,$77.69 ,2/8/2018
City of Elgin,Utilities,$96.49 ,2/13/2018
City of Elgin,Utilities,"$2,254.05 ",2/27/2018
City of Elgin,Services,$79.79 ,3/9/2018
City of Elgin,Utilities,$99.28 ,3/13/2018
City of Elgin,Utilities,"$2,158.99 ",3/27/2018
City of Elgin,Services,$79.79 ,4/10/2018
City of Elgin,Utilities,$95.06 ,4/10/2018
City of Elgin,Utilities,"$1,941.06 ",4/20/2018
City of Elgin,Services,$75.57 ,5/8/2018
City of Elgin,Utilities,$112.81 ,5/15/2018
City of Elgin,Utilities,"$2,044.43 ",5/22/2018
City of Elgin,Services,$213.00 ,5/25/2018
City of Elgin,Services,$72.59 ,6/15/2018
City of Elgin,Utilities,$104.37 ,6/15/2018
City of Elgin,Utilities,"$1,504.89 ",6/19/2018
City of Elgin,Services,$77.68 ,7/13/2018
City of Elgin,Utilities,$103.50 ,7/17/2018
City of Elgin,Utilities,$591.60 ,7/20/2018
City of Elgin,Services,$70.71 ,8/10/2018
City of Elgin,Utilities,$100.30 ,8/14/2018
City of Elgin,Utilities,$658.31 ,8/21/2018
City of Elgin,Services,$72.95 ,9/14/2018
City of Elgin,Utilities,$98.97 ,9/14/2018
City of Elgin,Utilities,"$1,802.63 ",9/25/2018
City of Elgin,Services,$78.40 ,10/5/2018
City of Elgin,Utilities,$105.30 ,10/12/2018
City of Elgin,Utilities,"$2,108.03 ",10/30/2018
City of Elgin,Services,$78.40 ,11/9/2018
City of Elgin,Utilities,$101.08 ,11/13/2018
City of Elgin,Utilities,"$2,719.47 ",11/16/2018
City of Elgin,Services,$84.73 ,12/14/2018
City of Elgin,Utilities,"$2,449.53 ",12/18/2018
City of Evanston,Services,$30.00 ,1/12/2018
City of Evanston,Utilities,"$1,063.70 ",1/26/2018
City of Evanston,Utilities,"$4,261.08 ",3/16/2018
City of Evanston,Miscellaneous,$45.00 ,4/6/2018
City of Evanston,Utilities,"$6,131.08 ",5/31/2018
City of Evanston,Utilities,"$8,504.08 ",7/20/2018
City of Evanston,Utilities,"$1,349.08 ",9/18/2018
City of Evanston,Utilities,$685.95 ,11/27/2018
City of Harvard,Miscellaneous,$522.00 ,3/30/2018
City of Harvey,Miscellaneous,"$11,488.00 ",3/30/2018
City of Highland Park,Purchased Transportation,"$72,629.06 ",2/16/2018
City of Highland Park,Purchased Transportation,"$68,056.80 ",2/27/2018
City of Highland Park,Purchased Transportation,"$41,237.00 ",3/2/2018
City of Highland Park,Fuel/Parts Inventory,"$9,651.22 ",3/20/2018
City of Highland Park,Purchased Transportation,"$75,608.31 ",3/20/2018
City of Highland Park,Purchased Transportation,"$103,820.25 ",4/17/2018
City of Highland Park,Purchased Transportation,"$153,236.96 ",5/31/2018
City of Highland Park,Purchased Transportation,"$127,917.94 ",6/19/2018
City of Highland Park,Purchased Transportation,"$169,087.52 ",7/17/2018
City of Highland Park,Purchased Transportation,"$164,396.54 ",8/14/2018
City of Highland Park,Purchased Transportation,"$149,086.34 ",9/18/2018
City of Highland Park,Purchased Transportation,"$189,480.83 ",10/16/2018
City of Highland Park,Purchased Transportation,"$42,521.95 ",11/20/2018
City of Highland Park,Purchased Transportation,"$64,620.92 ",12/21/2018
City of Hometown,Miscellaneous,"$1,044.00 ",3/30/2018
City of Joliet,Utilities,"$1,050.85 ",1/19/2018
City of Joliet,Utilities,"$1,494.29 ",2/16/2018
City of Joliet,Utilities,"$1,391.46 ",3/16/2018
City of Joliet,Miscellaneous,"$6,789.00 ",3/30/2018
City of Joliet,Utilities,"$1,097.38 ",4/13/2018
City of Joliet,Utilities,"$1,296.54 ",5/11/2018
City of Joliet,Utilities,"$1,240.69 ",6/12/2018
City of Joliet,Utilities,"$1,067.15 ",7/13/2018
City of Joliet,Utilities,"$1,074.58 ",8/10/2018
City of Joliet,Utilities,"$1,193.71 ",9/11/2018
City of Joliet,Utilities,"$1,122.52 ",10/9/2018
City of Joliet,Utilities,"$1,209.05 ",11/9/2018
City of Joliet,Utilities,"$1,144.52 ",12/11/2018
City of Joliet/University of St Francis,Purchased Transportation,$925.00 ,5/8/2018
City of Lockport,Miscellaneous,"$2,089.00 ",3/30/2018
City of Markham,Utilities,"$2,693.00 ",1/26/2018
City of Markham,Utilities,"$3,220.24 ",3/2/2018
City of Markham,Utilities,"$2,348.68 ",3/27/2018
City of Markham,Miscellaneous,"$4,700.00 ",3/30/2018
City of Markham,Utilities,"$3,101.88 ",4/27/2018
City of Markham,Utilities,"$2,337.92 ",5/31/2018
City of Markham,Utilities,"$3,317.08 ",6/29/2018
City of Markham,Utilities,"$3,317.08 ",8/3/2018
City of Markham,Utilities,"$3,381.64 ",8/31/2018
City of Markham,Utilities,"$3,155.68 ",9/28/2018
City of Markham,Utilities,"$3,220.24 ",10/26/2018
City of Markham,Utilities,"$3,026.56 ",11/30/2018
City of Markham,Utilities,"$3,284.80 ",12/28/2018
City of McHenry,Services,$270.00 ,1/9/2018
City of McHenry,Miscellaneous,"$1,044.00 ",3/30/2018
City of McHenry,Services,$270.00 ,3/30/2018
City of McHenry,Services,$270.00 ,7/20/2018
City of McHenry,Services,$270.00 ,10/19/2018
City of North Chicago,Miscellaneous,"$3,655.00 ",3/30/2018
City of Oak Forest,Miscellaneous,"$4,178.00 ",3/30/2018
City of Palos Hills,Purchased Transportation,"$1,200.00 ",1/12/2018
City of Palos Hills,Purchased Transportation,"$1,163.00 ",2/6/2018
City of Palos Hills,Purchased Transportation,"$1,166.00 ",2/13/2018
City of Palos Hills,Purchased Transportation,"$1,136.50 ",4/6/2018
City of Palos Hills,Purchased Transportation,$834.00 ,4/27/2018
City of Palos Hills,Purchased Transportation,"$1,089.00 ",5/31/2018
City of Palos Hills,Purchased Transportation,$960.00 ,7/6/2018
City of Palos Hills,Purchased Transportation,"$1,062.00 ",8/7/2018
City of Palos Hills,Purchased Transportation,$885.00 ,8/31/2018
City of Palos Hills,Purchased Transportation,"$1,035.00 ",10/5/2018
City of Palos Hills,Purchased Transportation,"$1,098.00 ",11/13/2018
City of Palos Hills,Purchased Transportation,$948.00 ,12/14/2018
City of Park City,Miscellaneous,"$1,567.00 ",3/30/2018
City of Rolling Meadows,Miscellaneous,"$5,744.00 ",3/30/2018
City of Waukegan,Utilities,$264.59 ,1/12/2018
City of Waukegan,Miscellaneous,"$8,877.00 ",3/30/2018
City of Waukegan,Utilities,"$3,002.69 ",4/13/2018
City of Waukegan,Utilities,"$2,174.32 ",5/31/2018
City of Waukegan,Utilities,"$1,811.91 ",7/6/2018
City of Waukegan,Utilities,$702.51 ,8/3/2018
City of Waukegan,Utilities,$769.59 ,8/31/2018
City of Waukegan,Utilities,$903.75 ,10/12/2018
City of Waukegan,Utilities,"$1,117.97 ",11/2/2018
City of Waukegan,Utilities,$991.47 ,12/4/2018
City of Waukegan,Services,$175.50 ,12/14/2018
City of Woodstock,Miscellaneous,"$2,089.00 ",3/30/2018
City Service Taxi Association,Purchased Transportation,"$2,972.75 ",1/12/2018
City Service Taxi Association,Purchased Transportation,"$2,970.75 ",1/26/2018
City Service Taxi Association,Purchased Transportation,"$2,063.25 ",2/16/2018
City Service Taxi Association,Purchased Transportation,"$2,517.15 ",3/13/2018
City Service Taxi Association,Purchased Transportation,"$3,562.75 ",5/8/2018
City Service Taxi Association,Purchased Transportation,"$4,159.90 ",5/31/2018
City Service Taxi Association,Purchased Transportation,"$3,506.50 ",6/26/2018
City Service Taxi Association,Purchased Transportation,"$7,522.85 ",8/10/2018
City Service Taxi Association,Purchased Transportation,"$3,427.62 ",9/6/2018
City Service Taxi Association,Purchased Transportation,"$3,924.00 ",10/12/2018
City Service Taxi Association,Purchased Transportation,"$4,067.00 ",11/16/2018
City Service Taxi Association,Purchased Transportation,"$4,006.70 ",12/28/2018
Claims,Claims,($25.00),6/27/2017
Claims,Claims,($600.73),8/11/2017
Claims,Claims,($750.00),9/22/2017
Claims,Claims,"($1,600.00)",10/20/2017
Claims,Claims,"$73,633.24 ",1/4/2018
Claims,Claims,"$12,600.32 ",1/9/2018
Claims,Claims,"$8,705.44 ",1/10/2018
Claims,Claims,"$47,499.45 ",1/12/2018
Claims,Claims,"$31,224.22 ",1/17/2018
Claims,Claims,"$42,093.85 ",1/19/2018
Claims,Claims,"$80,000.00 ",1/22/2018
Claims,Claims,"$46,699.81 ",1/24/2018
Claims,Claims,"$18,970.07 ",1/26/2018
Claims,Claims,"$240,000.00 ",1/29/2018
Claims,Claims,"$138,408.60 ",1/30/2018
Claims,Claims,"$25,885.96 ",1/31/2018
Claims,Claims,"$25,834.72 ",2/6/2018
Claims,Claims,"$83,486.98 ",2/8/2018
Claims,Claims,"$300,806.50 ",2/13/2018
Claims,Claims,"$59,085.86 ",2/16/2018
Claims,Claims,"$2,827.91 ",2/20/2018
Claims,Claims,"$43,995.59 ",2/27/2018
Claims,Claims,"$39,393.12 ",2/28/2018
Claims,Claims,"$6,838.12 ",3/2/2018
Claims,Claims,"$69,097.54 ",3/7/2018
Claims,Claims,"$212,353.89 ",3/9/2018
Claims,Claims,"$2,180,970.02 ",3/13/2018
Claims,Claims,"$23,327.15 ",3/15/2018
Claims,Claims,"$24,302.25 ",3/16/2018
Claims,Claims,"$1,490.40 ",3/20/2018
Claims,Claims,"$30,744.81 ",3/21/2018
Claims,Claims,"$73,550.32 ",3/23/2018
Claims,Claims,"$21,403.36 ",3/28/2018
Claims,Claims,"$50,004.23 ",3/30/2018
Claims,Claims,"$25,521.85 ",4/3/2018
Claims,Claims,"$30,966.68 ",4/5/2018
Claims,Claims,"$39,951.00 ",4/6/2018
Claims,Claims,"$22,560.88 ",4/10/2018
Claims,Claims,"$32,904.88 ",4/12/2018
Claims,Claims,"$45,064.75 ",4/13/2018
Claims,Claims,"$63,993.98 ",4/18/2018
Claims,Claims,"$3,580.10 ",4/20/2018
Claims,Claims,"$46,828.00 ",4/24/2018
Claims,Claims,"$15,404.51 ",4/27/2018
Claims,Claims,"$36,427.49 ",5/2/2018
Claims,Claims,"$5,464.75 ",5/4/2018
Claims,Claims,"$1,607.35 ",5/8/2018
Claims,Claims,"$11,508.87 ",5/10/2018
Claims,Claims,$797.00 ,5/11/2018
Claims,Claims,"$8,097.00 ",5/15/2018
Claims,Claims,"$19,662.97 ",5/16/2018
Claims,Claims,"$51,615.68 ",5/18/2018
Claims,Claims,"$6,247.40 ",5/22/2018
Claims,Claims,"$13,028.39 ",5/24/2018
Claims,Claims,"$1,450.00 ",5/25/2018
Claims,Claims,"$46,205.08 ",5/31/2018
Claims,Claims,"$18,728.28 ",6/5/2018
Claims,Claims,"$90,676.24 ",6/6/2018
Claims,Claims,"$4,758.59 ",6/8/2018
Claims,Claims,"$39,190.07 ",6/13/2018
Claims,Claims,"$155,995.01 ",6/15/2018
Claims,Claims,"$9,780.67 ",6/21/2018
Claims,Claims,"$28,801.75 ",6/22/2018
Claims,Claims,"$25,768.05 ",6/28/2018
Claims,Claims,"$14,857.32 ",6/29/2018
Claims,Claims,"$2,222.01 ",7/3/2018
Claims,Claims,"$63,322.01 ",7/6/2018
Claims,Claims,"$23,012.84 ",7/10/2018
Claims,Claims,"$27,054.22 ",7/11/2018
Claims,Claims,"$4,447.15 ",7/13/2018
Claims,Claims,"$29,505.30 ",7/17/2018
Claims,Claims,"$5,863.84 ",7/18/2018
Claims,Claims,"$65,348.71 ",7/20/2018
Claims,Claims,"$45,560.82 ",7/24/2018
Claims,Claims,"$28,362.02 ",7/25/2018
Claims,Claims,"$953,067.88 ",7/27/2018
Claims,Claims,"$8,755.45 ",7/31/2018
Claims,Claims,"$2,861.66 ",8/1/2018
Claims,Claims,"$31,108.18 ",8/3/2018
Claims,Claims,"$13,236.50 ",8/7/2018
Claims,Claims,"$28,230.94 ",8/8/2018
Claims,Claims,"$14,879.61 ",8/10/2018
Claims,Claims,"$19,008.68 ",8/15/2018
Claims,Claims,"$28,947.18 ",8/17/2018
Claims,Claims,"$75,885.64 ",8/21/2018
Claims,Claims,"$21,833.86 ",8/22/2018
Claims,Claims,"$6,461.00 ",8/24/2018
Claims,Claims,"$190,000.00 ",8/27/2018
Claims,Claims,"$18,695.30 ",8/28/2018
Claims,Claims,"$80,359.41 ",8/29/2018
Claims,Claims,"$3,162.15 ",8/31/2018
Claims,Claims,"$16,720.89 ",9/6/2018
Claims,Claims,"$7,000.00 ",9/10/2018
Claims,Claims,"$12,307.10 ",9/11/2018
Claims,Claims,"$11,409.17 ",9/12/2018
Claims,Claims,$500.00 ,9/13/2018
Claims,Claims,"$21,900.10 ",9/14/2018
Claims,Claims,$634.45 ,9/18/2018
Claims,Claims,"$11,707.84 ",9/19/2018
Claims,Claims,"$33,231.15 ",9/21/2018
Claims,Claims,$899.50 ,9/25/2018
Claims,Claims,"$26,239.25 ",9/27/2018
Claims,Claims,"$2,887.43 ",9/28/2018
Claims,Claims,"$79,323.47 ",10/2/2018
Claims,Claims,"$17,623.23 ",10/3/2018
Claims,Claims,"$532,524.28 ",10/5/2018
Claims,Claims,$736.75 ,10/9/2018
Claims,Claims,"$19,179.54 ",10/10/2018
Claims,Claims,"$23,595.61 ",10/12/2018
Claims,Claims,"$27,707.95 ",10/17/2018
Claims,Claims,"$24,418.65 ",10/19/2018
Claims,Claims,"$3,448.57 ",10/24/2018
Claims,Claims,"$27,354.90 ",10/26/2018
Claims,Claims,"$8,051.75 ",10/30/2018
Claims,Claims,"$24,170.57 ",10/31/2018
Claims,Claims,"$31,727.76 ",11/2/2018
Claims,Claims,"$12,286.99 ",11/7/2018
Claims,Claims,"$6,751.50 ",11/9/2018
Claims,Claims,"$5,435.75 ",11/13/2018
Claims,Claims,"$14,503.20 ",11/14/2018
Claims,Claims,"$31,254.25 ",11/16/2018
Claims,Claims,"$5,713.50 ",11/20/2018
Claims,Claims,"$27,747.60 ",11/27/2018
Claims,Claims,"$41,586.64 ",11/28/2018
Claims,Claims,"$225,000.00 ",11/29/2018
Claims,Claims,"$3,633.20 ",11/30/2018
Claims,Claims,"$29,589.00 ",12/4/2018
Claims,Claims,"$14,157.94 ",12/5/2018
Claims,Claims,"$41,912.36 ",12/7/2018
Claims,Claims,"$16,452.17 ",12/12/2018
Claims,Claims,"$10,650.18 ",12/14/2018
Claims,Claims,"$269,057.93 ",12/21/2018
Claims,Claims,"$32,761.90 ",12/28/2018
Claims,Claims,"$23,407.18 ",12/31/2018
Clarity Partners LLC,Equipment,"$12,317.50 ",4/10/2018
Clarity Partners LLC,Equipment,"$19,630.00 ",5/11/2018
Clarity Partners LLC,Equipment,"$15,437.50 ",6/22/2018
Clarity Partners LLC,Equipment,"$40,592.50 ",8/7/2018
Clarity Partners LLC,Equipment,"$12,772.50 ",9/18/2018
Clarity Partners LLC,Equipment,"$40,625.00 ",11/16/2018
Clarity Partners LLC,Equipment,"$13,975.00 ",12/18/2018
Clark Dietz Inc,Building/Bldg Improvement,"$70,372.34 ",3/30/2018
Clarke Power Services Inc,Fuel/Parts Inventory,"$1,239.58 ",1/19/2018
Clarke Power Services Inc,Fuel/Parts Inventory,$242.50 ,1/23/2018
Clarke Power Services Inc,Fuel/Parts Inventory,$929.16 ,3/2/2018
Clarke Power Services Inc,Fuel/Parts Inventory,"$1,055.16 ",3/13/2018
Clarke Power Services Inc,Fuel/Parts Inventory,$622.47 ,4/10/2018
Clarke Power Services Inc,Materials and Supplies,$15.00 ,4/10/2018
Clarke Power Services Inc,Fuel/Parts Inventory,$660.61 ,4/27/2018
Clarke Power Services Inc,Fuel/Parts Inventory,"$2,331.90 ",5/4/2018
Clarke Power Services Inc,Fuel/Parts Inventory,"$3,749.85 ",5/18/2018
Clarke Power Services Inc,Fuel/Parts Inventory,$242.12 ,7/6/2018
Clarke Power Services Inc,Fuel/Parts Inventory,$517.86 ,7/20/2018
Clarke Power Services Inc,Fuel/Parts Inventory,"$5,090.80 ",7/27/2018
Clarke Power Services Inc,Fuel/Parts Inventory,"$1,309.00 ",8/3/2018
Clarke Power Services Inc,Fuel/Parts Inventory,"$3,680.08 ",8/10/2018
Clarke Power Services Inc,Fuel/Parts Inventory,"$7,247.55 ",8/24/2018
Clarke Power Services Inc,Fuel/Parts Inventory,$332.16 ,8/31/2018
Clarke Power Services Inc,Fuel/Parts Inventory,"$1,208.94 ",9/6/2018
Clarke Power Services Inc,Fuel/Parts Inventory,$50.00 ,9/25/2018
Clarke Power Services Inc,Fuel/Parts Inventory,"$1,245.44 ",10/9/2018
Clarke Power Services Inc,Fuel/Parts Inventory,"$3,237.73 ",10/16/2018
Clarke Power Services Inc,Fuel/Parts Inventory,$221.04 ,10/19/2018
Clarke Power Services Inc,Fuel/Parts Inventory,"$7,648.52 ",10/26/2018
Clarke Power Services Inc,Fuel/Parts Inventory,"$3,627.30 ",11/2/2018
Clarke Power Services Inc,Fuel/Parts Inventory,"$3,022.80 ",11/16/2018
Clarke Power Services Inc,Fuel/Parts Inventory,$960.74 ,11/20/2018
Clarke Power Services Inc,Fuel/Parts Inventory,"$6,710.28 ",11/27/2018
Clarke Power Services Inc,Fuel/Parts Inventory,"$5,381.04 ",11/30/2018
Clarke Power Services Inc,Fuel/Parts Inventory,"$4,723.80 ",12/14/2018
Clear Height Properties Lively LLC,Leases and Rentals,"$6,148.33 ",1/4/2018
Clear Height Properties Lively LLC,Leases and Rentals,"$6,148.33 ",1/26/2018
Clear Height Properties Lively LLC,Leases and Rentals,"$6,332.50 ",2/27/2018
Clear Height Properties Lively LLC,Leases and Rentals,"$6,332.50 ",5/1/2018
Clear Height Properties Lively LLC,Leases and Rentals,"$6,332.50 ",5/31/2018
Clear Height Properties Lively LLC,Leases and Rentals,"$6,332.50 ",6/5/2018
Clear Height Properties Lively LLC,Leases and Rentals,"$6,332.50 ",7/6/2018
Clear Height Properties Lively LLC,Leases and Rentals,"$6,332.50 ",8/7/2018
Clear Height Properties Lively LLC,Leases and Rentals,"$6,332.50 ",9/14/2018
Clear Height Properties Lively LLC,Leases and Rentals,"$6,332.50 ",9/25/2018
Clear Height Properties Lively LLC,Leases and Rentals,"$6,332.50 ",10/30/2018
Clear Height Properties Lively LLC,Leases and Rentals,"$6,332.50 ",11/27/2018
Clever Devices Ltd,Services,"$53,266.00 ",5/18/2018
ClientFirst Technology Consulting,Services,"$7,457.07 ",6/26/2018
ClientFirst Technology Consulting,Services,"$1,552.50 ",7/6/2018
ClientFirst Technology Consulting,Services,$600.00 ,7/24/2018
ClientFirst Technology Consulting,Services,"$16,379.72 ",9/11/2018
Coffman Truck Sales Inc,Services,$129.00 ,1/12/2018
Coffman Truck Sales Inc,Services,$129.00 ,3/2/2018
Coffman Truck Sales Inc,Services,$193.50 ,3/16/2018
Coffman Truck Sales Inc,Services,$194.00 ,4/10/2018
Coffman Truck Sales Inc,Services,$150.00 ,5/8/2018
Coffman Truck Sales Inc,Fuel/Parts Inventory,"$12,737.58 ",6/8/2018
Coffman Truck Sales Inc,Services,$150.50 ,6/8/2018
Coffman Truck Sales Inc,Fuel/Parts Inventory,"$6,167.45 ",6/12/2018
Coffman Truck Sales Inc,Fuel/Parts Inventory,$721.54 ,6/22/2018
Coffman Truck Sales Inc,Fuel/Parts Inventory,"$34,507.68 ",7/13/2018
Coffman Truck Sales Inc,Services,$1.00 ,7/13/2018
Coffman Truck Sales Inc,Fuel/Parts Inventory,"$2,559.00 ",7/17/2018
Coffman Truck Sales Inc,Services,$128.00 ,7/17/2018
Coffman Truck Sales Inc,Fuel/Parts Inventory,"$5,020.84 ",7/20/2018
Coffman Truck Sales Inc,Fuel/Parts Inventory,"$1,211.64 ",7/24/2018
Coffman Truck Sales Inc,Fuel/Parts Inventory,$535.19 ,7/31/2018
Coffman Truck Sales Inc,Fuel/Parts Inventory,"$22,831.76 ",8/10/2018
Coffman Truck Sales Inc,Services,$43.00 ,8/10/2018
Coffman Truck Sales Inc,Fuel/Parts Inventory,"$3,380.11 ",8/14/2018
Coffman Truck Sales Inc,Services,$64.50 ,8/14/2018
Coffman Truck Sales Inc,Fuel/Parts Inventory,$691.60 ,8/24/2018
Coffman Truck Sales Inc,Fuel/Parts Inventory,"$25,245.03 ",9/14/2018
Coffman Truck Sales Inc,Services,$172.00 ,9/14/2018
Coffman Truck Sales Inc,Fuel/Parts Inventory,"$39,789.60 ",9/18/2018
Coffman Truck Sales Inc,Fuel/Parts Inventory,"$27,760.03 ",10/12/2018
Coffman Truck Sales Inc,Services,$86.00 ,10/12/2018
Coffman Truck Sales Inc,Fuel/Parts Inventory,"$14,754.67 ",10/16/2018
Coffman Truck Sales Inc,Services,$86.00 ,10/16/2018
Coffman Truck Sales Inc,Fuel/Parts Inventory,$121.07 ,10/19/2018
Coffman Truck Sales Inc,Fuel/Parts Inventory,"$45,800.04 ",11/16/2018
Coffman Truck Sales Inc,Materials and Supplies,($0.09),11/16/2018
Coffman Truck Sales Inc,Services,$236.50 ,11/16/2018
Coffman Truck Sales Inc,Fuel/Parts Inventory,"$47,370.34 ",11/20/2018
Coffman Truck Sales Inc,Fuel/Parts Inventory,"$2,231.83 ",11/27/2018
Coffman Truck Sales Inc,Materials and Supplies,($70.00),11/27/2018
Coffman Truck Sales Inc,Fuel/Parts Inventory,"$1,102.90 ",11/30/2018
Coffman Truck Sales Inc,Fuel/Parts Inventory,"$4,951.04 ",12/4/2018
Coffman Truck Sales Inc,Fuel/Parts Inventory,"$37,031.80 ",12/18/2018
Coffman Truck Sales Inc,Fuel/Parts Inventory,"$6,425.16 ",12/21/2018
Coffman Truck Sales Inc,Services,$150.00 ,12/21/2018
Coffman Truck Sales Inc,Fuel/Parts Inventory,"$4,933.64 ",12/28/2018
Colley Elevator Co,Services,$155.00 ,2/27/2018
Colley Elevator Co,Services,$225.00 ,3/6/2018
Colley Elevator Co,Services,$155.00 ,5/8/2018
Colley Elevator Co,Services,$155.00 ,6/29/2018
Colley Elevator Co,Services,$155.00 ,8/14/2018
Colley Elevator Co,Services,$155.00 ,9/14/2018
Colley Elevator Co,Services,$155.00 ,12/4/2018
Colley Elevator Co,Services,$155.00 ,12/18/2018
Combined Charities Campaign,Fringe Benefits,$227.00 ,12/11/2018
Combined Sales Company,Materials and Supplies,"$1,125.00 ",1/19/2018
Combined Sales Company,Services,$209.76 ,1/19/2018
Combined Sales Company,Materials and Supplies,"$1,226.50 ",2/13/2018
Combined Sales Company,Materials and Supplies,"$1,885.90 ",3/13/2018
Combined Sales Company,Materials and Supplies,"$1,216.20 ",4/27/2018
Combined Sales Company,Materials and Supplies,$252.00 ,5/4/2018
Combined Sales Company,Services,$627.75 ,5/15/2018
Combined Sales Company,Services,$292.00 ,5/22/2018
Combined Sales Company,Materials and Supplies,$349.20 ,6/8/2018
Combined Sales Company,Materials and Supplies,$492.00 ,7/10/2018
Combined Sales Company,Services,$541.75 ,7/10/2018
Combined Sales Company,Services,$206.00 ,8/14/2018
Combined Sales Company,Materials and Supplies,"$1,170.00 ",8/24/2018
Combined Sales Company,Services,$206.00 ,9/6/2018
Combined Sales Company,Materials and Supplies,$349.20 ,9/25/2018
Combined Sales Company,Materials and Supplies,$432.00 ,10/16/2018
Combined Sales Company,Services,$292.00 ,10/16/2018
Combined Sales Company,Materials and Supplies,$748.38 ,11/6/2018
Combined Sales Company,Materials and Supplies,"$1,304.00 ",11/16/2018
Combined Sales Company,Services,$405.80 ,11/16/2018
Combined Sales Company,Materials and Supplies,"$1,704.60 ",12/4/2018
Combined Sales Company,Services,$292.00 ,12/21/2018
Comcast,Services,$288.58 ,1/16/2018
Comcast,Utilities,$360.72 ,1/16/2018
Comcast,Services,$319.60 ,1/26/2018
Comcast,Utilities,$133.05 ,1/26/2018
Comcast,Utilities,$360.72 ,2/20/2018
Comcast,Services,"$1,065.91 ",2/23/2018
Comcast,Utilities,$128.30 ,2/23/2018
Comcast,Services,$434.08 ,3/16/2018
Comcast,Services,$350.52 ,3/23/2018
Comcast,Utilities,$489.02 ,3/23/2018
Comcast,Utilities,$360.07 ,4/20/2018
Comcast,Services,$636.30 ,4/24/2018
Comcast,Services,$128.15 ,4/27/2018
Comcast,Utilities,$128.15 ,4/27/2018
Comcast,Services,$424.08 ,5/15/2018
Comcast,Utilities,$360.07 ,5/15/2018
Comcast,Services,$212.22 ,5/22/2018
Comcast,Services,$128.15 ,5/25/2018
Comcast,Utilities,$128.15 ,5/25/2018
Comcast,Services,$636.30 ,6/22/2018
Comcast,Services,$128.15 ,6/26/2018
Comcast,Utilities,$128.15 ,6/26/2018
Comcast,Utilities,$360.07 ,6/29/2018
Comcast,Services,$424.08 ,7/17/2018
Comcast,Utilities,$360.03 ,7/20/2018
Comcast,Services,$340.40 ,7/27/2018
Comcast,Utilities,$128.19 ,7/27/2018
Comcast,Services,$601.13 ,8/21/2018
Comcast,Utilities,$360.38 ,8/24/2018
Comcast,Services,$163.38 ,8/28/2018
Comcast,Utilities,$128.21 ,8/28/2018
Comcast,Utilities,$378.66 ,9/18/2018
Comcast,Services,$424.08 ,9/21/2018
Comcast,Services,$340.43 ,9/25/2018
Comcast,Utilities,$128.21 ,9/25/2018
Comcast,Utilities,$380.09 ,10/12/2018
Comcast,Services,$424.06 ,10/16/2018
Comcast,Services,$177.03 ,10/19/2018
Comcast,Services,$35.15 ,10/26/2018
Comcast,Services,$128.53 ,10/30/2018
Comcast,Utilities,$128.53 ,10/30/2018
Comcast,Services,$601.09 ,11/20/2018
Comcast,Services,$35.15 ,11/27/2018
Comcast,Services,$344.44 ,11/30/2018
Comcast,Utilities,$380.09 ,11/30/2018
Comcast,Services,$133.53 ,12/4/2018
Comcast,Utilities,$133.53 ,12/4/2018
Comcast,Services,$716.88 ,12/21/2018
Comcast,Utilities,$380.09 ,12/21/2018
Comcast,Services,$300.56 ,12/28/2018
Comcast,Utilities,$123.53 ,12/28/2018
Commonwealth Edison,Utilities,$33.03 ,1/4/2018
Commonwealth Edison,Services,$621.37 ,1/9/2018
Commonwealth Edison,Utilities,"$5,364.11 ",1/9/2018
Commonwealth Edison,Utilities,"$67,440.54 ",1/12/2018
Commonwealth Edison,Services,"$2,140.72 ",1/16/2018
Commonwealth Edison,Services,$577.68 ,1/19/2018
Commonwealth Edison,Utilities,"$48,842.10 ",1/19/2018
Commonwealth Edison,Utilities,"$1,980.24 ",1/23/2018
Commonwealth Edison,Utilities,"$2,622.80 ",1/26/2018
Commonwealth Edison,Utilities,$150.99 ,1/30/2018
Commonwealth Edison,Utilities,"$3,130.18 ",2/2/2018
Commonwealth Edison,Utilities,$74.30 ,2/6/2018
Commonwealth Edison,Services,$234.99 ,2/8/2018
Commonwealth Edison,Utilities,"$20,319.17 ",2/8/2018
Commonwealth Edison,Services,"$4,639.69 ",2/13/2018
Commonwealth Edison,Utilities,"$15,653.02 ",2/13/2018
Commonwealth Edison,Services,$95.28 ,2/16/2018
Commonwealth Edison,Utilities,"$8,051.84 ",2/16/2018
Commonwealth Edison,Services,$300.55 ,2/20/2018
Commonwealth Edison,Utilities,"$24,790.03 ",2/20/2018
Commonwealth Edison,Services,"$2,405.51 ",2/23/2018
Commonwealth Edison,Utilities,"$6,288.52 ",2/23/2018
Commonwealth Edison,Utilities,"$2,499.84 ",2/27/2018
Commonwealth Edison,Services,"$3,354.50 ",3/2/2018
Commonwealth Edison,Utilities,"$21,930.08 ",3/2/2018
Commonwealth Edison,Services,$155.38 ,3/6/2018
Commonwealth Edison,Utilities,"$5,893.30 ",3/6/2018
Commonwealth Edison,Utilities,"$13,184.20 ",3/9/2018
Commonwealth Edison,Services,$383.49 ,3/13/2018
Commonwealth Edison,Utilities,"$10,532.48 ",3/13/2018
Commonwealth Edison,Services,"$1,431.33 ",3/16/2018
Commonwealth Edison,Utilities,"$26,198.66 ",3/16/2018
Commonwealth Edison,Services,$280.35 ,3/20/2018
Commonwealth Edison,Utilities,"$5,280.25 ",3/20/2018
Commonwealth Edison,Services,$878.37 ,3/23/2018
Commonwealth Edison,Utilities,"$23,825.81 ",3/23/2018
Commonwealth Edison,Services,$658.40 ,3/27/2018
Commonwealth Edison,Services,"$1,902.99 ",3/30/2018
Commonwealth Edison,Utilities,$69.20 ,3/30/2018
Commonwealth Edison,Utilities,$521.97 ,4/3/2018
Commonwealth Edison,Services,$307.22 ,4/6/2018
Commonwealth Edison,Utilities,"$6,400.77 ",4/6/2018
Commonwealth Edison,Services,$162.36 ,4/10/2018
Commonwealth Edison,Utilities,"$16,288.79 ",4/10/2018
Commonwealth Edison,Utilities,"$36,838.85 ",4/13/2018
Commonwealth Edison,Services,$75.22 ,4/17/2018
Commonwealth Edison,Utilities,"$5,047.49 ",4/17/2018
Commonwealth Edison,Utilities,"$26,936.67 ",4/20/2018
Commonwealth Edison,Services,"$1,362.32 ",4/24/2018
Commonwealth Edison,Utilities,"$1,650.74 ",4/24/2018
Commonwealth Edison,Materials and Supplies,$34.00 ,4/27/2018
Commonwealth Edison,Services,"$3,332.95 ",4/27/2018
Commonwealth Edison,Utilities,"$2,157.37 ",4/27/2018
Commonwealth Edison,Utilities,$35.58 ,5/4/2018
Commonwealth Edison,Services,$488.50 ,5/8/2018
Commonwealth Edison,Utilities,"$7,166.90 ",5/8/2018
Commonwealth Edison,Utilities,"$47,350.23 ",5/11/2018
Commonwealth Edison,Utilities,"$9,310.08 ",5/15/2018
Commonwealth Edison,Services,"$1,666.05 ",5/18/2018
Commonwealth Edison,Services,$481.12 ,5/25/2018
Commonwealth Edison,Utilities,"$1,681.07 ",5/25/2018
Commonwealth Edison,Services,$257.14 ,5/31/2018
Commonwealth Edison,Services,"$2,152.63 ",6/5/2018
Commonwealth Edison,Utilities,"$6,286.42 ",6/5/2018
Commonwealth Edison,Utilities,"$24,684.83 ",6/8/2018
Commonwealth Edison,Utilities,"$28,745.39 ",6/12/2018
Commonwealth Edison,Services,$762.72 ,6/22/2018
Commonwealth Edison,Utilities,"$48,071.63 ",6/22/2018
Commonwealth Edison,Services,"$2,369.01 ",6/26/2018
Commonwealth Edison,Utilities,"$5,579.92 ",6/26/2018
Commonwealth Edison,Utilities,$74.04 ,6/29/2018
Commonwealth Edison,Services,$474.53 ,7/6/2018
Commonwealth Edison,Utilities,"$5,250.08 ",7/6/2018
Commonwealth Edison,Utilities,"$17,763.78 ",7/10/2018
Commonwealth Edison,Utilities,"$36,984.06 ",7/13/2018
Commonwealth Edison,Services,$737.43 ,7/17/2018
Commonwealth Edison,Utilities,"$6,099.50 ",7/17/2018
Commonwealth Edison,Services,$318.79 ,7/20/2018
Commonwealth Edison,Utilities,"$24,396.98 ",7/20/2018
Commonwealth Edison,Building/Bldg Improvement,"$6,700.00 ",7/23/2018
Commonwealth Edison,Services,$129.97 ,7/24/2018
Commonwealth Edison,Utilities,$583.41 ,7/24/2018
Commonwealth Edison,Services,"$1,513.53 ",7/27/2018
Commonwealth Edison,Utilities,"$8,870.63 ",7/27/2018
Commonwealth Edison,Utilities,$575.97 ,7/31/2018
Commonwealth Edison,Utilities,"$4,455.86 ",8/3/2018
Commonwealth Edison,Services,$146.42 ,8/7/2018
Commonwealth Edison,Utilities,"$5,456.42 ",8/7/2018
Commonwealth Edison,Utilities,"$66,342.78 ",8/10/2018
Commonwealth Edison,Services,"$1,250.46 ",8/14/2018
Commonwealth Edison,Services,$153.34 ,8/17/2018
Commonwealth Edison,Services,$304.46 ,8/21/2018
Commonwealth Edison,Utilities,"$4,548.42 ",8/21/2018
Commonwealth Edison,Utilities,"$25,116.81 ",8/24/2018
Commonwealth Edison,Services,"$1,578.37 ",8/28/2018
Commonwealth Edison,Utilities,$78.49 ,8/28/2018
Commonwealth Edison,Utilities,"$5,466.19 ",8/31/2018
Commonwealth Edison,Building/Bldg Improvement,"$851,501.58 ",9/6/2018
Commonwealth Edison,Services,$877.71 ,9/6/2018
Commonwealth Edison,Utilities,"$45,763.67 ",9/11/2018
Commonwealth Edison,Services,$723.59 ,9/14/2018
Commonwealth Edison,Utilities,"$26,853.43 ",9/14/2018
Commonwealth Edison,Utilities,"$29,641.09 ",9/18/2018
Commonwealth Edison,Utilities,"$2,595.31 ",9/21/2018
Commonwealth Edison,Utilities,$76.44 ,9/25/2018
Commonwealth Edison,Services,"$1,969.96 ",9/28/2018
Commonwealth Edison,Utilities,$463.08 ,9/28/2018
Commonwealth Edison,Services,$273.33 ,10/2/2018
Commonwealth Edison,Utilities,"$5,196.04 ",10/2/2018
Commonwealth Edison,Services,$845.80 ,10/5/2018
Commonwealth Edison,Utilities,$163.90 ,10/5/2018
Commonwealth Edison,Utilities,"$11,546.66 ",10/9/2018
Commonwealth Edison,Services,"$1,246.52 ",10/11/2018
Commonwealth Edison,Utilities,"$27,168.11 ",10/12/2018
Commonwealth Edison,Services,$822.33 ,10/16/2018
Commonwealth Edison,Utilities,"$9,318.73 ",10/16/2018
Commonwealth Edison,Services,$409.80 ,10/19/2018
Commonwealth Edison,Utilities,"$4,097.16 ",10/19/2018
Commonwealth Edison,Services,$322.24 ,10/23/2018
Commonwealth Edison,Utilities,"$34,601.53 ",10/23/2018
Commonwealth Edison,Services,"$1,970.87 ",10/26/2018
Commonwealth Edison,Utilities,$139.98 ,10/26/2018
Commonwealth Edison,Services,$411.91 ,10/30/2018
Commonwealth Edison,Utilities,$380.24 ,10/30/2018
Commonwealth Edison,Services,$557.60 ,11/2/2018
Commonwealth Edison,Utilities,"$7,970.27 ",11/2/2018
Commonwealth Edison,Utilities,$481.34 ,11/6/2018
Commonwealth Edison,Utilities,"$39,638.44 ",11/13/2018
Commonwealth Edison,Services,"$1,736.75 ",11/16/2018
Commonwealth Edison,Utilities,"$9,819.18 ",11/16/2018
Commonwealth Edison,Utilities,"$24,482.56 ",11/20/2018
Commonwealth Edison,Services,"$2,585.56 ",11/27/2018
Commonwealth Edison,Utilities,"$1,616.94 ",11/27/2018
Commonwealth Edison,Services,$816.18 ,11/30/2018
Commonwealth Edison,Utilities,$726.86 ,11/30/2018
Commonwealth Edison,Services,$932.19 ,12/4/2018
Commonwealth Edison,Utilities,"$17,581.30 ",12/7/2018
Commonwealth Edison,Services,"$1,381.23 ",12/14/2018
Commonwealth Edison,Utilities,"$49,941.86 ",12/14/2018
Commonwealth Edison,Services,$393.12 ,12/18/2018
Commonwealth Edison,Utilities,"$30,960.42 ",12/18/2018
Commonwealth Edison,Services,"$1,390.45 ",12/21/2018
Commonwealth Edison,Utilities,"$6,268.81 ",12/21/2018
Commonwealth Edison,Services,"$3,806.19 ",12/28/2018
Commonwealth Edison,Utilities,$70.46 ,12/28/2018
Computer Aid Inc,Services,"$16,541.25 ",5/31/2018
Computer Aid Inc,Services,"$33,777.50 ",6/29/2018
Computer Aid Inc,Services,"$47,971.25 ",7/20/2018
Computer Aid Inc,Services,"$3,990.00 ",8/7/2018
Computer Aid Inc,Services,"$51,310.00 ",8/28/2018
Computer Aid Inc,Services,"$45,250.00 ",9/28/2018
Computer Aid Inc,Services,"$24,895.00 ",11/2/2018
Computer Aid Inc,Services,"$12,882.50 ",11/30/2018
Concentra Medical Center,Services,$72.00 ,1/12/2018
Concentra Medical Center,Services,$325.50 ,1/19/2018
Concentra Medical Center,Services,$63.00 ,1/23/2018
Concentra Medical Center,Services,$180.50 ,1/26/2018
Concentra Medical Center,Services,$72.00 ,2/2/2018
Concentra Medical Center,Services,$180.50 ,2/13/2018
Concentra Medical Center,Services,$72.00 ,2/20/2018
Concentra Medical Center,Services,$217.00 ,2/23/2018
Concentra Medical Center,Services,$288.00 ,3/6/2018
Concentra Medical Center,Services,$759.50 ,3/16/2018
Concentra Medical Center,Services,$108.50 ,3/27/2018
Concentra Medical Center,Services,$217.00 ,4/3/2018
Concentra Medical Center,Services,$434.00 ,4/13/2018
Concentra Medical Center,Services,$108.50 ,5/1/2018
Concentra Medical Center,Services,$217.00 ,5/4/2018
Concentra Medical Center,Services,$325.50 ,5/15/2018
Concentra Medical Center,Services,$108.50 ,5/25/2018
Concentra Medical Center,Services,$108.50 ,6/12/2018
Concentra Medical Center,Services,$614.50 ,6/26/2018
Concentra Medical Center,Services,$469.50 ,7/6/2018
Concentra Medical Center,Services,$325.50 ,7/13/2018
Concentra Medical Center,Services,$144.00 ,7/20/2018
Concentra Medical Center,Services,$434.00 ,8/3/2018
Concentra Medical Center,Services,$72.00 ,8/10/2018
Concentra Medical Center,Services,$217.00 ,8/17/2018
Concentra Medical Center,Services,$72.00 ,8/21/2018
Concentra Medical Center,Services,$217.00 ,8/24/2018
Concentra Medical Center,Services,$217.00 ,9/14/2018
Concentra Medical Center,Services,$108.50 ,9/25/2018
Concentra Medical Center,Services,$108.50 ,10/2/2018
Concentra Medical Center,Services,$217.00 ,10/12/2018
Concentra Medical Center,Services,$325.50 ,10/16/2018
Concentra Medical Center,Services,$217.00 ,10/30/2018
Concentra Medical Center,Services,$72.00 ,11/2/2018
Concentra Medical Center,Services,$108.50 ,11/20/2018
Concentra Medical Center,Services,$108.50 ,12/4/2018
Concentra Medical Center,Services,$108.50 ,12/21/2018
Concentra Medical Centers  Occupational,Services,$40.00 ,1/4/2018
Concentra Medical Centers  Occupational,Services,$230.50 ,1/16/2018
Concentra Medical Centers  Occupational,Services,"$1,275.00 ",1/19/2018
Concentra Medical Centers  Occupational,Services,$651.00 ,1/26/2018
Concentra Medical Centers  Occupational,Services,"$2,375.00 ",2/2/2018
Concentra Medical Centers  Occupational,Services,$682.98 ,2/13/2018
Concentra Medical Centers  Occupational,Services,$44.98 ,2/20/2018
Concentra Medical Centers  Occupational,Services,$680.30 ,2/23/2018
Concentra Medical Centers  Occupational,Services,$913.56 ,3/2/2018
Concentra Medical Centers  Occupational,Services,"$1,103.98 ",3/6/2018
Concentra Medical Centers  Occupational,Services,$199.56 ,3/13/2018
Concentra Medical Centers  Occupational,Services,"$1,723.00 ",3/16/2018
Concentra Medical Centers  Occupational,Services,"$2,376.85 ",3/20/2018
Concentra Medical Centers  Occupational,Services,"$1,135.59 ",3/23/2018
Concentra Medical Centers  Occupational,Services,$386.00 ,3/27/2018
Concentra Medical Centers  Occupational,Services,$809.40 ,4/3/2018
Concentra Medical Centers  Occupational,Services,$42.85 ,4/10/2018
Concentra Medical Centers  Occupational,Services,$108.50 ,4/13/2018
Concentra Medical Centers  Occupational,Services,$419.50 ,4/17/2018
Concentra Medical Centers  Occupational,Services,$852.43 ,4/20/2018
Concentra Medical Centers  Occupational,Services,$109.60 ,4/27/2018
Concentra Medical Centers  Occupational,Services,"$1,118.85 ",5/1/2018
Concentra Medical Centers  Occupational,Services,$327.01 ,5/4/2018
Concentra Medical Centers  Occupational,Services,$108.50 ,5/8/2018
Concentra Medical Centers  Occupational,Services,$378.78 ,5/15/2018
Concentra Medical Centers  Occupational,Services,$267.05 ,5/18/2018
Concentra Medical Centers  Occupational,Services,"$1,214.25 ",5/22/2018
Concentra Medical Centers  Occupational,Services,"$1,009.36 ",5/25/2018
Concentra Medical Centers  Occupational,Services,$542.50 ,5/31/2018
Concentra Medical Centers  Occupational,Services,$259.23 ,6/8/2018
Concentra Medical Centers  Occupational,Services,$868.00 ,6/12/2018
Concentra Medical Centers  Occupational,Services,"$1,075.58 ",6/26/2018
Concentra Medical Centers  Occupational,Services,"$2,682.99 ",6/29/2018
Concentra Medical Centers  Occupational,Services,"$1,062.41 ",7/6/2018
Concentra Medical Centers  Occupational,Services,$542.50 ,7/13/2018
Concentra Medical Centers  Occupational,Services,$218.51 ,7/20/2018
Concentra Medical Centers  Occupational,Services,"$3,016.93 ",7/27/2018
Concentra Medical Centers  Occupational,Services,"$1,737.51 ",8/3/2018
Concentra Medical Centers  Occupational,Services,"$1,506.22 ",8/10/2018
Concentra Medical Centers  Occupational,Services,$542.50 ,8/17/2018
Concentra Medical Centers  Occupational,Services,"$1,653.43 ",8/21/2018
Concentra Medical Centers  Occupational,Services,$87.83 ,8/24/2018
Concentra Medical Centers  Occupational,Services,$246.67 ,8/31/2018
Concentra Medical Centers  Occupational,Services,"$1,018.32 ",9/6/2018
Concentra Medical Centers  Occupational,Services,$87.83 ,9/11/2018
Concentra Medical Centers  Occupational,Services,"$3,381.50 ",9/14/2018
Concentra Medical Centers  Occupational,Services,$779.55 ,9/21/2018
Concentra Medical Centers  Occupational,Services,$759.50 ,9/28/2018
Concentra Medical Centers  Occupational,Services,"$1,009.58 ",10/2/2018
Concentra Medical Centers  Occupational,Services,$409.25 ,10/5/2018
Concentra Medical Centers  Occupational,Services,$886.13 ,10/9/2018
Concentra Medical Centers  Occupational,Services,$956.37 ,10/12/2018
Concentra Medical Centers  Occupational,Services,$434.00 ,10/16/2018
Concentra Medical Centers  Occupational,Services,$602.98 ,10/19/2018
Concentra Medical Centers  Occupational,Services,$739.64 ,10/23/2018
Concentra Medical Centers  Occupational,Services,$161.15 ,10/26/2018
Concentra Medical Centers  Occupational,Services,$699.00 ,10/30/2018
Concentra Medical Centers  Occupational,Services,$651.00 ,11/2/2018
Concentra Medical Centers  Occupational,Services,"$1,233.42 ",11/13/2018
Concentra Medical Centers  Occupational,Services,$468.15 ,11/16/2018
Concentra Medical Centers  Occupational,Services,$529.65 ,11/20/2018
Concentra Medical Centers  Occupational,Services,$325.50 ,11/27/2018
Concentra Medical Centers  Occupational,Services,$434.00 ,12/4/2018
Concentra Medical Centers  Occupational,Services,"$2,707.60 ",12/7/2018
Concentra Medical Centers  Occupational,Services,$833.50 ,12/14/2018
Concentra Medical Centers  Occupational,Services,$42.85 ,12/18/2018
Contech MSI Co,Services,$267.00 ,3/2/2018
Contech MSI Co,Services,$267.00 ,4/20/2018
Contech MSI Co,Services,$267.00 ,7/20/2018
Contech MSI Co,Services,$267.00 ,9/28/2018
Contech MSI Co,Services,$267.00 ,12/14/2018
Continental Battery Company,Fuel/Parts Inventory,"$5,218.20 ",1/16/2018
Continental Battery Company,Fuel/Parts Inventory,"$15,799.55 ",1/19/2018
Continental Battery Company,Fuel/Parts Inventory,"$1,739.40 ",2/2/2018
Continental Battery Company,Fuel/Parts Inventory,"$8,262.15 ",2/8/2018
Continental Battery Company,Fuel/Parts Inventory,"$9,276.80 ",3/2/2018
Continental Battery Company,Fuel/Parts Inventory,"$1,739.40 ",4/10/2018
Continental Carbonic Products Inc,Services,"$3,800.00 ",5/4/2018
ConvergeOne Inc,Services,$254.07 ,3/27/2018
ConvergeOne Inc,Services,"$1,411.00 ",4/13/2018
ConvergeOne Inc,Services,$332.00 ,5/8/2018
ConvergeOne Inc,Services,$249.00 ,6/22/2018
ConvergeOne Inc,Services,$166.00 ,9/28/2018
ConvergeOne Inc,Services,$70.00 ,11/13/2018
Cook County Recorder of Deeds,Land,$904.00 ,3/2/2018
Cook County Recorder of Deeds,Miscellaneous,$21.00 ,6/29/2018
Cook County Recorder of Deeds,Services,$154.00 ,8/10/2018
Cook County Treasurer,Building/Bldg Improvement,"$718,887.79 ",11/6/2018
Cook DuPage Transportation Co,Purchased Transportation,"$3,912,376.69 ",1/22/2018
Cook DuPage Transportation Co,Purchased Transportation,"$4,078,873.05 ",2/26/2018
Cook DuPage Transportation Co,Purchased Transportation,"$3,718,455.30 ",4/6/2018
Cook DuPage Transportation Co,Purchased Transportation,"$4,261,267.68 ",5/1/2018
Cook DuPage Transportation Co,Purchased Transportation,"$4,217,176.70 ",5/31/2018
Cook DuPage Transportation Co,Purchased Transportation,"$4,162,112.68 ",6/29/2018
Cook DuPage Transportation Co,Purchased Transportation,"$3,951,601.22 ",7/31/2018
Cook DuPage Transportation Co,Purchased Transportation,"$4,012,077.19 ",9/6/2018
Cook DuPage Transportation Co,Purchased Transportation,"$4,182,238.27 ",10/3/2018
Cook DuPage Transportation Co,Purchased Transportation,"$3,808,835.41 ",11/6/2018
Cook DuPage Transportation Co,Purchased Transportation,"$3,992,753.73 ",11/21/2018
Cook DuPage Transportation Co,Purchased Transportation,"$3,607,510.02 ",12/31/2018
Corbel Solutions LLC,Equipment,"$33,664.00 ",8/3/2018
Corkys Catering Inc,Miscellaneous,$701.24 ,10/23/2018
Corporate Cost Control Inc,Services,"$1,075.00 ",3/9/2018
Corporate Cost Control Inc,Services,"$1,950.00 ",10/5/2018
Cosmopolitan Cleaning And Maintenance,Services,"$1,148.33 ",2/6/2018
Cosmopolitan Cleaning And Maintenance,Services,"$1,148.33 ",3/13/2018
Cosmopolitan Cleaning And Maintenance,Services,"$1,148.33 ",4/13/2018
Cosmopolitan Cleaning And Maintenance,Services,"$1,148.33 ",4/27/2018
Cosmopolitan Cleaning And Maintenance,Services,"$1,148.33 ",6/26/2018
Cosmopolitan Cleaning And Maintenance,Services,"$1,148.33 ",6/29/2018
Cosmopolitan Cleaning And Maintenance,Services,"$1,148.33 ",7/27/2018
Cosmopolitan Cleaning And Maintenance,Services,"$1,148.33 ",9/11/2018
Cosmopolitan Cleaning And Maintenance,Services,"$1,148.33 ",9/28/2018
Cosmopolitan Cleaning And Maintenance,Services,"$1,148.33 ",10/19/2018
Cosmopolitan Cleaning And Maintenance,Services,"$1,148.33 ",11/16/2018
Cosmopolitan Cleaning And Maintenance,Services,"$1,148.33 ",12/28/2018
CrateXpress,Services,"$5,765.75 ",8/28/2018
Crawford Murphy & Tilly Inc,Building/Bldg Improvement,"$29,156.38 ",7/17/2018
Crawford Murphy & Tilly Inc,Building/Bldg Improvement,"$24,483.15 ",10/26/2018
Critical Uptime Services,Services,"$6,300.00 ",1/23/2018
Crowe Horwath LLP,Services,"$14,450.00 ",1/9/2018
Crowe Horwath LLP,Services,"$4,800.00 ",2/8/2018
Crown Castle International Corp,Services,"$1,622.98 ",7/20/2018
Crown Castle International Corp,Services,$811.49 ,8/3/2018
Crown Castle International Corp,Services,$811.49 ,9/11/2018
Crown Castle International Corp,Services,$811.49 ,10/19/2018
Crown Castle International Corp,Services,$811.49 ,11/6/2018
Crown Castle International Corp,Services,$811.49 ,12/7/2018
Crystal Car Wash Services LTD,Services,"$1,584.30 ",10/26/2018
Crystal Car Wash Services LTD,Services,$800.00 ,12/21/2018
Crystal Lake Chamber of Commerce,Miscellaneous,$144.00 ,2/2/2018
CSC Cybertek Corp,Services,"$50,596.00 ",6/12/2018
CSched USA,Services,"$7,139.25 ",1/23/2018
CSched USA,Services,"$6,239.25 ",8/3/2018
CSched USA,Services,"$8,717.25 ",9/21/2018
CTI USA Inc dba Globe Ticket Company,Materials and Supplies,"$11,144.10 ",10/2/2018
Cubic Transportation Systems,Services,"$29,043.42 ",1/3/2018
Cubic Transportation Systems,Services,"$149,970.37 ",1/11/2018
Cubic Transportation Systems,Services,"$136,228.23 ",1/25/2018
Cubic Transportation Systems,Services,"$167,697.45 ",2/13/2018
Cubic Transportation Systems,Services,"$11,439.38 ",3/29/2018
Cubic Transportation Systems,Services,"$158,793.57 ",4/3/2018
Cubic Transportation Systems,Services,"$60,539.53 ",4/19/2018
Cubic Transportation Systems,Services,"$17,833.02 ",5/25/2018
Cubic Transportation Systems,Services,"$18,805.02 ",6/20/2018
Cubic Transportation Systems,Services,"$12,672.83 ",6/25/2018
Cubic Transportation Systems,Services,"$38,996.68 ",7/23/2018
Cubic Transportation Systems,Services,"$18,805.02 ",8/16/2018
Cubic Transportation Systems,Services,"$7,962.09 ",8/20/2018
Cubic Transportation Systems,Services,"$3,692.02 ",8/21/2018
Cubic Transportation Systems,Services,"$18,805.02 ",9/11/2018
Cubic Transportation Systems,Services,"$24,811.20 ",9/18/2018
Cubic Transportation Systems,Services,"$1,339,838.48 ",9/26/2018
Cubic Transportation Systems,Equipment,"$17,647.00 ",10/4/2018
Cubic Transportation Systems,Services,"$18,643.02 ",10/9/2018
Cubic Transportation Systems,Services,"$8,544.37 ",11/6/2018
Cubic Transportation Systems,Services,"$18,481.02 ",11/27/2018
Culligan of Bolingbrook,Services,$710.02 ,5/1/2018
Culligan of Bolingbrook,Services,$199.00 ,12/4/2018
Cumberland Bakery,Services,$300.00 ,4/13/2018
Cumberland Bakery,Services,$306.00 ,8/28/2018
Cumberland Service Center,Services,"$2,760.00 ",4/13/2018
Cumberland Service Center,Services,$460.00 ,8/10/2018
Cumberland Service Center,Services,"$2,402.00 ",10/5/2018
Cummins Sales and Service,Fuel/Parts Inventory,"$2,414.46 ",1/4/2018
Cummins Sales and Service,Services,$766.20 ,1/4/2018
Cummins Sales and Service,Fuel/Parts Inventory,"$19,598.16 ",1/9/2018
Cummins Sales and Service,Materials and Supplies,"($1,085.00)",1/9/2018
Cummins Sales and Service,Services,"$4,612.00 ",1/9/2018
Cummins Sales and Service,Fuel/Parts Inventory,"$1,770.50 ",1/12/2018
Cummins Sales and Service,Services,"$14,337.25 ",1/12/2018
Cummins Sales and Service,Fuel/Parts Inventory,"$52,537.40 ",1/19/2018
Cummins Sales and Service,Fuel/Parts Inventory,"$3,223.67 ",1/23/2018
Cummins Sales and Service,Services,"$5,945.40 ",1/23/2018
Cummins Sales and Service,Fuel/Parts Inventory,"$3,247.08 ",1/26/2018
Cummins Sales and Service,Fuel/Parts Inventory,"$2,284.59 ",1/30/2018
Cummins Sales and Service,Services,$367.50 ,1/30/2018
Cummins Sales and Service,Fuel/Parts Inventory,"$2,625.12 ",2/2/2018
Cummins Sales and Service,Services,$994.43 ,2/2/2018
Cummins Sales and Service,Fuel/Parts Inventory,"$5,410.81 ",2/6/2018
Cummins Sales and Service,Services,"$1,184.00 ",2/6/2018
Cummins Sales and Service,Services,$907.00 ,2/13/2018
Cummins Sales and Service,Fuel/Parts Inventory,"$1,338.72 ",2/16/2018
Cummins Sales and Service,Fuel/Parts Inventory,$69.34 ,2/20/2018
Cummins Sales and Service,Fuel/Parts Inventory,"$5,853.55 ",2/23/2018
Cummins Sales and Service,Materials and Supplies,"($3,254.75)",2/23/2018
Cummins Sales and Service,Fuel/Parts Inventory,"$2,339.56 ",2/27/2018
Cummins Sales and Service,Materials and Supplies,"($1,319.92)",2/27/2018
Cummins Sales and Service,Equipment,"$34,426.00 ",3/2/2018
Cummins Sales and Service,Fuel/Parts Inventory,"$9,316.14 ",3/2/2018
Cummins Sales and Service,Materials and Supplies,"$1,319.92 ",3/2/2018
Cummins Sales and Service,Fuel/Parts Inventory,"$36,171.10 ",3/6/2018
Cummins Sales and Service,Services,"$4,724.16 ",3/6/2018
Cummins Sales and Service,Fuel/Parts Inventory,"$5,693.48 ",3/9/2018
Cummins Sales and Service,Fuel/Parts Inventory,"$13,739.16 ",3/16/2018
Cummins Sales and Service,Services,"$9,744.76 ",3/16/2018
Cummins Sales and Service,Fuel/Parts Inventory,$550.96 ,3/20/2018
Cummins Sales and Service,Services,"$12,402.81 ",3/20/2018
Cummins Sales and Service,Fuel/Parts Inventory,"$10,370.54 ",3/23/2018
Cummins Sales and Service,Fuel/Parts Inventory,"$5,753.94 ",3/27/2018
Cummins Sales and Service,Fuel/Parts Inventory,"$4,731.66 ",3/30/2018
Cummins Sales and Service,Services,$672.10 ,4/3/2018
Cummins Sales and Service,Fuel/Parts Inventory,$821.81 ,4/6/2018
Cummins Sales and Service,Services,"$4,075.17 ",4/6/2018
Cummins Sales and Service,Fuel/Parts Inventory,"$10,837.59 ",4/10/2018
Cummins Sales and Service,Fuel/Parts Inventory,"$11,392.07 ",4/13/2018
Cummins Sales and Service,Fuel/Parts Inventory,"$11,160.78 ",4/20/2018
Cummins Sales and Service,Services,$508.80 ,4/20/2018
Cummins Sales and Service,Fuel/Parts Inventory,"$10,983.30 ",4/24/2018
Cummins Sales and Service,Fuel/Parts Inventory,"$15,497.68 ",4/27/2018
Cummins Sales and Service,Services,"$1,854.44 ",4/27/2018
Cummins Sales and Service,Fuel/Parts Inventory,"$7,943.12 ",5/1/2018
Cummins Sales and Service,Fuel/Parts Inventory,"$1,333.96 ",5/4/2018
Cummins Sales and Service,Services,"$10,971.01 ",5/4/2018
Cummins Sales and Service,Fuel/Parts Inventory,"$4,469.25 ",5/8/2018
Cummins Sales and Service,Services,$705.32 ,5/8/2018
Cummins Sales and Service,Fuel/Parts Inventory,"$1,608.11 ",5/11/2018
Cummins Sales and Service,Fuel/Parts Inventory,"$3,991.59 ",5/15/2018
Cummins Sales and Service,Equipment,"$550,816.00 ",5/18/2018
Cummins Sales and Service,Fuel/Parts Inventory,"$8,045.08 ",5/18/2018
Cummins Sales and Service,Fuel/Parts Inventory,"$1,573.00 ",5/31/2018
Cummins Sales and Service,Services,"$1,285.82 ",5/31/2018
Cummins Sales and Service,Fuel/Parts Inventory,"$1,505.70 ",6/5/2018
Cummins Sales and Service,Services,($262.50),6/5/2018
Cummins Sales and Service,Services,"$1,531.00 ",6/8/2018
Cummins Sales and Service,Fuel/Parts Inventory,"$6,040.88 ",6/15/2018
Cummins Sales and Service,Fuel/Parts Inventory,"$12,760.17 ",6/22/2018
Cummins Sales and Service,Fuel/Parts Inventory,$549.96 ,6/26/2018
Cummins Sales and Service,Services,"$34,539.84 ",6/26/2018
Cummins Sales and Service,Services,"$1,572.00 ",6/29/2018
Cummins Sales and Service,Fuel/Parts Inventory,"$2,734.00 ",7/6/2018
Cummins Sales and Service,Services,"$1,648.00 ",7/6/2018
Cummins Sales and Service,Fuel/Parts Inventory,"$1,001.00 ",7/10/2018
Cummins Sales and Service,Fuel/Parts Inventory,"$11,276.34 ",7/13/2018
Cummins Sales and Service,Fuel/Parts Inventory,$175.20 ,7/17/2018
Cummins Sales and Service,Services,"$1,129.46 ",7/17/2018
Cummins Sales and Service,Fuel/Parts Inventory,$320.41 ,7/20/2018
Cummins Sales and Service,Fuel/Parts Inventory,$75.76 ,7/24/2018
Cummins Sales and Service,Services,"$37,733.50 ",7/24/2018
Cummins Sales and Service,Fuel/Parts Inventory,$93.13 ,8/3/2018
Cummins Sales and Service,Services,"$4,434.00 ",8/10/2018
Cummins Sales and Service,Fuel/Parts Inventory,$166.60 ,8/14/2018
Cummins Sales and Service,Fuel/Parts Inventory,$428.40 ,8/17/2018
Cummins Sales and Service,Services,"$22,077.40 ",8/17/2018
Cummins Sales and Service,Services,"$5,770.14 ",8/21/2018
Cummins Sales and Service,Fuel/Parts Inventory,$169.98 ,8/24/2018
Cummins Sales and Service,Services,"$13,750.00 ",8/24/2018
Cummins Sales and Service,Services,"$3,397.89 ",9/11/2018
Cummins Sales and Service,Services,"$9,670.99 ",9/14/2018
Cummins Sales and Service,Services,"$9,132.43 ",9/21/2018
Cummins Sales and Service,Fuel/Parts Inventory,$342.30 ,9/25/2018
Cummins Sales and Service,Fuel/Parts Inventory,"$7,458.85 ",10/5/2018
Cummins Sales and Service,Services,$209.04 ,10/5/2018
Cummins Sales and Service,Services,"$8,905.79 ",10/9/2018
Cummins Sales and Service,Fuel/Parts Inventory,$285.60 ,10/12/2018
Cummins Sales and Service,Fuel/Parts Inventory,"$1,216.27 ",10/16/2018
Cummins Sales and Service,Services,"$1,869.00 ",10/16/2018
Cummins Sales and Service,Fuel/Parts Inventory,$542.15 ,10/19/2018
Cummins Sales and Service,Services,"$10,661.00 ",10/19/2018
Cummins Sales and Service,Services,"$3,067.00 ",10/26/2018
Cummins Sales and Service,Services,"$1,677.00 ",11/9/2018
Cummins Sales and Service,Miscellaneous,$94.50 ,11/30/2018
Cummins Sales and Service,Services,"$22,383.17 ",11/30/2018
Cummins Sales and Service,Fuel/Parts Inventory,"$1,645.36 ",12/7/2018
Cummins Sales and Service,Services,"$5,787.37 ",12/14/2018
Cummins Sales and Service,Services,"$2,225.00 ",12/21/2018
Cummins Sales and Service,Services,"$8,700.00 ",12/28/2018
Curved Glass Distributors,Fuel/Parts Inventory,$312.40 ,3/2/2018
Curved Glass Distributors,Fuel/Parts Inventory,"$1,162.00 ",3/13/2018
Curved Glass Distributors,Fuel/Parts Inventory,$567.60 ,7/6/2018
D & K Truck Safety Lane,Services,$546.00 ,1/9/2018
D & K Truck Safety Lane,Services,$416.00 ,2/16/2018
D & K Truck Safety Lane,Services,$104.00 ,2/23/2018
D & K Truck Safety Lane,Services,$780.00 ,3/16/2018
D & K Truck Safety Lane,Services,$442.00 ,4/6/2018
D & K Truck Safety Lane,Services,"$1,092.00 ",6/29/2018
D & K Truck Safety Lane,Services,$598.00 ,7/20/2018
D & K Truck Safety Lane,Services,$442.00 ,8/14/2018
D & K Truck Safety Lane,Services,$312.00 ,9/14/2018
D & K Truck Safety Lane,Services,$546.00 ,9/18/2018
D & K Truck Safety Lane,Services,$513.00 ,10/12/2018
D & K Truck Safety Lane,Services,$675.00 ,11/16/2018
D & K Truck Safety Lane,Services,$648.00 ,12/21/2018
D&W Diesel Inc,Fuel/Parts Inventory,$361.02 ,1/9/2018
D&W Diesel Inc,Fuel/Parts Inventory,"$1,182.60 ",1/16/2018
D&W Diesel Inc,Fuel/Parts Inventory,$902.55 ,1/23/2018
D&W Diesel Inc,Fuel/Parts Inventory,$361.02 ,2/6/2018
D&W Diesel Inc,Fuel/Parts Inventory,$723.26 ,2/13/2018
D&W Diesel Inc,Fuel/Parts Inventory,$361.02 ,2/16/2018
D&W Diesel Inc,Fuel/Parts Inventory,"$8,881.92 ",2/23/2018
D&W Diesel Inc,Fuel/Parts Inventory,$554.34 ,3/6/2018
D&W Diesel Inc,Fuel/Parts Inventory,"$3,717.70 ",3/16/2018
D&W Diesel Inc,Fuel/Parts Inventory,"$3,717.70 ",3/20/2018
D&W Diesel Inc,Fuel/Parts Inventory,"$4,489.25 ",3/30/2018
D&W Diesel Inc,Fuel/Parts Inventory,"$7,046.78 ",4/13/2018
D&W Diesel Inc,Fuel/Parts Inventory,$428.80 ,5/11/2018
Daniel Abdullah,Purchased Transportation,$33.00 ,12/28/2018
Daniel Nielsen,Services,$700.00 ,11/9/2018
Data-Tec Systems Inc,Services,$589.00 ,3/30/2018
Data-Tec Systems Inc,Services,$673.00 ,6/29/2018
Data-Tec Systems Inc,Services,$336.00 ,9/18/2018
Data-Tec Systems Inc,Services,$673.00 ,12/28/2018
Decker Supply Co,Equipment,"$27,529.20 ",11/27/2018
Delfs Garage,Services,$164.50 ,1/9/2018
Delfs Garage,Services,$117.50 ,2/27/2018
Delfs Garage,Services,$962.50 ,5/8/2018
Delfs Garage,Services,$305.00 ,6/26/2018
Delfs Garage,Services,$235.00 ,7/10/2018
Delfs Garage,Services,$211.50 ,9/14/2018
Delfs Garage,Services,$235.00 ,10/9/2018
Delfs Garage,Services,$235.00 ,11/16/2018
Delfs Garage,Services,$374.50 ,12/18/2018
Delta Sonic Car Wash,Materials and Supplies,$143.91 ,1/12/2018
Delta Sonic Car Wash,Miscellaneous,$288.00 ,1/12/2018
Delta Sonic Car Wash,Miscellaneous,$345.50 ,2/13/2018
Delta Sonic Car Wash,Materials and Supplies,$127.92 ,3/13/2018
Delta Sonic Car Wash,Services,$201.50 ,3/16/2018
Delta Sonic Car Wash,Materials and Supplies,$127.92 ,4/13/2018
Delta Sonic Car Wash,Materials and Supplies,$63.96 ,6/15/2018
Delta Sonic Car Wash,Materials and Supplies,$79.95 ,7/20/2018
Delta Sonic Car Wash,Services,"$1,291.50 ",7/27/2018
Delta Sonic Car Wash,Materials and Supplies,$159.90 ,8/14/2018
Delta Sonic Car Wash,Materials and Supplies,$109.99 ,8/21/2018
Delta Sonic Car Wash,Services,$102.00 ,9/11/2018
Delta Sonic Car Wash,Materials and Supplies,$143.91 ,9/18/2018
Delta Sonic Car Wash,Materials and Supplies,$219.98 ,10/12/2018
Delta Sonic Car Wash,Materials and Supplies,$699.93 ,10/23/2018
Delta Sonic Car Wash,Services,$301.50 ,10/23/2018
Delta Sonic Car Wash,Materials and Supplies,$99.99 ,10/26/2018
Delta Sonic Car Wash,Services,$144.00 ,11/20/2018
Delta Sonic Car Wash,Services,$303.50 ,11/30/2018
Delta Sonic Car Wash,Services,$20.00 ,12/28/2018
DemandTrans Solutions,Services,"$5,300.00 ",1/26/2018
DemandTrans Solutions,Services,"$1,484.00 ",4/24/2018
DemandTrans Solutions,Services,"$6,000.00 ",6/15/2018
DemandTrans Solutions,Services,"$3,600.00 ",7/31/2018
DemandTrans Solutions,Services,"$6,400.00 ",8/24/2018
DemandTrans Solutions,Services,"$2,800.00 ",10/5/2018
DemandTrans Solutions,Services,"$4,800.00 ",10/12/2018
DemandTrans Solutions,Services,"$2,800.00 ",12/7/2018
DemandTrans Solutions,Services,"$2,800.00 ",12/18/2018
Dependable Fire Equipment,Miscellaneous,$129.35 ,1/26/2018
Dept of Financial & Professional Reg,Services,$180.00 ,7/13/2018
Dept of Financial & Professional Reg,Services,$180.00 ,7/20/2018
Dept of Financial & Professional Reg,Miscellaneous,$270.00 ,8/7/2018
Dept of Financial & Professional Reg,Miscellaneous,$60.00 ,9/18/2018
Dept of Financial & Professional Reg,Miscellaneous,$60.00 ,9/25/2018
Des Plaines Chamber,Services,$30.00 ,1/16/2018
Des Plaines Chamber,Miscellaneous,$245.00 ,1/19/2018
Des Plaines Chamber,Miscellaneous,$255.00 ,11/30/2018
Des Plaines Chamber,Services,$30.00 ,11/30/2018
Des Plaines Office Equipment,Leases and Rentals,"$4,442.22 ",1/12/2018
Des Plaines Office Equipment,Leases and Rentals,"$4,442.22 ",2/13/2018
Des Plaines Office Equipment,Leases and Rentals,"$4,442.22 ",3/13/2018
Des Plaines Office Equipment,Leases and Rentals,"$4,442.22 ",4/10/2018
Des Plaines Office Equipment,Leases and Rentals,"$4,442.22 ",5/18/2018
Des Plaines Office Equipment,Services,$150.00 ,6/8/2018
Des Plaines Office Equipment,Leases and Rentals,"$4,442.22 ",6/15/2018
Des Plaines Office Equipment,Leases and Rentals,"$4,442.22 ",7/13/2018
Des Plaines Office Equipment,Leases and Rentals,"$8,884.44 ",10/9/2018
Des Plaines Office Equipment,Leases and Rentals,"$5,102.25 ",10/19/2018
Des Plaines Office Equipment,Leases and Rentals,"$4,442.22 ",11/30/2018
Des Plaines Office Equipment,Leases and Rentals,"$4,442.22 ",12/28/2018
Diesel Injection Service Co,Fuel/Parts Inventory,$120.50 ,2/8/2018
Diesel Injection Service Co,Fuel/Parts Inventory,"$6,300.00 ",7/6/2018
Diesel Injection Service Co,Fuel/Parts Inventory,"$10,500.00 ",8/3/2018
Diesel Injection Service Co,Fuel/Parts Inventory,$35.96 ,8/17/2018
Diesel Injection Service Co,Fuel/Parts Inventory,"$1,576.00 ",10/12/2018
Diesel Injection Service Co,Fuel/Parts Inventory,$149.40 ,10/16/2018
Diesel Injection Service Co,Fuel/Parts Inventory,$258.52 ,10/26/2018
Diesel Injection Service Co,Fuel/Parts Inventory,"$1,577.50 ",11/2/2018
Diesel Injection Service Co,Fuel/Parts Inventory,$394.00 ,12/4/2018
Diesel Injection Service Co,Fuel/Parts Inventory,$867.39 ,12/14/2018
Diesel Injection Service Co,Fuel/Parts Inventory,"$2,801.37 ",12/21/2018
Dispatch Taxi Affiliation,Purchased Transportation,($18.75),11/3/2017
DocuSign Inc,Services,"$2,999.99 ",7/17/2018
Dr Sprinkler Irrigation LLC,Services,$569.00 ,2/2/2018
Dr Sprinkler Irrigation LLC,Services,$432.95 ,5/18/2018
Dr Sprinkler Irrigation LLC,Services,$325.00 ,12/18/2018
Dr Sprinkler Irrigation LLC,Services,"$1,555.00 ",12/21/2018
Drive Train Service & Components,Fuel/Parts Inventory,"$2,848.82 ",1/26/2018
Drive Train Service & Components,Fuel/Parts Inventory,"$2,995.00 ",4/27/2018
Drive Train Service & Components,Fuel/Parts Inventory,"$2,943.93 ",6/19/2018
Drive Train Service & Components,Fuel/Parts Inventory,"$5,938.93 ",7/10/2018
Drive Train Service & Components,Fuel/Parts Inventory,"$1,502.13 ",7/20/2018
Drive Train Service & Components,Fuel/Parts Inventory,"$1,502.13 ",7/31/2018
Drive Train Service & Components,Fuel/Parts Inventory,"$3,004.26 ",8/21/2018
Drive Train Service & Components,Fuel/Parts Inventory,"$3,095.00 ",9/14/2018
Dunbar Armored,Services,$496.86 ,1/12/2018
Dunbar Armored,Services,$496.86 ,2/8/2018
Dunbar Armored,Services,"$1,395.03 ",5/31/2018
Dunbar Armored,Services,$496.86 ,6/8/2018
Dunbar Armored,Services,$382.20 ,7/10/2018
Dunbar Armored,Services,$420.42 ,8/7/2018
Dunbar Armored,Services,$515.97 ,9/11/2018
Dunbar Armored,Services,$477.75 ,10/12/2018
Dunbar Armored,Services,$420.42 ,11/30/2018
Dunbar Armored,Services,$496.86 ,12/21/2018
DuPage Mayors & Managers Conference,Miscellaneous,$195.00 ,2/16/2018
DuPage Mayors & Managers Conference,Miscellaneous,$80.00 ,6/19/2018
Dura Automotive Systems LLC,Fuel/Parts Inventory,$331.90 ,4/6/2018
Dura Automotive Systems LLC,Fuel/Parts Inventory,"$1,492.75 ",5/31/2018
Dura Automotive Systems LLC,Fuel/Parts Inventory,$170.00 ,6/22/2018
Dura Automotive Systems LLC,Fuel/Parts Inventory,"$2,002.50 ",8/3/2018
Dura Automotive Systems LLC,Fuel/Parts Inventory,$857.50 ,10/5/2018
Dura Automotive Systems LLC,Fuel/Parts Inventory,$686.80 ,11/20/2018
E&R Towing and Garage Inc,Services,$637.00 ,1/4/2018
E&R Towing and Garage Inc,Services,$294.00 ,1/19/2018
E&R Towing and Garage Inc,Services,$343.00 ,1/30/2018
E&R Towing and Garage Inc,Services,$392.00 ,2/6/2018
E&R Towing and Garage Inc,Services,$411.00 ,2/13/2018
E&R Towing and Garage Inc,Services,$392.00 ,2/16/2018
E&R Towing and Garage Inc,Services,$392.00 ,2/23/2018
E&R Towing and Garage Inc,Services,$196.00 ,3/6/2018
E&R Towing and Garage Inc,Services,$391.00 ,3/9/2018
E&R Towing and Garage Inc,Services,$490.00 ,3/23/2018
E&R Towing and Garage Inc,Services,$245.00 ,4/6/2018
E&R Towing and Garage Inc,Services,$490.00 ,4/17/2018
E&R Towing and Garage Inc,Services,$539.00 ,5/4/2018
E&R Towing and Garage Inc,Services,$441.00 ,5/15/2018
E&R Towing and Garage Inc,Services,$294.00 ,6/19/2018
E&R Towing and Garage Inc,Services,$196.00 ,6/26/2018
E&R Towing and Garage Inc,Services,$490.00 ,7/6/2018
E&R Towing and Garage Inc,Services,$250.00 ,7/20/2018
E&R Towing and Garage Inc,Services,$914.00 ,8/3/2018
E&R Towing and Garage Inc,Services,$390.00 ,8/7/2018
E&R Towing and Garage Inc,Services,$245.00 ,8/10/2018
E&R Towing and Garage Inc,Services,$245.00 ,8/14/2018
E&R Towing and Garage Inc,Services,$392.00 ,8/17/2018
E&R Towing and Garage Inc,Services,$245.00 ,8/24/2018
E&R Towing and Garage Inc,Services,$346.00 ,8/31/2018
E&R Towing and Garage Inc,Services,$567.00 ,9/11/2018
E&R Towing and Garage Inc,Services,$196.00 ,9/18/2018
E&R Towing and Garage Inc,Services,$784.00 ,9/28/2018
E&R Towing and Garage Inc,Services,$196.00 ,10/12/2018
E&R Towing and Garage Inc,Services,$592.00 ,10/26/2018
E&R Towing and Garage Inc,Services,$245.00 ,11/2/2018
E&R Towing and Garage Inc,Services,$539.00 ,11/16/2018
E&R Towing and Garage Inc,Services,$485.00 ,12/7/2018
E&R Towing and Garage Inc,Services,$490.00 ,12/28/2018
Eco Clean Maintenance Inc,Services,$486.00 ,1/4/2018
Eco Clean Maintenance Inc,Services,$676.00 ,1/16/2018
Eco Clean Maintenance Inc,Services,"$1,162.00 ",2/13/2018
Eco Clean Maintenance Inc,Services,"$1,162.00 ",3/9/2018
Eco Clean Maintenance Inc,Services,"$1,162.00 ",4/6/2018
Eco Clean Maintenance Inc,Services,"$1,162.00 ",5/8/2018
Eco Clean Maintenance Inc,Services,"$1,162.00 ",6/12/2018
Eco Clean Maintenance Inc,Services,$486.00 ,7/6/2018
Eco Clean Maintenance Inc,Services,$676.00 ,7/10/2018
Eco Clean Maintenance Inc,Services,$486.00 ,8/14/2018
Eco Clean Maintenance Inc,Services,$676.00 ,8/17/2018
Eco Clean Maintenance Inc,Services,"$1,162.00 ",9/11/2018
Eco Clean Maintenance Inc,Services,$357.98 ,10/5/2018
Eco Clean Maintenance Inc,Services,$676.00 ,10/12/2018
Eco Clean Maintenance Inc,Services,$676.00 ,11/9/2018
Eco Clean Maintenance Inc,Services,$676.00 ,12/14/2018
Eco Lighting Services and Technology LLC,Services,"$3,458.62 ",1/19/2018
Eco Lighting Services and Technology LLC,Services,"$5,555.22 ",2/20/2018
Eco Lighting Services and Technology LLC,Services,"$5,333.96 ",3/20/2018
Eco Lighting Services and Technology LLC,Services,"$1,201.93 ",4/3/2018
Eco Lighting Services and Technology LLC,Services,"$6,533.41 ",5/4/2018
Eco Lighting Services and Technology LLC,Services,"$3,667.93 ",5/22/2018
Eco Lighting Services and Technology LLC,Services,"$3,577.72 ",6/8/2018
Eco Lighting Services and Technology LLC,Services,"$1,413.58 ",6/26/2018
Eco Lighting Services and Technology LLC,Services,"$4,832.77 ",7/20/2018
Eco Lighting Services and Technology LLC,Services,"$5,256.50 ",8/17/2018
Eco Lighting Services and Technology LLC,Services,"$5,188.03 ",9/28/2018
Eco Lighting Services and Technology LLC,Services,$987.51 ,10/16/2018
Eco Lighting Services and Technology LLC,Services,"$6,025.50 ",11/6/2018
Eco Lighting Services and Technology LLC,Services,"$1,008.00 ",12/4/2018
Education to Go,Services,"$1,595.00 ",3/13/2018
Edward B Krinsky Inc,Services,"$4,246.57 ",6/19/2018
Edwards Engineering Inc,Services,"$1,140.00 ",3/6/2018
Edwards Engineering Inc,Services,"$2,728.47 ",3/16/2018
Edwards Engineering Inc,Building/Bldg Improvement,"$38,081.50 ",4/27/2018
Edwards Engineering Inc,Services,$669.77 ,5/4/2018
Edwards Engineering Inc,Services,"$1,140.00 ",5/18/2018
Edwards Engineering Inc,Services,$576.00 ,6/26/2018
Edwards Engineering Inc,Services,"$1,829.96 ",8/24/2018
Edwards Engineering Inc,Services,"$1,163.00 ",9/18/2018
Edwards Engineering Inc,Services,$390.00 ,10/23/2018
Edwards Engineering Inc,Services,"$1,235.00 ",11/9/2018
Edwards Engineering Inc,Services,$650.00 ,11/16/2018
Edwards Engineering Inc,Services,"$4,919.00 ",12/14/2018
Edwards Engineering Inc,Services,"$1,553.70 ",12/21/2018
Edwards Engineering Inc,Services,"$2,489.08 ",12/28/2018
EEOC Training Institute,Services,$349.00 ,8/3/2018
ElDorado National (California) Inc,Fuel/Parts Inventory,"$26,649.93 ",1/4/2018
ElDorado National (California) Inc,Materials and Supplies,($0.04),1/4/2018
ElDorado National (California) Inc,Fuel/Parts Inventory,$155.55 ,1/9/2018
ElDorado National (California) Inc,Fuel/Parts Inventory,"$2,774.85 ",1/12/2018
ElDorado National (California) Inc,Fuel/Parts Inventory,"$6,531.32 ",1/26/2018
ElDorado National (California) Inc,Fuel/Parts Inventory,$193.80 ,1/30/2018
ElDorado National (California) Inc,Fuel/Parts Inventory,$809.70 ,2/2/2018
ElDorado National (California) Inc,Fuel/Parts Inventory,"$2,248.63 ",2/6/2018
ElDorado National (California) Inc,Fuel/Parts Inventory,"$12,839.47 ",2/8/2018
ElDorado National (California) Inc,Materials and Supplies,($0.01),2/8/2018
ElDorado National (California) Inc,Vehicle,"$5,432,317.96 ",2/8/2018
ElDorado National (California) Inc,Fuel/Parts Inventory,"$5,290.32 ",2/13/2018
ElDorado National (California) Inc,Fuel/Parts Inventory,"$16,990.34 ",2/16/2018
ElDorado National (California) Inc,Materials and Supplies,($0.07),2/16/2018
ElDorado National (California) Inc,Fuel/Parts Inventory,"$75,070.09 ",2/27/2018
ElDorado National (California) Inc,Fuel/Parts Inventory,"$1,054.97 ",3/2/2018
ElDorado National (California) Inc,Vehicle,"$2,539,387.51 ",3/9/2018
ElDorado National (California) Inc,Fuel/Parts Inventory,"$12,561.45 ",3/13/2018
ElDorado National (California) Inc,Vehicle,"$147,554.89 ",3/13/2018
ElDorado National (California) Inc,Fuel/Parts Inventory,"$6,142.71 ",3/16/2018
ElDorado National (California) Inc,Materials and Supplies,($0.01),3/16/2018
ElDorado National (California) Inc,Fuel/Parts Inventory,"$16,498.11 ",3/20/2018
ElDorado National (California) Inc,Materials and Supplies,($0.05),3/20/2018
ElDorado National (California) Inc,Fuel/Parts Inventory,"$3,056.83 ",3/23/2018
ElDorado National (California) Inc,Miscellaneous,"$8,600.00 ",3/23/2018
ElDorado National (California) Inc,Vehicle,"$553,857.29 ",3/23/2018
ElDorado National (California) Inc,Vehicle,"$1,686,341.60 ",3/30/2018
ElDorado National (California) Inc,Fuel/Parts Inventory,$843.32 ,4/3/2018
ElDorado National (California) Inc,Vehicle,"$496,785.40 ",4/10/2018
ElDorado National (California) Inc,Fuel/Parts Inventory,"$10,674.53 ",4/13/2018
ElDorado National (California) Inc,Materials and Supplies,($0.02),4/13/2018
ElDorado National (California) Inc,Fuel/Parts Inventory,$712.65 ,4/17/2018
ElDorado National (California) Inc,Fuel/Parts Inventory,"$9,339.74 ",4/20/2018
ElDorado National (California) Inc,Materials and Supplies,($0.01),4/20/2018
ElDorado National (California) Inc,Vehicle,"$1,096,122.04 ",4/20/2018
ElDorado National (California) Inc,Fuel/Parts Inventory,"$15,167.70 ",4/27/2018
ElDorado National (California) Inc,Fuel/Parts Inventory,"$3,915.66 ",5/1/2018
ElDorado National (California) Inc,Fuel/Parts Inventory,$291.15 ,5/4/2018
ElDorado National (California) Inc,Fuel/Parts Inventory,"$31,357.72 ",5/11/2018
ElDorado National (California) Inc,Fuel/Parts Inventory,$523.30 ,5/15/2018
ElDorado National (California) Inc,Fuel/Parts Inventory,"$10,195.63 ",5/18/2018
ElDorado National (California) Inc,Fuel/Parts Inventory,"$5,288.16 ",5/22/2018
ElDorado National (California) Inc,Fuel/Parts Inventory,$987.07 ,5/25/2018
ElDorado National (California) Inc,Fuel/Parts Inventory,"$38,770.01 ",5/31/2018
ElDorado National (California) Inc,Fuel/Parts Inventory,"$6,751.48 ",6/5/2018
ElDorado National (California) Inc,Fuel/Parts Inventory,"$2,723.95 ",6/8/2018
ElDorado National (California) Inc,Fuel/Parts Inventory,"$1,572.70 ",6/12/2018
ElDorado National (California) Inc,Fuel/Parts Inventory,"$26,663.76 ",6/29/2018
ElDorado National (California) Inc,Fuel/Parts Inventory,"$39,857.40 ",7/6/2018
ElDorado National (California) Inc,Vehicle,"$5,614,923.49 ",7/6/2018
ElDorado National (California) Inc,Fuel/Parts Inventory,"$2,285.41 ",7/10/2018
ElDorado National (California) Inc,Fuel/Parts Inventory,"$17,938.87 ",7/13/2018
ElDorado National (California) Inc,Fuel/Parts Inventory,"$7,890.14 ",7/17/2018
ElDorado National (California) Inc,Fuel/Parts Inventory,"$48,145.67 ",7/20/2018
ElDorado National (California) Inc,Vehicle,"$60,393.00 ",7/20/2018
ElDorado National (California) Inc,Fuel/Parts Inventory,"$30,551.11 ",8/7/2018
ElDorado National (California) Inc,Materials and Supplies,($0.35),8/7/2018
ElDorado National (California) Inc,Fuel/Parts Inventory,$810.08 ,8/10/2018
ElDorado National (California) Inc,Fuel/Parts Inventory,$647.90 ,8/14/2018
ElDorado National (California) Inc,Fuel/Parts Inventory,$533.83 ,8/17/2018
ElDorado National (California) Inc,Materials and Supplies,($0.06),8/17/2018
ElDorado National (California) Inc,Fuel/Parts Inventory,"$15,843.43 ",8/21/2018
ElDorado National (California) Inc,Materials and Supplies,($0.09),8/21/2018
ElDorado National (California) Inc,Fuel/Parts Inventory,"$19,096.07 ",8/24/2018
ElDorado National (California) Inc,Materials and Supplies,($0.07),8/24/2018
ElDorado National (California) Inc,Fuel/Parts Inventory,"$1,320.41 ",8/28/2018
ElDorado National (California) Inc,Materials and Supplies,($0.04),8/28/2018
ElDorado National (California) Inc,Fuel/Parts Inventory,"$5,668.65 ",9/11/2018
ElDorado National (California) Inc,Fuel/Parts Inventory,"$20,075.72 ",9/14/2018
ElDorado National (California) Inc,Materials and Supplies,($0.39),9/14/2018
ElDorado National (California) Inc,Fuel/Parts Inventory,"$10,502.98 ",9/18/2018
ElDorado National (California) Inc,Materials and Supplies,($0.25),9/18/2018
ElDorado National (California) Inc,Fuel/Parts Inventory,"$4,752.80 ",9/21/2018
ElDorado National (California) Inc,Materials and Supplies,($0.08),9/21/2018
ElDorado National (California) Inc,Fuel/Parts Inventory,"$6,868.06 ",9/25/2018
ElDorado National (California) Inc,Materials and Supplies,($0.07),9/25/2018
ElDorado National (California) Inc,Fuel/Parts Inventory,"$4,959.31 ",9/28/2018
ElDorado National (California) Inc,Materials and Supplies,($0.04),9/28/2018
ElDorado National (California) Inc,Fuel/Parts Inventory,"$7,247.80 ",10/12/2018
ElDorado National (California) Inc,Materials and Supplies,($0.10),10/12/2018
ElDorado National (California) Inc,Fuel/Parts Inventory,"$3,063.17 ",10/16/2018
ElDorado National (California) Inc,Materials and Supplies,($0.01),10/16/2018
ElDorado National (California) Inc,Fuel/Parts Inventory,"$35,031.29 ",10/23/2018
ElDorado National (California) Inc,Materials and Supplies,($0.37),10/23/2018
ElDorado National (California) Inc,Fuel/Parts Inventory,"$23,307.62 ",10/26/2018
ElDorado National (California) Inc,Materials and Supplies,($0.34),10/26/2018
ElDorado National (California) Inc,Fuel/Parts Inventory,"$11,389.02 ",10/30/2018
ElDorado National (California) Inc,Materials and Supplies,($0.02),10/30/2018
ElDorado National (California) Inc,Fuel/Parts Inventory,"$2,795.55 ",11/2/2018
ElDorado National (California) Inc,Fuel/Parts Inventory,$921.30 ,11/6/2018
ElDorado National (California) Inc,Materials and Supplies,($0.03),11/6/2018
ElDorado National (California) Inc,Fuel/Parts Inventory,"$14,969.00 ",11/9/2018
ElDorado National (California) Inc,Materials and Supplies,($0.17),11/9/2018
ElDorado National (California) Inc,Fuel/Parts Inventory,"$7,004.68 ",11/13/2018
ElDorado National (California) Inc,Fuel/Parts Inventory,$159.81 ,11/16/2018
ElDorado National (California) Inc,Fuel/Parts Inventory,"$2,003.35 ",11/27/2018
ElDorado National (California) Inc,Fuel/Parts Inventory,"$35,618.69 ",12/4/2018
ElDorado National (California) Inc,Fuel/Parts Inventory,"$15,340.06 ",12/7/2018
ElDorado National (California) Inc,Fuel/Parts Inventory,"$11,255.28 ",12/11/2018
ElDorado National (California) Inc,Fuel/Parts Inventory,"$51,155.64 ",12/28/2018
ElDorado National (California) Inc,Services,"$161,960.40 ",12/28/2018
Elgin Chamber Of Commerce,Miscellaneous,$325.00 ,2/16/2018
Elgin Hispanic Network,Miscellaneous,$80.00 ,2/16/2018
Elmhurst Memorial,Services,$90.00 ,2/13/2018
Elmhurst Memorial,Services,$205.00 ,3/2/2018
Employee,Employee - Expense Reimbursement,($50.00),10/17/2017
Employee,Employee - Expense Reimbursement,"$2,518.51 ",1/4/2018
Employee,Employee - Expense Reimbursement,"$2,413.80 ",1/9/2018
Employee,Employee - Expense Reimbursement,"$2,376.42 ",1/12/2018
Employee,Employee - Expense Reimbursement,$179.69 ,1/16/2018
Employee,Employee - Expense Reimbursement,$535.18 ,1/19/2018
Employee,Employee - Expense Reimbursement,$765.52 ,1/23/2018
Employee,Employee - Expense Reimbursement,"$1,452.37 ",1/26/2018
Employee,Employee - Expense Reimbursement,$169.19 ,1/30/2018
Employee,Employee - Expense Reimbursement,"$1,425.52 ",2/2/2018
Employee,Employee - Expense Reimbursement,$51.60 ,2/6/2018
Employee,Employee - Expense Reimbursement,$233.02 ,2/8/2018
Employee,Employee - Expense Reimbursement,$805.98 ,2/13/2018
Employee,Employee - Expense Reimbursement,"$1,328.70 ",2/16/2018
Employee,Employee - Expense Reimbursement,"$1,061.90 ",2/20/2018
Employee,Employee - Expense Reimbursement,"$1,237.04 ",2/23/2018
Employee,Employee - Expense Reimbursement,$276.65 ,2/27/2018
Employee,Employee - Expense Reimbursement,"$1,806.50 ",3/2/2018
Employee,Employee - Expense Reimbursement,"$2,008.44 ",3/6/2018
Employee,Employee - Expense Reimbursement,"$1,035.30 ",3/9/2018
Employee,Employee - Expense Reimbursement,$768.48 ,3/13/2018
Employee,Employee - Expense Reimbursement,"$3,201.72 ",3/16/2018
Employee,Employee - Expense Reimbursement,$908.85 ,3/20/2018
Employee,Employee - Expense Reimbursement,$616.49 ,3/23/2018
Employee,Employee - Expense Reimbursement,$455.00 ,3/27/2018
Employee,Employee - Expense Reimbursement,"$2,049.35 ",3/30/2018
Employee,Employee - Expense Reimbursement,$21.75 ,4/3/2018
Employee,Employee - Expense Reimbursement,$803.79 ,4/6/2018
Employee,Employee - Expense Reimbursement,$264.21 ,4/10/2018
Employee,Employee - Expense Reimbursement,"$2,486.66 ",4/13/2018
Employee,Employee - Expense Reimbursement,"$3,406.42 ",4/20/2018
Employee,Employee - Expense Reimbursement,"$1,340.82 ",4/24/2018
Employee,Employee - Expense Reimbursement,"$2,645.22 ",4/27/2018
Employee,Employee - Expense Reimbursement,"$1,383.55 ",5/1/2018
Employee,Employee - Expense Reimbursement,$218.76 ,5/4/2018
Employee,Employee - Expense Reimbursement,$430.00 ,5/8/2018
Employee,Employee - Expense Reimbursement,"$1,096.48 ",5/15/2018
Employee,Employee - Expense Reimbursement,$716.60 ,5/18/2018
Employee,Employee - Expense Reimbursement,$648.04 ,5/22/2018
Employee,Employee - Expense Reimbursement,$938.03 ,5/25/2018
Employee,Employee - Expense Reimbursement,"$8,294.57 ",5/31/2018
Employee,Employee - Expense Reimbursement,"$5,852.22 ",6/5/2018
Employee,Employee - Expense Reimbursement,"$1,136.82 ",6/8/2018
Employee,Employee - Expense Reimbursement,"$4,950.00 ",6/13/2018
Employee,Employee - Expense Reimbursement,"$3,201.74 ",6/15/2018
Employee,Employee - Expense Reimbursement,"$5,036.67 ",6/19/2018
Employee,Employee - Expense Reimbursement,"$1,107.95 ",6/22/2018
Employee,Employee - Expense Reimbursement,$30.75 ,6/26/2018
Employee,Employee - Expense Reimbursement,"$1,223.27 ",6/29/2018
Employee,Employee - Expense Reimbursement,"$2,061.36 ",7/6/2018
Employee,Employee - Expense Reimbursement,$806.63 ,7/10/2018
Employee,Employee - Expense Reimbursement,$254.20 ,7/13/2018
Employee,Employee - Expense Reimbursement,"$1,133.50 ",7/17/2018
Employee,Employee - Expense Reimbursement,$483.75 ,7/20/2018
Employee,Employee - Expense Reimbursement,"$1,949.51 ",7/24/2018
Employee,Employee - Expense Reimbursement,"$1,113.51 ",7/27/2018
Employee,Employee - Expense Reimbursement,$629.64 ,7/31/2018
Employee,Employee - Expense Reimbursement,"$3,478.45 ",8/3/2018
Employee,Employee - Expense Reimbursement,$912.09 ,8/7/2018
Employee,Employee - Expense Reimbursement,"$1,559.30 ",8/10/2018
Employee,Employee - Expense Reimbursement,$630.00 ,8/14/2018
Employee,Employee - Expense Reimbursement,"$2,376.72 ",8/17/2018
Employee,Employee - Expense Reimbursement,$197.60 ,8/21/2018
Employee,Employee - Expense Reimbursement,$222.63 ,8/24/2018
Employee,Employee - Expense Reimbursement,$645.19 ,8/28/2018
Employee,Employee - Expense Reimbursement,"$1,140.19 ",8/31/2018
Employee,Employee - Expense Reimbursement,$541.88 ,9/6/2018
Employee,Employee - Expense Reimbursement,"$1,492.80 ",9/11/2018
Employee,Employee - Expense Reimbursement,$603.94 ,9/14/2018
Employee,Employee - Expense Reimbursement,"$2,893.37 ",9/18/2018
Employee,Employee - Expense Reimbursement,"$1,708.89 ",9/21/2018
Employee,Employee - Expense Reimbursement,$587.90 ,9/25/2018
Employee,Employee - Expense Reimbursement,"$1,584.22 ",9/28/2018
Employee,Employee - Expense Reimbursement,$161.50 ,10/2/2018
Employee,Employee - Expense Reimbursement,"$1,193.28 ",10/5/2018
Employee,Employee - Expense Reimbursement,$508.17 ,10/9/2018
Employee,Employee - Expense Reimbursement,"$2,954.02 ",10/12/2018
Employee,Employee - Expense Reimbursement,"$2,138.37 ",10/16/2018
Employee,Employee - Expense Reimbursement,"$1,176.08 ",10/19/2018
Employee,Employee - Expense Reimbursement,"$1,595.25 ",10/23/2018
Employee,Employee - Expense Reimbursement,$516.26 ,10/26/2018
Employee,Employee - Expense Reimbursement,"$2,254.31 ",10/30/2018
Employee,Employee - Expense Reimbursement,"$5,029.10 ",11/2/2018
Employee,Employee - Expense Reimbursement,"$3,077.60 ",11/6/2018
Employee,Employee - Expense Reimbursement,$890.64 ,11/9/2018
Employee,Employee - Expense Reimbursement,$790.34 ,11/13/2018
Employee,Employee - Expense Reimbursement,"$1,132.62 ",11/16/2018
Employee,Employee - Expense Reimbursement,$942.98 ,11/20/2018
Employee,Employee - Expense Reimbursement,"$7,455.16 ",11/27/2018
Employee,Employee - Expense Reimbursement,"$1,084.37 ",12/4/2018
Employee,Employee - Expense Reimbursement,"$1,419.30 ",12/7/2018
Employee,Employee - Expense Reimbursement,"$2,292.42 ",12/11/2018
Employee,Employee - Expense Reimbursement,$100.00 ,12/12/2018
Employee,Employee - Expense Reimbursement,"$1,491.21 ",12/14/2018
Employee,Employee - Expense Reimbursement,"$6,125.23 ",12/18/2018
Employee,Employee - Expense Reimbursement,"$2,896.06 ",12/21/2018
Employee,Employee - Expense Reimbursement,"$2,088.93 ",12/28/2018
Energy Intelligence Group Inc,Miscellaneous,"$3,580.00 ",11/27/2018
ERC Delivery Service Inc,Miscellaneous,$80.00 ,1/23/2018
ERC Delivery Service Inc,Miscellaneous,$80.00 ,3/2/2018
ERC Delivery Service Inc,Miscellaneous,$80.00 ,3/16/2018
ERC Delivery Service Inc,Miscellaneous,$80.00 ,3/27/2018
ERC Delivery Service Inc,Miscellaneous,$80.00 ,4/24/2018
ERC Delivery Service Inc,Miscellaneous,$80.00 ,5/22/2018
ERC Delivery Service Inc,Miscellaneous,$80.00 ,6/26/2018
ERC Delivery Service Inc,Miscellaneous,$64.00 ,8/10/2018
ERC Delivery Service Inc,Miscellaneous,$64.00 ,8/24/2018
ERC Delivery Service Inc,Miscellaneous,$37.09 ,8/31/2018
ERC Delivery Service Inc,Miscellaneous,$64.00 ,9/21/2018
ERC Delivery Service Inc,Miscellaneous,$208.00 ,10/26/2018
ERC Delivery Service Inc,Miscellaneous,$64.00 ,12/7/2018
ERC Delivery Service Inc,Miscellaneous,$64.00 ,12/18/2018
Eric Blohm,Services,$157.50 ,5/1/2018
Eric Blohm,Services,$150.00 ,7/6/2018
ESRI Inc,Services,"$2,420.00 ",5/8/2018
ESRI Inc,Services,"$2,420.00 ",8/3/2018
ESRI Inc,Services,"$26,000.00 ",8/7/2018
Everlights,Services,$84.10 ,1/19/2018
Everlights,Services,$298.00 ,2/6/2018
Everlights,Services,$310.17 ,2/23/2018
Everlights,Services,$170.08 ,10/5/2018
Everlights,Services,$437.01 ,10/9/2018
Everlights,Services,$59.13 ,11/9/2018
Everlights,Services,$96.54 ,12/4/2018
ExamWorks Clinical Solutions LLC,Services,$850.00 ,1/19/2018
ExamWorks Clinical Solutions LLC,Services,$850.00 ,2/27/2018
ExamWorks Clinical Solutions LLC,Services,$850.00 ,3/23/2018
ExamWorks Clinical Solutions LLC,Services,$850.00 ,4/24/2018
ExamWorks Clinical Solutions LLC,Services,$850.00 ,6/5/2018
ExamWorks Clinical Solutions LLC,Services,"$1,200.00 ",7/20/2018
ExamWorks Clinical Solutions LLC,Services,$600.00 ,8/21/2018
ExamWorks Clinical Solutions LLC,Services,$600.00 ,9/25/2018
ExamWorks Clinical Solutions LLC,Services,$600.00 ,10/19/2018
Experian Health Inc,Services,"$7,132.30 ",1/19/2018
Experian Health Inc,Services,"$8,827.20 ",2/16/2018
Experian Health Inc,Services,"$11,468.30 ",4/6/2018
Experian Health Inc,Services,"$11,658.45 ",5/1/2018
Experian Health Inc,Services,"$26,879.70 ",6/22/2018
Experian Health Inc,Services,"$18,228.85 ",7/17/2018
Experian Health Inc,Services,"$8,642.65 ",8/10/2018
Experian Health Inc,Services,"$18,558.30 ",9/18/2018
Experian Health Inc,Services,"$1,040.00 ",10/16/2018
Experian Health Inc,Services,"$2,080.00 ",12/21/2018
Experian National Resource,Services,$27.72 ,1/12/2018
Experian National Resource,Services,$27.96 ,2/13/2018
Experian National Resource,Services,$28.20 ,3/16/2018
Experian National Resource,Services,$27.48 ,4/6/2018
Experian National Resource,Services,$27.48 ,5/4/2018
Experian National Resource,Services,$27.48 ,5/31/2018
Experian National Resource,Services,$27.72 ,7/6/2018
Experian National Resource,Services,$27.72 ,8/3/2018
Experian National Resource,Services,$27.24 ,9/11/2018
Experian National Resource,Services,$27.96 ,10/5/2018
Experian National Resource,Services,$27.24 ,10/30/2018
Experian National Resource,Services,$27.72 ,12/4/2018
F H Paschen S N Nielsen & Associates LLC,Building/Bldg Improvement,"$216,392.69 ",2/16/2018
F H Paschen S N Nielsen & Associates LLC,Building/Bldg Improvement,"$209,632.02 ",3/2/2018
F H Paschen S N Nielsen & Associates LLC,Building/Bldg Improvement,"$134,342.78 ",3/16/2018
F H Paschen S N Nielsen & Associates LLC,Building/Bldg Improvement,"$98,098.20 ",4/13/2018
F H Paschen S N Nielsen & Associates LLC,Building/Bldg Improvement,"$235,572.54 ",5/18/2018
F H Paschen S N Nielsen & Associates LLC,Building/Bldg Improvement,"$60,962.63 ",7/6/2018
Fand Auto Spa Inc,Services,$257.00 ,2/16/2018
Fand Auto Spa Inc,Services,$573.00 ,6/8/2018
Fand Auto Spa Inc,Services,$70.00 ,6/15/2018
Fand Auto Spa Inc,Services,$56.00 ,8/10/2018
Fand Auto Spa Inc,Services,$106.00 ,8/24/2018
Fand Auto Spa Inc,Services,$357.00 ,9/18/2018
Fand Auto Spa Inc,Services,$41.00 ,10/12/2018
Fand Auto Spa Inc,Services,$42.00 ,11/6/2018
Fastenal,Materials and Supplies,$135.19 ,1/26/2018
Fastenal,Materials and Supplies,$227.70 ,2/13/2018
Fastenal,Materials and Supplies,$379.13 ,3/9/2018
Fastenal,Materials and Supplies,$751.50 ,4/13/2018
Fastenal,Materials and Supplies,$59.00 ,7/31/2018
Fastenal,Materials and Supplies,$729.75 ,8/3/2018
Fastenal,Materials and Supplies,$153.36 ,9/21/2018
Fastenal,Materials and Supplies,$230.86 ,9/25/2018
Fastenal,Materials and Supplies,$728.17 ,9/28/2018
Fastenal,Materials and Supplies,$288.71 ,10/23/2018
Fastenal,Materials and Supplies,$457.45 ,11/30/2018
Fasteners Plus International,Materials and Supplies,$33.10 ,1/12/2018
Fasteners Plus International,Materials and Supplies,$66.48 ,3/16/2018
Fasteners Plus International,Materials and Supplies,$192.80 ,4/24/2018
Fasteners Plus International,Materials and Supplies,$122.00 ,5/15/2018
Fasteners Plus International,Materials and Supplies,$368.00 ,7/6/2018
Fasteners Plus International,Materials and Supplies,$504.17 ,8/7/2018
Fasteners Plus International,Materials and Supplies,$3.00 ,8/10/2018
Fasteners Plus International,Materials and Supplies,$525.20 ,8/31/2018
Fasteners Plus International,Materials and Supplies,$172.90 ,10/19/2018
Fasteners Plus International,Materials and Supplies,$456.25 ,11/30/2018
FedResults Inc,Miscellaneous,"$2,296.94 ",2/16/2018
FedResults Inc,Miscellaneous,"$2,296.94 ",2/20/2018
FedResults Inc,Miscellaneous,"$2,296.94 ",4/6/2018
FedResults Inc,Miscellaneous,"$2,296.94 ",4/20/2018
FedResults Inc,Miscellaneous,"$2,296.94 ",5/25/2018
FedResults Inc,Miscellaneous,"$2,296.94 ",6/29/2018
FedResults Inc,Miscellaneous,"$2,296.94 ",8/3/2018
FedResults Inc,Miscellaneous,"$2,296.94 ",9/6/2018
FedResults Inc,Miscellaneous,"$2,296.94 ",9/21/2018
FedResults Inc,Miscellaneous,"$2,296.94 ",11/9/2018
FedResults Inc,Miscellaneous,"$2,296.94 ",12/11/2018
FedResults Inc,Miscellaneous,"$2,296.94 ",12/28/2018
Feece Oil Co,Fuel/Parts Inventory,"$1,376.00 ",1/4/2018
Feece Oil Co,Fuel/Parts Inventory,"$7,584.00 ",4/6/2018
Feece Oil Co,Fuel/Parts Inventory,"$5,392.20 ",5/4/2018
Feece Oil Co,Fuel/Parts Inventory,"$3,121.80 ",5/15/2018
Feece Oil Co,Fuel/Parts Inventory,"$5,392.20 ",6/8/2018
Feece Oil Co,Fuel/Parts Inventory,"$5,893.80 ",7/10/2018
Feece Oil Co,Fuel/Parts Inventory,"$5,940.00 ",7/13/2018
Feece Oil Co,Fuel/Parts Inventory,"$8,324.00 ",9/21/2018
Fidelity Security Life Insurance Eye,Health Insurance,"$2,296.64 ",1/16/2018
Fidelity Security Life Insurance Eye,Health Insurance,"$2,283.84 ",2/21/2018
Fidelity Security Life Insurance Eye,Health Insurance,"$2,287.84 ",3/15/2018
Fidelity Security Life Insurance Eye,Health Insurance,"$2,255.36 ",4/13/2018
Fidelity Security Life Insurance Eye,Health Insurance,"$2,301.28 ",5/15/2018
Fidelity Security Life Insurance Eye,Health Insurance,"$2,239.68 ",6/14/2018
Fidelity Security Life Insurance Eye,Health Insurance,"$2,268.16 ",7/17/2018
Fidelity Security Life Insurance Eye,Health Insurance,"$2,323.20 ",8/17/2018
Fidelity Security Life Insurance Eye,Health Insurance,"$2,281.28 ",9/19/2018
Fidelity Security Life Insurance Eye,Health Insurance,"$2,248.80 ",10/17/2018
Fidelity Security Life Insurance Eye,Health Insurance,"$2,281.60 ",11/19/2018
Fidelity Security Life Insurance Eye,Health Insurance,"$2,370.56 ",12/17/2018
Filter Services Illinois,Fuel/Parts Inventory,"$1,276.00 ",1/12/2018
Filter Services Illinois,Fuel/Parts Inventory,$300.00 ,1/16/2018
Filter Services Illinois,Materials and Supplies,$570.00 ,2/2/2018
Filter Services Illinois,Fuel/Parts Inventory,"$5,440.00 ",2/13/2018
Filter Services Illinois,Materials and Supplies,$129.36 ,3/16/2018
Filter Services Illinois,Fuel/Parts Inventory,"$2,720.00 ",5/18/2018
Filter Services Illinois,Materials and Supplies,$499.58 ,6/12/2018
Filter Services Illinois,Fuel/Parts Inventory,"$2,720.00 ",6/22/2018
Filter Services Illinois,Fuel/Parts Inventory,"$2,720.00 ",8/7/2018
Filter Services Illinois,Fuel/Parts Inventory,"$4,080.00 ",9/21/2018
Filter Services Illinois,Fuel/Parts Inventory,"$10,880.00 ",11/2/2018
Firestone Complete Auto Care,Materials and Supplies,$770.88 ,3/16/2018
Firestone Complete Auto Care,Materials and Supplies,$518.80 ,5/15/2018
Firestone Complete Auto Care,Materials and Supplies,$913.15 ,5/18/2018
Firestone Complete Auto Care,Materials and Supplies,"$1,043.60 ",6/29/2018
Firestone Complete Auto Care,Materials and Supplies,$923.14 ,7/6/2018
Firestone Complete Auto Care,Materials and Supplies,"$1,043.60 ",8/3/2018
Firestone Complete Auto Care,Materials and Supplies,"$1,174.05 ",8/14/2018
Firestone Complete Auto Care,Materials and Supplies,"$1,050.04 ",10/30/2018
First Ayd Corporation,Services,$424.50 ,1/4/2018
First Ayd Corporation,Services,$424.50 ,1/26/2018
First Ayd Corporation,Services,$424.50 ,2/20/2018
First Ayd Corporation,Services,$679.20 ,3/20/2018
First Student,Materials and Supplies,"$2,224.34 ",12/8/2017
First Student,Purchased Transportation,"($349,568.50)",12/8/2017
First Student,Materials and Supplies,($643.48),1/9/2018
First Student,Purchased Transportation,"$375,388.77 ",1/9/2018
First Student,Materials and Supplies,"($2,224.34)",1/23/2018
First Student,Purchased Transportation,"$349,568.50 ",1/23/2018
First Student,Materials and Supplies,"($2,427.05)",2/13/2018
First Student,Purchased Transportation,"$355,085.46 ",2/13/2018
First Student,Materials and Supplies,"($4,796.88)",3/23/2018
First Student,Purchased Transportation,"$322,808.97 ",3/23/2018
First Student,Materials and Supplies,"($2,659.12)",4/13/2018
First Student,Purchased Transportation,"$357,072.13 ",4/13/2018
First Student,Materials and Supplies,"($4,243.19)",5/11/2018
First Student,Purchased Transportation,"$337,835.58 ",5/11/2018
First Student,Materials and Supplies,"($4,921.23)",6/12/2018
First Student,Purchased Transportation,"$358,874.21 ",6/12/2018
First Student,Materials and Supplies,"($3,103.08)",7/13/2018
First Student,Purchased Transportation,"$366,243.63 ",7/13/2018
First Student,Materials and Supplies,"($6,459.08)",8/10/2018
First Student,Purchased Transportation,"$364,448.94 ",8/10/2018
First Student,Materials and Supplies,"($8,812.11)",9/14/2018
First Student,Purchased Transportation,"$396,673.58 ",9/14/2018
First Student,Materials and Supplies,"($4,968.62)",11/13/2018
First Student,Purchased Transportation,"$431,651.71 ",11/13/2018
First Student,Materials and Supplies,"($4,002.61)",11/27/2018
First Student,Purchased Transportation,"$313,436.71 ",11/27/2018
First Student,Materials and Supplies,"($5,783.17)",12/14/2018
First Student,Purchased Transportation,"$372,685.75 ",12/14/2018
First Transit Inc,Purchased Transportation,"$592,393.68 ",1/4/2018
First Transit Inc,Equipment,"$3,914.23 ",1/9/2018
First Transit Inc,Purchased Transportation,"$317,668.80 ",1/9/2018
First Transit Inc,Purchased Transportation,"$761,611.71 ",1/19/2018
First Transit Inc,Purchased Transportation,"$242,467.64 ",1/26/2018
First Transit Inc,Purchased Transportation,"$664,716.21 ",2/6/2018
First Transit Inc,Purchased Transportation,"$108,538.18 ",2/8/2018
First Transit Inc,Materials and Supplies,($385.90),3/2/2018
First Transit Inc,Purchased Transportation,"$1,059,585.84 ",3/2/2018
First Transit Inc,Purchased Transportation,"$746,368.71 ",3/9/2018
First Transit Inc,Purchased Transportation,"$132,405.52 ",3/23/2018
First Transit Inc,Purchased Transportation,"$90,542.29 ",3/27/2018
First Transit Inc,Purchased Transportation,"$841,009.07 ",4/6/2018
First Transit Inc,Purchased Transportation,"$410,098.32 ",4/10/2018
First Transit Inc,Purchased Transportation,"$158,244.99 ",4/24/2018
First Transit Inc,Materials and Supplies,($16.59),4/27/2018
First Transit Inc,Purchased Transportation,"$335,957.25 ",4/27/2018
First Transit Inc,Purchased Transportation,"$938,631.53 ",5/1/2018
First Transit Inc,Purchased Transportation,"$865,400.20 ",5/4/2018
First Transit Inc,Purchased Transportation,$251.76 ,5/8/2018
First Transit Inc,Purchased Transportation,"$768,118.34 ",5/31/2018
First Transit Inc,Equipment,"$4,510.68 ",6/5/2018
First Transit Inc,Purchased Transportation,"$789,023.55 ",6/5/2018
First Transit Inc,Purchased Transportation,"$297,182.12 ",6/8/2018
First Transit Inc,Materials and Supplies,($164.70),6/29/2018
First Transit Inc,Purchased Transportation,"$955,039.41 ",6/29/2018
First Transit Inc,Purchased Transportation,"$836,458.31 ",7/13/2018
First Transit Inc,Purchased Transportation,"$129,108.94 ",7/24/2018
First Transit Inc,Purchased Transportation,"$897,255.39 ",7/31/2018
First Transit Inc,Purchased Transportation,"$649,882.61 ",8/3/2018
First Transit Inc,Purchased Transportation,"$290,634.20 ",8/17/2018
First Transit Inc,Purchased Transportation,"$97,069.78 ",8/24/2018
First Transit Inc,Purchased Transportation,"$805,475.87 ",9/6/2018
First Transit Inc,Purchased Transportation,"$802,824.51 ",9/11/2018
First Transit Inc,Equipment,"$1,425.00 ",9/18/2018
First Transit Inc,Purchased Transportation,"$149,014.78 ",9/18/2018
First Transit Inc,Equipment,"$1,425.00 ",9/21/2018
First Transit Inc,Purchased Transportation,"$119,297.50 ",9/28/2018
First Transit Inc,Purchased Transportation,"$863,241.73 ",10/5/2018
First Transit Inc,Purchased Transportation,"$169,922.86 ",10/9/2018
First Transit Inc,Purchased Transportation,"$738,862.50 ",10/19/2018
First Transit Inc,Purchased Transportation,"$144,813.83 ",10/26/2018
First Transit Inc,Purchased Transportation,"$57,759.80 ",11/2/2018
First Transit Inc,Purchased Transportation,"$1,466,714.61 ",11/6/2018
First Transit Inc,Materials and Supplies,($150.46),11/9/2018
First Transit Inc,Purchased Transportation,"$199,525.42 ",11/9/2018
First Transit Inc,Purchased Transportation,"$1,040,564.07 ",11/30/2018
First Transit Inc,Purchased Transportation,"$179,221.34 ",12/7/2018
First Transit Inc,Purchased Transportation,"$605,894.40 ",12/11/2018
First Transit Inc,Purchased Transportation,"$155,634.36 ",12/14/2018
First Transit Inc,Equipment,"$1,755.00 ",12/18/2018
First Transit Inc,Purchased Transportation,"$182,071.84 ",12/21/2018
First Transit Inc,Purchased Transportation,"$839,923.89 ",12/28/2018
Five Star Kleen,Services,"$6,200.00 ",1/12/2018
Five Star Kleen,Services,"$9,331.50 ",2/16/2018
Five Star Kleen,Services,"$8,203.50 ",3/9/2018
Five Star Kleen,Services,"$9,042.50 ",4/13/2018
Five Star Kleen,Services,"$8,779.50 ",5/15/2018
Five Star Kleen,Services,"$8,013.00 ",6/15/2018
Five Star Kleen,Services,"$5,463.00 ",7/13/2018
Five Star Kleen,Services,"$5,685.50 ",8/24/2018
Five Star Kleen,Services,"$6,052.50 ",9/18/2018
Five Star Kleen,Services,"$5,156.00 ",10/19/2018
Five Star Kleen,Services,"$5,965.00 ",11/16/2018
Five Star Kleen,Services,"$5,726.00 ",12/14/2018
Flag Desk Inc,Materials and Supplies,"$1,206.50 ",10/19/2018
Flash Cab Company,Purchased Transportation,$579.35 ,1/12/2018
Flash Cab Company,Purchased Transportation,"$54,530.55 ",1/26/2018
Flash Cab Company,Purchased Transportation,"$23,070.56 ",2/2/2018
Flash Cab Company,Purchased Transportation,"$6,073.70 ",2/8/2018
Flash Cab Company,Purchased Transportation,"$36,798.05 ",2/20/2018
Flash Cab Company,Purchased Transportation,"$57,495.67 ",3/13/2018
Flash Cab Company,Purchased Transportation,"$4,735.37 ",3/27/2018
Flash Cab Company,Purchased Transportation,"$30,880.45 ",3/30/2018
Flash Cab Company,Purchased Transportation,$640.46 ,4/17/2018
Flash Cab Company,Purchased Transportation,"$1,437.86 ",5/4/2018
Flash Cab Company,Purchased Transportation,"$37,999.90 ",5/11/2018
Flash Cab Company,Purchased Transportation,"$37,136.90 ",5/15/2018
Flash Cab Company,Purchased Transportation,"$35,692.90 ",5/25/2018
Flash Cab Company,Purchased Transportation,"$42,206.55 ",5/31/2018
Flash Cab Company,Purchased Transportation,"$39,821.25 ",6/26/2018
Flash Cab Company,Purchased Transportation,"$56,463.99 ",7/20/2018
Flash Cab Company,Purchased Transportation,"$1,392.72 ",8/10/2018
Flash Cab Company,Purchased Transportation,"$73,920.40 ",8/17/2018
Flash Cab Company,Purchased Transportation,"$47,371.55 ",8/28/2018
Flash Cab Company,Purchased Transportation,$290.98 ,8/31/2018
Flash Cab Company,Purchased Transportation,"$50,642.96 ",10/5/2018
Flash Cab Company,Purchased Transportation,"$86,520.20 ",10/19/2018
Flash Cab Company,Purchased Transportation,"$6,739.22 ",11/6/2018
Flash Cab Company,Purchased Transportation,"$50,557.90 ",11/9/2018
Flash Cab Company,Purchased Transportation,"$34,770.12 ",11/16/2018
Flash Cab Company,Purchased Transportation,"$1,560.81 ",11/27/2018
Flash Cab Company,Purchased Transportation,$205.35 ,11/30/2018
Flash Cab Company,Purchased Transportation,"$1,384.09 ",12/11/2018
Flash Cab Company,Purchased Transportation,"$96,565.16 ",12/14/2018
Flash Cab Company,Purchased Transportation,"$46,813.37 ",12/28/2018
Fleet Analytics LLC,Services,"$1,992.00 ",1/12/2018
Fleet Analytics LLC,Services,"$2,004.00 ",2/16/2018
Fleet Analytics LLC,Services,"$1,992.00 ",3/16/2018
Fleet Analytics LLC,Services,"$1,992.00 ",4/13/2018
Fleet Analytics LLC,Services,"$2,064.00 ",5/11/2018
Fleet Analytics LLC,Services,"$2,100.00 ",6/12/2018
Fleet Analytics LLC,Services,"$2,064.00 ",7/10/2018
Fleet Analytics LLC,Services,"$2,040.00 ",8/31/2018
Fleet Analytics LLC,Services,"$2,040.00 ",9/21/2018
Fleet Analytics LLC,Services,"$2,040.00 ",10/26/2018
Fleet Analytics LLC,Services,"$2,040.00 ",11/13/2018
Fleet Analytics LLC,Services,"$2,040.00 ",12/14/2018
Fleet Response,Casualty and Liability,"$1,330.51 ",1/9/2018
Fleet Response,Casualty and Liability,"$2,572.62 ",1/26/2018
Fleet Response,Casualty and Liability,"$10,341.38 ",2/13/2018
Fleet Response,Casualty and Liability,"$6,233.73 ",2/16/2018
Fleet Response,Casualty and Liability,"$17,258.37 ",3/16/2018
Fleet Response,Casualty and Liability,$13.50 ,4/6/2018
Fleet Response,Casualty and Liability,"$7,654.67 ",4/13/2018
Fleet Response,Casualty and Liability,"$1,480.48 ",4/17/2018
Fleet Response,Casualty and Liability,"$28,320.79 ",5/11/2018
Fleet Response,Casualty and Liability,"$9,589.71 ",6/19/2018
Fleet Response,Casualty and Liability,"$11,805.31 ",7/13/2018
Fleet Response,Casualty and Liability,"$8,399.49 ",8/17/2018
Fleet Response,Casualty and Liability,"$10,090.86 ",8/31/2018
Fleet Response,Casualty and Liability,"$1,980.00 ",9/11/2018
Fleet Response,Casualty and Liability,"$3,845.85 ",9/14/2018
Fleet Response,Casualty and Liability,$690.20 ,9/21/2018
Fleet Response,Casualty and Liability,"$6,700.59 ",10/26/2018
Fleet Response,Casualty and Liability,$661.85 ,11/9/2018
Fleet Response,Casualty and Liability,"$1,497.28 ",11/27/2018
Fleet Response,Casualty and Liability,"$8,356.39 ",12/4/2018
Fleet Response,Casualty and Liability,"$13,646.93 ",12/7/2018
Fleet Response,Casualty and Liability,$14.00 ,12/14/2018
Fleet Response,Casualty and Liability,"$13,015.79 ",12/18/2018
Forward Space LLC,Materials and Supplies,$292.04 ,1/19/2018
Forward Space LLC,Materials and Supplies,"$8,063.00 ",2/2/2018
Forward Space LLC,Services,"$1,322.16 ",3/6/2018
Forward Space LLC,Materials and Supplies,$176.15 ,3/16/2018
Forward Space LLC,Materials and Supplies,"$80,500.42 ",3/27/2018
Forward Space LLC,Materials and Supplies,$881.61 ,4/27/2018
Forward Space LLC,Materials and Supplies,$448.00 ,8/10/2018
Forward Space LLC,Materials and Supplies,"$2,915.14 ",8/14/2018
Fountain Square of Waukegan Management,Services,$295.06 ,6/29/2018
Fox Metro Water Reclamation District,Utilities,$937.29 ,1/4/2018
Fox Metro Water Reclamation District,Utilities,"$1,265.64 ",3/9/2018
Fox Metro Water Reclamation District,Utilities,$925.35 ,5/8/2018
Fox Metro Water Reclamation District,Utilities,$954.72 ,7/6/2018
Fox Metro Water Reclamation District,Utilities,$586.56 ,9/11/2018
Fox Metro Water Reclamation District,Utilities,$418.08 ,11/9/2018
Fox Valley Fire & Safety,Materials and Supplies,$136.00 ,1/19/2018
Fox Valley Fire & Safety,Services,$140.00 ,1/19/2018
Fox Valley Fire & Safety,Services,$234.00 ,1/26/2018
Fox Valley Fire & Safety,Materials and Supplies,$437.25 ,1/30/2018
Fox Valley Fire & Safety,Materials and Supplies,($437.25),2/6/2018
Fox Valley Fire & Safety,Services,"$2,530.00 ",2/6/2018
Fox Valley Fire & Safety,Services,$88.75 ,2/8/2018
Fox Valley Fire & Safety,Services,"$1,487.01 ",2/13/2018
Fox Valley Fire & Safety,Materials and Supplies,$68.00 ,2/20/2018
Fox Valley Fire & Safety,Services,"$2,082.75 ",2/20/2018
Fox Valley Fire & Safety,Services,$70.00 ,2/23/2018
Fox Valley Fire & Safety,Services,$290.38 ,3/16/2018
Fox Valley Fire & Safety,Fuel/Parts Inventory,$294.16 ,3/23/2018
Fox Valley Fire & Safety,Services,$641.25 ,3/23/2018
Fox Valley Fire & Safety,Services,"$1,186.64 ",3/27/2018
Fox Valley Fire & Safety,Services,"$5,925.00 ",4/3/2018
Fox Valley Fire & Safety,Services,"$1,226.90 ",4/6/2018
Fox Valley Fire & Safety,Services,"$1,825.00 ",4/13/2018
Fox Valley Fire & Safety,Services,$969.00 ,4/27/2018
Fox Valley Fire & Safety,Services,"$1,928.30 ",5/4/2018
Fox Valley Fire & Safety,Services,"$1,149.75 ",5/25/2018
Fox Valley Fire & Safety,Services,$750.45 ,5/31/2018
Fox Valley Fire & Safety,Services,$374.00 ,6/29/2018
Fox Valley Fire & Safety,Services,$182.75 ,7/6/2018
Fox Valley Fire & Safety,Services,$202.75 ,7/10/2018
Fox Valley Fire & Safety,Materials and Supplies,$204.00 ,7/17/2018
Fox Valley Fire & Safety,Services,$869.50 ,7/17/2018
Fox Valley Fire & Safety,Services,$70.00 ,7/20/2018
Fox Valley Fire & Safety,Services,$581.55 ,8/10/2018
Fox Valley Fire & Safety,Services,$234.00 ,8/14/2018
Fox Valley Fire & Safety,Materials and Supplies,$68.00 ,8/21/2018
Fox Valley Fire & Safety,Services,$965.25 ,8/24/2018
Fox Valley Fire & Safety,Services,"$1,423.40 ",10/9/2018
Fox Valley Fire & Safety,Materials and Supplies,$204.00 ,11/2/2018
Fox Valley Fire & Safety,Services,"$1,315.90 ",11/2/2018
Fox Valley Fire & Safety,Services,$70.00 ,11/9/2018
Fox Valley Fire & Safety,Materials and Supplies,$71.00 ,11/13/2018
Fox Valley Fire & Safety,Materials and Supplies,$71.00 ,11/16/2018
Fox Valley Fire & Safety,Services,"$2,444.50 ",11/16/2018
Fox Valley Fire & Safety,Services,"$1,666.75 ",11/27/2018
Fox Valley Fire & Safety,Services,$210.00 ,12/7/2018
Fox Valley Fire & Safety,Services,$315.00 ,12/11/2018
Fox Valley Fire & Safety,Services,$852.25 ,12/14/2018
Fox Valley Fire & Safety,Materials and Supplies,$71.00 ,12/18/2018
Fox Valley Fire & Safety,Fuel/Parts Inventory,$513.00 ,12/21/2018
Fox Valley Fire & Safety,Services,$508.56 ,12/21/2018
Francotyp Postalia Inc - FP Mailing Solution,Services,$274.86 ,1/12/2018
Francotyp Postalia Inc - FP Mailing Solution,Services,$274.86 ,2/23/2018
Francotyp Postalia Inc - FP Mailing Solution,Services,$124.85 ,3/9/2018
Francotyp Postalia Inc - FP Mailing Solution,Services,"$3,000.00 ",3/16/2018
Francotyp Postalia Inc - FP Mailing Solution,Services,$274.86 ,3/23/2018
Francotyp Postalia Inc - FP Mailing Solution,Services,$274.86 ,4/24/2018
Francotyp Postalia Inc - FP Mailing Solution,Services,$274.86 ,5/22/2018
Francotyp Postalia Inc - FP Mailing Solution,Services,$274.86 ,6/26/2018
Francotyp Postalia Inc - FP Mailing Solution,Services,$274.86 ,8/17/2018
Francotyp Postalia Inc - FP Mailing Solution,Services,$224.62 ,8/31/2018
Francotyp Postalia Inc - FP Mailing Solution,Services,$549.72 ,9/21/2018
Francotyp Postalia Inc - FP Mailing Solution,Services,$274.86 ,10/19/2018
Francotyp Postalia Inc - FP Mailing Solution,Services,$274.86 ,12/14/2018
Francotyp Postalia Inc - FP Mailing Solution,Services,$274.86 ,12/28/2018
Fraser Tool & Gauge LLC,Materials and Supplies,"$5,610.00 ",5/4/2018
Fraser Tool & Gauge LLC,Materials and Supplies,"$1,870.00 ",5/8/2018
Fraser Tool & Gauge LLC,Materials and Supplies,$935.00 ,5/11/2018
Fraser Tool & Gauge LLC,Materials and Supplies,$935.00 ,5/15/2018
Fred Pryor Seminars,Services,$199.00 ,4/3/2018
Fredric R Dichter,Services,"$3,325.00 ",3/16/2018
Fredric R Dichter,Services,"$2,100.00 ",5/25/2018
Freedom 1st Transportation,Purchased Transportation,"$76,438.87 ",1/4/2018
Freedom 1st Transportation,Purchased Transportation,"$23,485.08 ",2/2/2018
Freedom 1st Transportation,Purchased Transportation,"$46,678.44 ",2/8/2018
Freedom 1st Transportation,Purchased Transportation,"$47,572.19 ",3/13/2018
Freedom 1st Transportation,Purchased Transportation,"$24,063.11 ",3/30/2018
Freedom 1st Transportation,Purchased Transportation,"$44,652.11 ",4/10/2018
Freedom 1st Transportation,Purchased Transportation,"$23,215.16 ",4/13/2018
Freedom 1st Transportation,Purchased Transportation,"$86,622.92 ",5/4/2018
Freedom 1st Transportation,Purchased Transportation,"$87,465.94 ",6/8/2018
Freedom 1st Transportation,Purchased Transportation,"$85,877.45 ",7/13/2018
Freedom 1st Transportation,Purchased Transportation,"$26,677.34 ",8/17/2018
Freedom 1st Transportation,Purchased Transportation,"$53,504.16 ",8/21/2018
Freedom 1st Transportation LLC,Purchased Transportation,"$161,041.19 ",10/2/2018
Freedom 1st Transportation LLC,Purchased Transportation,"$39,308.18 ",11/16/2018
Freedom 1st Transportation LLC,Purchased Transportation,"$18,644.80 ",11/20/2018
Freedom 1st Transportation LLC,Purchased Transportation,"$54,233.67 ",12/7/2018
Freedom 1st Transportation LLC,Purchased Transportation,"$29,143.41 ",12/11/2018
Freedom 1st Transportation LLC,Purchased Transportation,"$70,886.74 ",12/21/2018
Freeway Ford Truck Sales Inc,Vehicle,"$195,416.00 ",11/6/2018
Gabriel Environmental Services,Services,$760.00 ,8/17/2018
Galls LLC,Fringe Benefits,"$1,221.71 ",9/28/2018
Galls LLC,Fringe Benefits,"$2,640.19 ",10/2/2018
Galls LLC,Fringe Benefits,"$3,474.54 ",10/5/2018
Galls LLC,Fringe Benefits,"$1,518.73 ",10/9/2018
Galls LLC,Fringe Benefits,"$7,311.76 ",10/12/2018
Galls LLC,Fringe Benefits,"$6,721.45 ",10/19/2018
Galls LLC,Fringe Benefits,"$4,752.66 ",10/23/2018
Galls LLC,Fringe Benefits,$698.14 ,10/26/2018
Galls LLC,Fringe Benefits,"$3,956.72 ",10/30/2018
Galls LLC,Fringe Benefits,"$1,613.78 ",11/2/2018
Galls LLC,Fringe Benefits,"$7,423.46 ",11/16/2018
Galls LLC,Fringe Benefits,"$1,884.98 ",11/20/2018
Galls LLC,Fringe Benefits,$178.40 ,11/27/2018
Galls LLC,Fringe Benefits,$390.21 ,12/4/2018
Galls LLC,Fringe Benefits,$431.71 ,12/7/2018
Galls LLC,Fringe Benefits,"$2,763.70 ",12/14/2018
Galls LLC,Fringe Benefits,"$4,278.21 ",12/21/2018
Galls LLC,Fringe Benefits,"$8,060.50 ",12/28/2018
"Galls, An Aramark Company LLC",Fringe Benefits,"$7,683.58 ",1/4/2018
"Galls, An Aramark Company LLC",Fringe Benefits,"$7,789.14 ",1/9/2018
"Galls, An Aramark Company LLC",Fringe Benefits,"$8,531.20 ",1/12/2018
"Galls, An Aramark Company LLC",Fringe Benefits,$806.36 ,1/16/2018
"Galls, An Aramark Company LLC",Fringe Benefits,$287.10 ,1/19/2018
"Galls, An Aramark Company LLC",Fringe Benefits,"$4,464.74 ",1/26/2018
"Galls, An Aramark Company LLC",Fringe Benefits,"$4,384.86 ",1/30/2018
"Galls, An Aramark Company LLC",Fringe Benefits,"$12,892.78 ",2/2/2018
"Galls, An Aramark Company LLC",Fringe Benefits,"$4,025.00 ",2/8/2018
"Galls, An Aramark Company LLC",Fringe Benefits,"$10,463.86 ",2/13/2018
"Galls, An Aramark Company LLC",Fringe Benefits,"$5,224.56 ",2/16/2018
"Galls, An Aramark Company LLC",Fringe Benefits,$408.20 ,2/20/2018
"Galls, An Aramark Company LLC",Fringe Benefits,"$4,697.88 ",2/23/2018
"Galls, An Aramark Company LLC",Fringe Benefits,"$2,784.33 ",2/27/2018
"Galls, An Aramark Company LLC",Fringe Benefits,"$2,128.58 ",3/6/2018
"Galls, An Aramark Company LLC",Fringe Benefits,"$9,893.23 ",3/9/2018
"Galls, An Aramark Company LLC",Fringe Benefits,$454.06 ,3/13/2018
"Galls, An Aramark Company LLC",Fringe Benefits,"$8,939.54 ",3/16/2018
"Galls, An Aramark Company LLC",Fringe Benefits,"$4,348.06 ",3/20/2018
"Galls, An Aramark Company LLC",Fringe Benefits,$770.32 ,3/23/2018
"Galls, An Aramark Company LLC",Fringe Benefits,"$3,406.98 ",3/27/2018
"Galls, An Aramark Company LLC",Fringe Benefits,"$5,905.26 ",3/30/2018
"Galls, An Aramark Company LLC",Fringe Benefits,"$6,194.75 ",4/3/2018
"Galls, An Aramark Company LLC",Fringe Benefits,"$3,621.45 ",4/6/2018
"Galls, An Aramark Company LLC",Fringe Benefits,"$7,427.97 ",4/13/2018
"Galls, An Aramark Company LLC",Fringe Benefits,"$1,719.21 ",4/20/2018
"Galls, An Aramark Company LLC",Fringe Benefits,"$2,440.95 ",4/24/2018
"Galls, An Aramark Company LLC",Fringe Benefits,"$3,137.50 ",4/27/2018
"Galls, An Aramark Company LLC",Fringe Benefits,"$10,274.01 ",5/4/2018
"Galls, An Aramark Company LLC",Fringe Benefits,"$2,915.42 ",5/8/2018
"Galls, An Aramark Company LLC",Fringe Benefits,"$4,551.59 ",5/11/2018
"Galls, An Aramark Company LLC",Fringe Benefits,"$9,238.59 ",5/15/2018
"Galls, An Aramark Company LLC",Fringe Benefits,"$1,536.25 ",5/18/2018
"Galls, An Aramark Company LLC",Fringe Benefits,"$2,861.74 ",5/25/2018
"Galls, An Aramark Company LLC",Fringe Benefits,"$3,882.86 ",5/31/2018
"Galls, An Aramark Company LLC",Fringe Benefits,"$4,561.57 ",6/5/2018
"Galls, An Aramark Company LLC",Fringe Benefits,"$1,722.35 ",6/8/2018
"Galls, An Aramark Company LLC",Fringe Benefits,"$8,098.06 ",6/12/2018
"Galls, An Aramark Company LLC",Fringe Benefits,"$8,281.79 ",6/29/2018
"Galls, An Aramark Company LLC",Fringe Benefits,"$2,624.24 ",7/6/2018
"Galls, An Aramark Company LLC",Fringe Benefits,"$10,677.97 ",7/13/2018
"Galls, An Aramark Company LLC",Fringe Benefits,$664.94 ,7/17/2018
"Galls, An Aramark Company LLC",Fringe Benefits,"$4,697.55 ",7/20/2018
"Galls, An Aramark Company LLC",Fringe Benefits,$543.41 ,7/27/2018
